Workbook

Sheet HeroLevelConfig
B1: Id | C1: Level | D1: CharacterLevelPara | E1: SpeedLevelPara | F1: Consume | G1: SumConsume | H1: RankupReturn | I1: NoUse1 | J1: NoUse2 | K1: NoUse3
B2: int | C2: int | D2: mut,int#int,2 | E2: float | F2: mut,int#int,2 | G2: mut,int#int,2 | H2: mut,int#int,2 | I2: float | J2: float | K2: float
B3: 2 | C3: 2 | D3: 2 | E3: 2 | F3: 2 | G3: 2 | H3: 2 | I3: 0 | J3: 0 | K3: 0
B4: 索引 | C4: 等级 | D4: 等级增量 (攻击/生命/护甲/魔抗） | E4: 速度升级参数 | F4: 升至下一级消耗的材料数 | G4: 升级累计消耗材料 （返还材料用，需要关联Gamesetting） | H4: 提升返还材料（迷） | I4: 备注速度 | J4: 备注速度 | K4: 备注速度
A5: 默认值 | B5: 0 | C5: 0 | D5: 0 | E5: 0 | F5: null | I5: 0 | J5: 0 | K5: 0
A6: 正确性校对
A7: 校对值
B8: 1 | C8: 1 | D8: 2#0|1#0|3#0|4#0 | E8: 1.000000 | F8: 14#20|3#5 | I8: =(C8+10)/11 -> 1
B9: 2 | C9: 2 | D9: 2#9|1#60|3#3|4#3 | E9: 1.045455 | F9: 14#40|3#10 | G9: 14#20|3#5 | H9: 14#42|3#20 | I9: =(C9+10)/11 -> 1.090909091 | J9: =I9-I8 -> 0.09090909091 | K9: =I8+J9/2 -> 1.045454545
B10: 3 | C10: 3 | D10: 2#18|1#120|3#6|4#6 | E10: 1.090909 | F10: 14#70|3#20 | G10: 14#60|3#15 | H10: 14#104|3#40 | I10: 1.181818182 | J10: =I10-I9 -> 0.09090909091 | K10: =K9+J10/2 -> 1.090909091
B11: 4 | C11: 4 | D11: 2#27|1#180|3#9|4#9 | E11: 1.136364 | F11: 14#110|3#30 | G11: 14#130|3#35 | H11: 14#208|3#70 | I11: 1.272727273 | J11: 0.09090909091 | K11: =K10+J11/2 -> 1.136363636
B12: 5 | C12: 5 | D12: 2#36|1#240|3#12|4#12 | E12: 1.181818 | F12: 14#170|3#45 | G12: 14#240|3#65 | H12: 14#365|3#115 | I12: 1.363636364 | J12: 0.09090909091 | K12: 1.181818182
B13: 6 | C13: 6 | D13: 2#48|1#320|3#16|4#16 | E13: 1.227273 | F13: 14#225|3#65 | G13: 14#410|3#110 | H13: 14#587|3#170 | I13: 1.454545455 | J13: 0.09090909091 | K13: 1.227272727
B14: 7 | C14: 7 | D14: 2#60|1#400|3#20|4#20 | E14: 1.272727 | F14: 14#305|3#80 | G14: 14#635|3#175 | H14: 14#887|3#245 | I14: 1.545454545 | J14: 0.09090909091 | K14: 1.272727273
B15: 8 | C15: 8 | D15: 2#72|1#480|3#24|4#24 | E15: 1.318182 | F15: 14#395|3#105 | G15: 14#940|3#255 | H15: 14#1277|3#335 | I15: 1.636363636 | J15: 0.09090909091 | K15: 1.318181818
B16: 9 | C16: 9 | D16: 2#84|1#560|3#28|4#28 | E16: 1.363636 | F16: 14#495|3#135 | G16: 14#1335|3#360 | H16: 14#1770|3#450 | I16: 1.727272727 | J16: 0.09090909091 | K16: 1.363636364
B17: 10 | C17: 10 | D17: 2#96|1#640|3#32|4#32 | E17: 1.409091 | F17: 14#615|3#170 | G17: 14#1830|3#495 | H17: 14#2380|3#590 | I17: 1.818181818 | J17: 0.09090909091 | K17: 1.409090909
B18: 11 | C18: 11 | D18: 2#111|1#740|3#37|4#37 | E18: 1.454545 | F18: 14#745|3#215 | G18: 14#2445|3#665 | H18: 14#3121|3#760 | I18: 1.909090909 | J18: 0.09090909091 | K18: 1.454545455
B19: 12 | C19: 12 | D19: 2#126|1#840|3#42|4#42 | E19: 1.500000 | F19: 14#890|3#265 | G19: 14#3190|3#880 | H19: 14#4007|3#965 | I19: 2 | J19: 0.09090909091 | K19: 1.5
B20: 13 | C20: 13 | D20: 2#141|1#940|3#47|4#47 | E20: 1.545455 | F20: 14#1050|3#320 | G20: 14#4080|3#1145 | H20: 14#5053|3#1215 | I20: 2.090909091 | J20: 0.09090909091 | K20: 1.545454545
B21: 14 | C21: 14 | D21: 2#156|1#1040|3#52|4#52 | E21: 1.590909 | F21: 14#1225|3#385 | G21: 14#5130|3#1465 | H21: 14#6274|3#1510 | I21: 2.181818182 | J21: 0.09090909091 | K21: 1.590909091
B22: 15 | C22: 15 | D22: 2#171|1#1140|3#57|4#57 | E22: 1.636364 | F22: 14#1415|3#465 | G22: 14#6355|3#1850 | H22: 14#7685|3#1860 | I22: 2.272727273 | J22: 0.09090909091 | K22: 1.636363636
B23: 16 | C23: 16 | D23: 2#189|1#1260|3#63|4#63 | E23: 1.681818 | F23: 14#1620|3#550 | G23: 14#7770|3#2315 | H23: 14#9302|3#2270 | I23: 2.363636364 | J23: 0.09090909091 | K23: 1.681818182
B24: 17 | C24: 17 | D24: 2#207|1#1380|3#69|4#69 | E24: 1.727273 | F24: 14#1840|3#645 | G24: 14#9390|3#2865 | H24: 14#11141|3#2745 | I24: 2.454545455 | J24: 0.09090909091 | K24: 1.727272727
B25: 18 | C25: 18 | D25: 2#225|1#1500|3#75|4#75 | E25: 1.772727 | F25: 14#2080|3#755 | G25: 14#11230|3#3510 | H25: 14#13219|3#3295 | I25: 2.545454545 | J25: 0.09090909091 | K25: 1.772727273
B26: 19 | C26: 19 | D26: 2#243|1#1620|3#81|4#81 | E26: 1.818182 | F26: 14#2335|3#875 | G26: 14#13310|3#4265 | H26: 14#15553|3#3930 | I26: 2.636363636 | J26: 0.09090909091 | K26: 1.818181818
B27: 20 | C27: 20 | D27: 2#261|1#1740|3#87|4#87 | E27: 1.863636 | F27: 14#2610|3#1010 | G27: 14#15645|3#5140 | H27: 14#18160|3#4655 | I27: 2.727272727 | J27: 0.09090909091 | K27: 1.863636364
B28: 21 | C28: 21 | D28: 2#282|1#1880|3#94|4#94 | E28: 1.909091 | F28: 14#2900|3#1160 | G28: 14#18255|3#6150 | H28: 14#21058|3#5485 | I28: 2.818181818 | J28: 0.09090909091 | K28: 1.909090909
B29: 22 | C29: 22 | D29: 2#303|1#2020|3#101|4#101 | E29: 1.954545 | F29: 14#3210|3#1320 | G29: 14#21155|3#7310 | H29: 14#24265|3#6425 | I29: 2.909090909 | J29: 0.09090909091 | K29: 1.954545455
B30: 23 | C30: 23 | D30: 2#324|1#2160|3#108|4#108 | E30: 2.000000 | F30: 14#3540|3#1500 | G30: 14#24365|3#8630 | H30: 14#27800|3#7485 | I30: 3 | J30: 0.09090909091 | K30: 2
B31: 24 | C31: 24 | D31: 2#345|1#2300|3#115|4#115 | E31: 2.045455 | F31: 14#3885|3#1690 | G31: 14#27905|3#10130 | H31: 14#31682|3#8680 | I31: 3.090909091 | J31: 0.09090909091 | K31: 2.045454545
B32: 25 | C32: 25 | D32: 2#366|1#2440|3#122|4#122 | E32: 2.090909 | F32: 14#4250|3#1900 | G32: 14#31790|3#11820 | H32: 14#35930|3#10015 | I32: 3.181818182 | J32: 0.09090909091 | K32: 2.090909091
B33: 26 | C33: 26 | D33: 2#390|1#2600|3#130|4#130 | E33: 2.136364 | F33: 14#4635|3#2130 | G33: 14#36040|3#13720 | H33: 14#40564|3#11505 | I33: 3.272727273 | J33: 0.09090909091 | K33: 2.136363636
B34: 27 | C34: 27 | D34: 2#414|1#2760|3#138|4#138 | E34: 2.181818 | F34: 14#5045|3#2375 | G34: 14#40675|3#15850 | H34: 14#45604|3#13160 | I34: 3.363636364 | J34: 0.09090909091 | K34: 2.181818182
B35: 28 | C35: 28 | D35: 2#438|1#2920|3#146|4#146 | E35: 2.227273 | F35: 14#5470|3#2640 | G35: 14#45720|3#18225 | H35: 14#51071|3#14995 | I35: 3.454545455 | J35: 0.09090909091 | K35: 2.227272727
B36: 29 | C36: 29 | D36: 2#462|1#3080|3#154|4#154 | E36: 2.272727 | F36: 14#5920|3#2920 | G36: 14#51190|3#20865 | H36: 14#56986|3#17020 | I36: 3.545454545 | J36: 0.09090909091 | K36: 2.272727273
B37: 30 | C37: 30 | D37: 2#486|1#3240|3#162|4#162 | E37: 2.318182 | F37: 14#6385|3#3225 | G37: 14#57110|3#23785 | H37: 14#63370|3#19250 | I37: 3.636363636 | J37: 0.09090909091 | K37: 2.318181818
B38: 31 | C38: 31 | D38: 2#513|1#3420|3#171|4#171 | E38: 2.363636 | F38: 14#6880|3#3545 | G38: 14#63495|3#27010 | H38: 14#70245|3#21700 | I38: 3.727272727 | J38: 0.09090909091 | K38: 2.363636364
B39: 32 | C39: 32 | D39: 2#540|1#3600|3#180|4#180 | E39: 2.409091 | F39: 14#7390|3#3890 | G39: 14#70375|3#30555 | H39: 14#77633|3#24380 | I39: 3.818181818 | J39: 0.09090909091 | K39: 2.409090909
B40: 33 | C40: 33 | D40: 2#567|1#3780|3#189|4#189 | E40: 2.454545 | F40: 14#7925|3#4260 | G40: 14#77765|3#34445 | H40: 14#85556|3#27305 | I40: 3.909090909 | J40: 0.09090909091 | K40: 2.454545455
B41: 34 | C41: 34 | D41: 2#594|1#3960|3#198|4#198 | E41: 2.500000 | F41: 14#8485|3#4645 | G41: 14#85690|3#38705 | H41: 14#94037|3#30495 | I41: 4 | J41: 0.09090909091 | K41: 2.5
B42: 35 | C42: 35 | D42: 2#621|1#4140|3#207|4#207 | E42: 2.545455 | F42: 14#9065|3#5060 | G42: 14#94175|3#43350 | H42: 14#103100|3#33960 | I42: 4.090909091 | J42: 0.09090909091 | K42: 2.545454545
B43: 36 | C43: 36 | D43: 2#651|1#4340|3#217|4#217 | E43: 2.590909 | F43: 14#9670|3#5495 | G43: 14#103240|3#48410 | H43: 14#112768|3#37720 | I43: 4.181818182 | J43: 0.09090909091 | K43: 2.590909091
B44: 37 | C44: 37 | D44: 2#681|1#4540|3#227|4#227 | E44: 2.636364 | F44: 14#10300|3#5955 | G44: 14#112910|3#53905 | H44: 14#123065|3#41790 | I44: 4.272727273 | J44: 0.09090909091 | K44: 2.636363636
B45: 38 | C45: 38 | D45: 2#711|1#4740|3#237|4#237 | E45: 2.681818 | F45: 14#10955|3#6440 | G45: 14#123210|3#59860 | H45: 14#134016|3#46185 | I45: 4.363636364 | J45: 0.09090909091 | K45: 2.681818182
B46: 39 | C46: 39 | D46: 2#741|1#4940|3#247|4#247 | E46: 2.727273 | F46: 14#11635|3#6955 | G46: 14#134165|3#66300 | H46: 14#145646|3#50925 | I46: 4.454545455 | J46: 0.09090909091 | K46: 2.727272727
B47: 40 | C47: 40 | D47: 2#771|1#5140|3#257|4#257 | E47: 2.772727 | F47: 14#12335|3#7490 | G47: 14#145800|3#73255 | H47: 14#157980|3#56025 | I47: 4.545454545 | J47: 0.09090909091 | K47: 2.772727273
B48: 41 | C48: 41 | D48: 2#804|1#5360|3#268|4#268 | E48: 2.818182 | F48: 14#13065|3#8055 | G48: 14#158135|3#80745 | H48: 14#171043|3#61505 | I48: 4.636363636 | J48: 0.09090909091 | K48: 2.818181818
B49: 42 | C49: 42 | D49: 2#837|1#5580|3#279|4#279 | E49: 2.863636 | F49: 14#13820|3#8650 | G49: 14#171200|3#88800 | H49: 14#184861|3#67385 | I49: 4.727272727 | J49: 0.09090909091 | K49: 2.863636364
B50: 43 | C50: 43 | D50: 2#870|1#5800|3#290|4#290 | E50: 2.909091 | F50: 14#14605|3#9270 | G50: 14#185020|3#97450 | H50: 14#199461|3#73680 | I50: 4.818181818 | J50: 0.09090909091 | K50: 2.909090909
B51: 44 | C51: 44 | D51: 2#903|1#6020|3#301|4#301 | E51: 2.954545 | F51: 14#15410|3#9920 | G51: 14#199625|3#106720 | H51: 14#214870|3#80410 | I51: 4.909090909 | J51: 0.09090909091 | K51: 2.954545455
B52: 45 | C52: 45 | D52: 2#936|1#6240|3#312|4#312 | E52: 3.000000 | F52: 14#16250|3#10600 | G52: 14#215035|3#116640 | H52: 14#231115|3#87595 | I52: 5 | J52: 0.09090909091 | K52: 3
B53: 46 | C53: 46 | D53: 2#972|1#6480|3#324|4#324 | E53: 3.045455 | F53: 14#17110|3#11305 | G53: 14#231285|3#127240 | H53: 14#248223|3#95255 | I53: 5.090909091 | J53: 0.09090909091 | K53: 3.045454545
B54: 47 | C54: 47 | D54: 2#1008|1#6720|3#336|4#336 | E54: 3.090909 | F54: 14#18000|3#12050 | G54: 14#248395|3#138545 | H54: 14#266222|3#103410 | I54: 5.181818182 | J54: 0.09090909091 | K54: 3.090909091
B55: 48 | C55: 48 | D55: 2#1044|1#6960|3#348|4#348 | E55: 3.136364 | F55: 14#18920|3#12820 | G55: 14#266395|3#150595 | H55: 14#285141|3#112085 | I55: 5.272727273 | J55: 0.09090909091 | K55: 3.136363636
B56: 49 | C56: 49 | D56: 2#1080|1#7200|3#360|4#360 | E56: 3.181818 | F56: 14#19870|3#13625 | G56: 14#285315|3#163415 | H56: 14#305008|3#121295 | I56: 5.363636364 | J56: 0.09090909091 | K56: 3.181818182
B57: 50 | C57: 50 | D57: 2#1116|1#7440|3#372|4#372 | E57: 3.227273 | F57: 14#20850|3#14460 | G57: 14#305185|3#177040 | H57: 14#325853|3#131065 | I57: 5.454545455 | J57: 0.09090909091 | K57: 3.227272727
B58: 51 | C58: 51 | D58: 2#1155|1#7700|3#385|4#385 | E58: 3.272727 | F58: 14#21855|3#15330 | G58: 14#326035|3#191500 | H58: 14#347705|3#141420 | I58: 5.545454545 | J58: 0.09090909091 | K58: 3.272727273
B59: 52 | C59: 52 | D59: 2#1194|1#7960|3#398|4#398 | E59: 3.318182 | F59: 14#22890|3#16230 | G59: 14#347890|3#206830 | H59: 14#370594|3#152380 | I59: 5.636363636 | J59: 0.09090909091 | K59: 3.318181818
B60: 53 | C60: 53 | D60: 2#1233|1#8220|3#411|4#411 | E60: 3.363636 | F60: 14#23960|3#17170 | G60: 14#370780|3#223060 | H60: 14#394550|3#163965 | I60: 5.727272727 | J60: 0.09090909091 | K60: 3.363636364
B61: 54 | C61: 54 | D61: 2#1272|1#8480|3#424|4#424 | E61: 3.409091 | F61: 14#25055|3#18140 | G61: 14#394740|3#240230 | H61: 14#419604|3#176200 | I61: 5.818181818 | J61: 0.09090909091 | K61: 3.409090909
B62: 55 | C62: 55 | D62: 2#1311|1#8740|3#437|4#437 | E62: 3.454545 | F62: 14#26185|3#19150 | G62: 14#419795|3#258370 | H62: 14#445787|3#189110 | I62: 5.909090909 | J62: 0.09090909091 | K62: 3.454545455
B63: 56 | C63: 56 | D63: 2#1353|1#9020|3#451|4#451 | E63: 3.500000 | F63: 14#27345|3#20195 | G63: 14#445980|3#277520 | H63: 14#473131|3#202720 | I63: 6 | J63: 0.09090909091 | K63: 3.5
B64: 57 | C64: 57 | D64: 2#1395|1#9300|3#465|4#465 | E64: 3.545455 | F64: 14#28540|3#21275 | G64: 14#473325|3#297715 | H64: 14#501667|3#217055 | I64: 6.090909091 | J64: 0.09090909091 | K64: 3.545454545
B65: 58 | C65: 58 | D65: 2#1437|1#9580|3#479|4#479 | E65: 3.590909 | F65: 14#29765|3#22395 | G65: 14#501865|3#318990 | H65: 14#531428|3#232135 | I65: 6.181818182 | J65: 0.09090909091 | K65: 3.590909091
B66: 59 | C66: 59 | D66: 2#1479|1#9860|3#493|4#493 | E66: 3.636364 | F66: 14#31020|3#23550 | G66: 14#531630|3#341385 | H66: 14#562446|3#247990 | I66: 6.272727273 | J66: 0.09090909091 | K66: 3.636363636
B67: 60 | C67: 60 | D67: 2#1521|1#10140|3#507|4#507 | E67: 3.681818 | F67: 14#32310|3#24745 | G67: 14#562650|3#364935 | H67: 14#594754|3#264645 | I67: 6.363636364 | J67: 0.09090909091 | K67: 3.681818182
B68: 61 | C68: 61 | D68: 2#1566|1#10440|3#522|4#522 | E68: 3.727273 | F68: 14#33635|3#25980 | G68: 14#594960|3#389680 | H68: 14#628386|3#282125 | I68: 6.454545455 | J68: 0.09090909091 | K68: 3.727272727
B69: 62 | C69: 62 | D69: 2#1611|1#10740|3#537|4#537 | E69: 3.772727 | F69: 14#34995|3#27250 | G69: 14#628595|3#415660 | H69: 14#663375|3#300455 | I69: 6.545454545 | J69: 0.09090909091 | K69: 3.772727273
B70: 63 | C70: 63 | D70: 2#1656|1#11040|3#552|4#552 | E70: 3.818182 | F70: 14#36385|3#28565 | G70: 14#663590|3#442910 | H70: 14#699755|3#319665 | I70: 6.636363636 | J70: 0.09090909091 | K70: 3.818181818
B71: 64 | C71: 64 | D71: 2#1701|1#11340|3#567|4#567 | E71: 3.863636 | F71: 14#37810|3#29920 | G71: 14#699975|3#471475 | H71: 14#737560|3#339780 | I71: 6.727272727 | J71: 0.09090909091 | K71: 3.863636364
B72: 65 | C72: 65 | D72: 2#1746|1#11640|3#582|4#582 | E72: 3.909091 | F72: 14#39270|3#31315 | G72: 14#737785|3#501395 | H72: 14#776825|3#360825 | I72: 6.818181818 | J72: 0.09090909091 | K72: 3.909090909
B73: 66 | C73: 66 | D73: 2#1794|1#11960|3#598|4#598 | E73: 3.954545 | F73: 14#40770|3#32750 | G73: 14#777055|3#532710 | H73: 14#817585|3#382830 | I73: =(C73+10)/11 -> 6.909090909 | J73: 0.09090909091 | K73: 3.954545455
B74: 67 | C74: 67 | D74: 2#1842|1#12280|3#614|4#614 | E74: 4.000000 | F74: 14#42300|3#34230 | G74: 14#817825|3#565460 | H74: 14#859875|3#405825 | I74: 7 | J74: =I74-I73 -> 0.09090909091 | K74: 4
B75: 68 | C75: 68 | D75: 2#1890|1#12600|3#630|4#630 | E75: 4.045455 | F75: 14#43870|3#35755 | G75: 14#860125|3#599690 | H75: 14#903730|3#429840 | I75: 7.090909091 | J75: 0.09090909091 | K75: =K74+J75/2 -> 4.045454545
B76: 69 | C76: 69 | D76: 2#1938|1#12920|3#646|4#646 | E76: 4.090909 | F76: 14#45475|3#37320 | G76: 14#903995|3#635445 | H76: 14#949186|3#454900 | I76: 7.181818182 | J76: 0.09090909091 | K76: 4.090909091
B77: 70 | C77: 70 | D77: 2#1986|1#13240|3#662|4#662 | E77: 4.136364 | F77: 14#47120|3#38930 | G77: 14#949470|3#672765 | H77: 14#996279|3#481035 | I77: 7.272727273 | J77: 0.09090909091 | K77: 4.136363636
B78: 71 | C78: 71 | D78: 2#2037|1#13580|3#679|4#679 | E78: 4.181818 | F78: 14#48800|3#40585 | G78: 14#996590|3#711695 | H78: 14#1045045|3#508275 | I78: 7.363636364 | J78: 0.09090909091 | K78: 4.181818182
B79: 72 | C79: 72 | D79: 2#2088|1#13920|3#696|4#696 | E79: 4.227273 | F79: 14#50515|3#42285 | G79: 14#1045390|3#752280 | H79: 14#1095521|3#536650 | I79: 7.454545455 | J79: 0.09090909091 | K79: 4.227272727
B80: 73 | C80: 73 | D80: 2#2139|1#14260|3#713|4#713 | E80: 4.272727 | F80: 14#52270|3#44030 | G80: 14#1095905|3#794565 | H80: 14#1147744|3#566190 | I80: 7.545454545 | J80: 0.09090909091 | K80: 4.272727273
B81: 74 | C81: 74 | D81: 2#2190|1#14600|3#730|4#730 | E81: 4.318182 | F81: 14#54065|3#45820 | G81: 14#1148175|3#838595 | H81: 14#1201751|3#596930 | I81: 7.636363636 | J81: 0.09090909091 | K81: 4.318181818
B82: 75 | C82: 75 | D82: 2#2241|1#14940|3#747|4#747 | E82: 4.363636 | F82: 14#55900|3#47660 | G82: 14#1202240|3#884415 | H82: 14#1257579|3#628895 | I82: 7.727272727 | J82: 0.09090909091 | K82: 4.363636364
B83: 76 | C83: 76 | D83: 2#2295|1#15300|3#765|4#765 | E83: 4.409091 | F83: 14#57770|3#49545 | G83: 14#1258140|3#932075 | H83: 14#1315266|3#662120 | I83: 7.818181818 | J83: 0.09090909091 | K83: 4.409090909
B84: 77 | C84: 77 | D84: 2#2349|1#15660|3#783|4#783 | E84: 4.454545 | F84: 14#59680|3#51475 | G84: 14#1315910|3#981620 | H84: 14#1374850|3#696635 | I84: 7.909090909 | J84: 0.09090909091 | K84: 4.454545455
B85: 78 | C85: 78 | D85: 2#2403|1#16020|3#801|4#801 | E85: 4.500000 | F85: 14#61635|3#53455 | G85: 14#1375590|3#1033095 | H85: 14#1436370|3#732475 | I85: 8 | J85: 0.09090909091 | K85: 4.5
B86: 79 | C86: 79 | D86: 2#2457|1#16380|3#819|4#819 | E86: 4.545455 | F86: 14#63625|3#55485 | G86: 14#1437225|3#1086550 | H86: 14#1499864|3#769670 | I86: 8.090909091 | J86: 0.09090909091 | K86: 4.545454545
B87: 80 | C87: 80 | D87: 2#2511|1#16740|3#837|4#837 | E87: 4.590909 | F87: 14#65660|3#57565 | G87: 14#1500850|3#1142035 | H87: 14#1565371|3#808255 | I87: 8.181818182 | J87: 0.09090909091 | K87: 4.590909091
B88: 81 | C88: 81 | D88: 2#2568|1#17120|3#856|4#856 | E88: 4.636364 | F88: 14#67735|3#59695 | G88: 14#1566510|3#1199600 | H88: 14#1632931|3#848260 | I88: 8.272727273 | J88: 0.09090909091 | K88: 4.636363636
B89: 82 | C89: 82 | D89: 2#2625|1#17500|3#875|4#875 | E89: 4.681818 | F89: 14#69850|3#61875 | G89: 14#1634245|3#1259295 | H89: 14#1702583|3#889720 | I89: 8.363636364 | J89: 0.09090909091 | K89: 4.681818182
B90: 83 | C90: 83 | D90: 2#2682|1#17880|3#894|4#894 | E90: 4.727273 | F90: 14#72010|3#64105 | G90: 14#1704095|3#1321170 | H90: 14#1774367|3#932670 | I90: 8.454545455 | J90: 0.09090909091 | K90: 4.727272727
B91: 84 | C91: 84 | D91: 2#2739|1#18260|3#913|4#913 | E91: 4.772727 | F91: 14#74210|3#66385 | G91: 14#1776105|3#1385275 | H91: 14#1848323|3#977140 | I91: 8.545454545 | J91: 0.09090909091 | K91: 4.772727273
B92: 85 | C92: 85 | D92: 2#2796|1#18640|3#932|4#932 | E92: 4.818182 | F92: 14#76455|3#68715 | G92: 14#1850315|3#1451660 | H92: 14#1924492|3#1023170 | I92: 8.636363636 | J92: 0.09090909091 | K92: 4.818181818
B93: 86 | C93: 86 | D93: 2#2856|1#19040|3#952|4#952 | E93: 4.863636 | F93: 14#78740|3#71100 | G93: 14#1926770|3#1520375 | H93: 14#2002915|3#1070790 | I93: 8.727272727 | J93: 0.09090909091 | K93: 4.863636364
B94: 87 | C94: 87 | D94: 2#2916|1#19440|3#972|4#972 | E94: 4.909091 | F94: 14#81070|3#73540 | G94: 14#2005510|3#1591475 | H94: 14#2083633|3#1120040 | I94: 8.818181818 | J94: 0.09090909091 | K94: 4.909090909
B95: 88 | C95: 88 | D95: 2#2976|1#19840|3#992|4#992 | E95: 4.954545 | F95: 14#83445|3#76030 | G95: 14#2086580|3#1665015 | H95: 14#2166687|3#1170950 | I95: 8.909090909 | J95: 0.09090909091 | K95: 4.954545455
B96: 89 | C96: 89 | D96: 2#3036|1#20240|3#1012|4#1012 | E96: 5.000000 | F96: 14#85865|3#78575 | G96: 14#2170025|3#1741045 | H96: 14#2252119|3#1223560 | I96: 9 | J96: 0.09090909091 | K96: 5
B97: 90 | C97: 90 | D97: 2#3096|1#20640|3#1032|4#1032 | E97: 5.045455 | F97: 14#88330|3#81170 | G97: 14#2255890|3#1819620 | H97: 14#2339971|3#1277905 | I97: 9.090909091 | J97: 0.09090909091 | K97: 5.045454545
B98: 91 | C98: 91 | D98: 2#3159|1#21060|3#1053|4#1053 | E98: 5.090909 | F98: 14#90835|3#83825 | G98: 14#2344220|3#1900790 | H98: 14#2430285|3#1334020 | I98: 9.181818182 | J98: 0.09090909091 | K98: 5.090909091
B99: 92 | C99: 92 | D99: 2#3222|1#21480|3#1074|4#1074 | E99: 5.136364 | F99: 14#93390|3#86535 | G99: 14#2435055|3#1984615 | H99: 14#2523104|3#1391945 | I99: 9.272727273 | J99: 0.09090909091 | K99: 5.136363636
B100: 93 | C100: 93 | D100: 2#3285|1#21900|3#1095|4#1095 | E100: 5.181818 | F100: 14#95990|3#89295 | G100: 14#2528445|3#2071150 | H100: 14#2618471|3#1451715 | I100: 9.363636364 | J100: 0.09090909091 | K100: 5.181818182
B101: 94 | C101: 94 | D101: 2#3348|1#22320|3#1116|4#1116 | E101: 5.227273 | F101: 14#98640|3#92115 | G101: 14#2624435|3#2160445 | H101: 14#2716429|3#1513365 | I101: 9.454545455 | J101: 0.09090909091 | K101: 5.227272727
B102: 95 | C102: 95 | D102: 2#3411|1#22740|3#1137|4#1137 | E102: 5.272727 | F102: 14#101330|3#94995 | G102: 14#2723075|3#2252560 | H102: 14#2817021|3#1576935 | I102: 9.545454545 | J102: 0.09090909091 | K102: 5.272727273
B103: 96 | C103: 96 | D103: 2#3477|1#23180|3#1159|4#1159 | E103: 5.318182 | F103: 14#104070|3#97925 | G103: 14#2824405|3#2347555 | H103: 14#2920291|3#1642460 | I103: 9.636363636 | J103: 0.09090909091 | K103: 5.318181818
B104: 97 | C104: 97 | D104: 2#3543|1#23620|3#1181|4#1181 | E104: 5.363636 | F104: 14#106860|3#100915 | G104: 14#2928475|3#2445480 | H104: 14#3026283|3#1709985 | I104: 9.727272727 | J104: 0.09090909091 | K104: 5.363636364
B105: 98 | C105: 98 | D105: 2#3609|1#24060|3#1203|4#1203 | E105: 5.409091 | F105: 14#109695|3#103965 | G105: 14#3035335|3#2546395 | H105: 14#3135042|3#1779545 | I105: 9.818181818 | J105: 0.09090909091 | K105: 5.409090909
B106: 99 | C106: 99 | D106: 2#3675|1#24500|3#1225|4#1225 | E106: 5.454545 | F106: 14#112580|3#107070 | G106: 14#3145030|3#2650360 | H106: 14#3246612|3#1851175 | I106: 9.909090909 | J106: 0.09090909091 | K106: 5.454545455
B107: 100 | C107: 100 | D107: 2#3741|1#24940|3#1247|4#1247 | E107: 5.513700 | F107: 14#115510|3#110235 | G107: 14#3257610|3#2757430 | H107: 14#3361038|3#1924920 | I107: 10 | J107: 0.09090909091 | K107: 5.5
B108: 101 | C108: 101 | D108: 2#3810|1#25400|3#1270|4#1270 | E108: 5.573417 | F108: 14#118495|3#113460 | G108: 14#3373120|3#2867665 | H108: 14#3478366|3#2000815 | I108: 10.09090909 | K108: =I108-4.5 -> 5.590909091
B109: 102 | C109: 102 | D109: 2#3879|1#25860|3#1293|4#1293 | E109: 5.633134 | F109: 14#121525|3#116885 | G109: 14#3491615|3#2981125 | H109: 14#3598641|3#2078995 | I109: 10.18181818 | K109: =I109-4.5 -> 5.681818182
B110: 103 | C110: 103 | D110: 2#3948|1#26320|3#1316|4#1316 | E110: 5.692852 | F110: 14#124605|3#120375 | G110: 14#3613140|3#3098010 | H110: 14#3721909|3#2159505 | I110: 10.27272727 | K110: 5.772727273
B111: 104 | C111: 104 | D111: 2#4017|1#26780|3#1339|4#1339 | E111: 5.752569 | F111: 14#127735|3#123935 | G111: 14#3737745|3#3218385 | H111: 14#3848216|3#2242390 | I111: 10.36363636 | K111: 5.863636364
B112: 105 | C112: 105 | D112: 2#4086|1#27240|3#1362|4#1362 | E112: 5.812286 | F112: 14#130920|3#127565 | G112: 14#3865480|3#3342320 | H112: 14#3977609|3#2327695 | I112: 10.45454545 | K112: 5.954545455
B113: 106 | C113: 106 | D113: 2#4158|1#27720|3#1386|4#1386 | E113: 5.872003 | F113: 14#134150|3#131265 | G113: 14#3996400|3#3469885 | H113: 14#4110135|3#2415470 | I113: 10.54545455 | K113: 6.045454545
B114: 107 | C114: 107 | D114: 2#4230|1#28200|3#1410|4#1410 | E114: 5.931720 | F114: 14#137435|3#135035 | G114: 14#4130550|3#3601150 | H114: 14#4245841|3#2505760 | I114: 10.63636364 | K114: 6.136363636
B115: 108 | C115: 108 | D115: 2#4302|1#28680|3#1434|4#1434 | E115: 5.991438 | F115: 14#140770|3#138875 | G115: 14#4267985|3#3736185 | H115: 14#4384774|3#2598615 | I115: 10.72727273 | K115: 6.227272727
B116: 109 | C116: 109 | D116: 2#4374|1#29160|3#1458|4#1458 | E116: 6.051155 | F116: 14#144160|3#142790 | G116: 14#4408755|3#3875060 | H116: 14#4526982|3#2694085 | I116: 10.81818182 | K116: 6.318181818
B117: 110 | C117: 110 | D117: 2#4446|1#29640|3#1482|4#1482 | E117: 6.110872 | F117: 14#147600|3#146780 | G117: 14#4552915|3#4017850 | H117: 14#4672513|3#2792215 | I117: 10.90909091 | K117: 6.409090909
B118: 111 | C118: 111 | D118: 2#4521|1#30140|3#1507|4#1507 | E118: 6.170589 | F118: 14#151095|3#150840 | G118: 14#4700515|3#4164630 | H118: 14#4821415|3#2893055 | I118: 11 | K118: 6.5
B119: 112 | C119: 112 | D119: 2#4596|1#30640|3#1532|4#1532 | E119: 6.230306 | F119: 14#154640|3#154975 | G119: 14#4851610|3#4315470 | H119: 14#4973737|3#2996655 | I119: 11.09090909 | K119: 6.590909091
B120: 113 | C120: 113 | D120: 2#4671|1#31140|3#1557|4#1557 | E120: 6.290024 | F120: 14#158245|3#159185 | G120: 14#5006250|3#4470445 | H120: 14#5129528|3#3103065 | I120: 11.18181818 | K120: 6.681818182
B121: 114 | C121: 114 | D121: 2#4746|1#31640|3#1582|4#1582 | E121: 6.349741 | F121: 14#161900|3#163475 | G121: 14#5164495|3#4629630 | H121: 14#5288837|3#3212335 | I121: 11.27272727 | K121: 6.772727273
B122: 115 | C122: 115 | D122: 2#4821|1#32140|3#1607|4#1607 | E122: 6.409458 | F122: 14#165610|3#167835 | G122: 14#5326395|3#4793105 | H122: 14#5451713|3#3324515 | I122: 11.36363636 | K122: 6.863636364
B123: 116 | C123: 116 | D123: 2#4899|1#32660|3#1633|4#1633 | E123: 6.469175 | F123: 14#169375|3#172275 | G123: 14#5492005|3#4960940 | H123: 14#5618206|3#3439660 | I123: 11.45454545 | K123: 6.954545455
B124: 117 | C124: 117 | D124: 2#4977|1#33180|3#1659|4#1659 | E124: 6.528893 | F124: 14#173195|3#176795 | G124: 14#5661380|3#5133215 | H124: 14#5788366|3#3557820 | I124: 11.54545455 | K124: 7.045454545
B125: 118 | C125: 118 | D125: 2#5055|1#33700|3#1685|4#1685 | E125: 6.588610 | F125: 14#177070|3#181390 | G125: 14#5834575|3#5310010 | H125: 14#5962244|3#3679045 | I125: 11.63636364 | K125: 7.136363636
B126: 119 | C126: 119 | D126: 2#5133|1#34220|3#1711|4#1711 | E126: 6.648327 | F126: 14#181000|3#186065 | G126: 14#6011645|3#5491400 | H126: 14#6139890|3#3803390 | I126: 11.72727273 | K126: 7.227272727
B127: 120 | C127: 120 | D127: 2#5211|1#34740|3#1737|4#1737 | E127: 6.708044 | F127: 14#184990|3#190820 | G127: 14#6192645|3#5677465 | H127: 14#6321355|3#3930905 | I127: 11.81818182 | K127: 7.318181818
B128: 121 | C128: 121 | D128: 2#5292|1#35280|3#1764|4#1764 | E128: 6.767761 | F128: 14#189035|3#195655 | G128: 14#6377635|3#5868285 | H128: 14#6506691|3#4061650 | I128: 11.90909091 | K128: 7.409090909
B129: 122 | C129: 122 | D129: 2#5373|1#35820|3#1791|4#1791 | E129: 6.827479 | F129: 14#193135|3#200575 | G129: 14#6566670|3#6063940 | H129: 14#6695949|3#4195675 | I129: 12 | K129: 7.5
B130: 123 | C130: 123 | D130: 2#5454|1#36360|3#1818|4#1818 | E130: 6.887196 | F130: 14#197295|3#205570 | G130: 14#6759805|3#6264515 | H130: 14#6889181|3#4333035 | I130: 12.09090909 | K130: 7.590909091
B131: 124 | C131: 124 | D131: 2#5535|1#36900|3#1845|4#1845 | E131: 6.946913 | F131: 14#201515|3#210655 | G131: 14#6957100|3#6470085 | H131: 14#7086439|3#4473785 | I131: 12.18181818 | K131: 7.681818182
B132: 125 | C132: 125 | D132: 2#5616|1#37440|3#1872|4#1872 | E132: 7.006630 | F132: 14#205790|3#215815 | G132: 14#7158615|3#6680740 | H132: 14#7287776|3#4617980 | I132: 12.27272727 | K132: 7.772727273
B133: 126 | C133: 126 | D133: 2#5700|1#38000|3#1900|4#1900 | E133: 7.066347 | F133: 14#210130|3#221065 | G133: 14#7364405|3#6896555 | H133: 14#7493245|3#4765675 | I133: 12.36363636 | K133: 7.863636364
B134: 127 | C134: 127 | D134: 2#5784|1#38560|3#1928|4#1928 | E134: 7.126065 | F134: 14#214525|3#226400 | G134: 14#7574535|3#7117620 | H134: 14#7702899|3#4916925 | I134: 12.45454545 | K134: 7.954545455
B135: 128 | C135: 128 | D135: 2#5868|1#39120|3#1956|4#1956 | E135: 7.185782 | F135: 14#218980|3#231815 | G135: 14#7789060|3#7344020 | H135: 14#7916791|3#5071790 | I135: 12.54545455 | K135: 8.045454545
B136: 129 | C136: 129 | D136: 2#5952|1#39680|3#1984|4#1984 | E136: 7.245499 | F136: 14#223495|3#237320 | G136: 14#8008040|3#7575835 | H136: 14#8134975|3#5230330 | I136: 12.63636364 | K136: 8.136363636
B137: 130 | C137: 130 | D137: 2#6036|1#40240|3#2012|4#2012 | E137: 7.305216 | F137: 14#228070|3#242910 | G137: 14#8231535|3#7813155 | H137: 14#8357505|3#5392600 | I137: =(C137+10)/11 -> 12.72727273 | K137: 8.227272727
B138: 131 | C138: 131 | D138: 2#6123|1#40820|3#2041|4#2041 | E138: 7.364933 | F138: 14#232705|3#248585 | G138: 14#8459605|3#8056065 | H138: 14#8584435|3#5558655 | I138: 12.81818182 | K138: 8.318181818
B139: 132 | C139: 132 | D139: 2#6210|1#41400|3#2070|4#2070 | E139: 7.424651 | F139: 14#237400|3#254355 | G139: 14#8692310|3#8304650 | H139: 14#8815820|3#5728555 | I139: 12.90909091 | K139: 8.409090909
B140: 133 | C140: 133 | D140: 2#6297|1#41980|3#2099|4#2099 | E140: 7.484368 | F140: 14#242160|3#260205 | G140: 14#8929710|3#8559005 | H140: 14#9051715|3#5902360 | I140: 13 | K140: 8.5
B141: 134 | C141: 134 | D141: 2#6384|1#42560|3#2128|4#2128 | E141: 7.544085 | F141: 14#246980|3#266150 | G141: 14#9171870|3#8819210 | H141: 14#9292175|3#6080130 | I141: 13.09090909 | K141: 8.590909091
B142: 135 | C142: 135 | D142: 2#6471|1#43140|3#2157|4#2157 | E142: 7.603802 | F142: 14#251865|3#272185 | G142: 14#9418850|3#9085360 | H142: 14#9537255|3#6261925 | I142: 13.18181818 | K142: 8.681818182
B143: 136 | C143: 136 | D143: 2#6561|1#43740|3#2187|4#2187 | E143: 7.663519 | F143: 14#256810|3#278305 | G143: 14#9670715|3#9357545 | H143: 14#9787011|3#6447805 | I143: 13.27272727 | K143: 8.772727273
B144: 137 | C144: 137 | D144: 2#6651|1#44340|3#2217|4#2217 | E144: 7.723237 | F144: 14#261820|3#284520 | G144: 14#9927525|3#9635850 | H144: 14#10041499|3#6637830 | I144: 13.36363636 | K144: 8.863636364
B145: 138 | C145: 138 | D145: 2#6741|1#44940|3#2247|4#2247 | E145: 7.782954 | F145: 14#266890|3#290830 | G145: 14#10189345|3#9920370 | H145: 14#10300776|3#6832065 | I145: 13.45454545 | K145: 8.954545455
B146: 139 | C146: 139 | D146: 2#6831|1#45540|3#2277|4#2277 | E146: 7.842671 | F146: 14#272025|3#297230 | G146: 14#10456235|3#10211200 | H146: 14#10564898|3#7030570 | I146: 13.54545455 | K146: 9.045454545
B147: 140 | C147: 140 | D147: 2#6921|1#46140|3#2307|4#2307 | E147: 7.902388 | F147: 14#277230|3#303720 | G147: 14#10728260|3#10508430 | H147: 14#10833922|3#7233405 | I147: 13.63636364 | K147: 9.136363636
B148: 141 | C148: 141 | D148: 2#7014|1#46760|3#2338|4#2338 | E148: 7.964919 | F148: 14#282495|3#310310 | G148: 14#11005490|3#10812150 | H148: 14#11107906|3#7440635 | I148: 13.72727273 | K148: 9.227272727
B149: 142 | C149: 142 | D149: 2#7107|1#47380|3#2369|4#2369 | E149: 8.027449 | F149: 14#287825|3#316990 | G149: 14#11287985|3#11122460 | H149: 14#11386907|3#7652320 | I149: 13.81818182 | K149: 9.318181818
B150: 143 | C150: 143 | D150: 2#7200|1#48000|3#2400|4#2400 | E150: 8.089980 | F150: 14#293220|3#323765 | G150: 14#11575810|3#11439450 | H150: 14#11670983|3#7868525 | I150: 13.90909091 | K150: 9.409090909
B151: 144 | C151: 144 | D151: 2#7293|1#48620|3#2431|4#2431 | E151: 8.152510 | F151: 14#298680|3#330640 | G151: 14#11869030|3#11763215 | H151: 14#11960192|3#8089315 | I151: 14 | K151: 9.5
B152: 145 | C152: 145 | D152: 2#7386|1#49240|3#2462|4#2462 | E152: 8.215041 | F152: 14#304210|3#337610 | G152: 14#12167710|3#12093855 | H152: 14#12254593|3#8314755 | I152: 14.09090909 | K152: 9.590909091
B153: 146 | C153: 146 | D153: 2#7482|1#49880|3#2494|4#2494 | E153: 8.277571 | F153: 14#309805|3#344675 | G153: 14#12471920|3#12431465 | H153: 14#12554245|3#8544910 | I153: 14.18181818 | K153: 9.681818182
B154: 147 | C154: 147 | D154: 2#7578|1#50520|3#2526|4#2526 | E154: 8.340102 | F154: 14#315465|3#351840 | G154: 14#12781725|3#12776140 | H154: 14#12859207|3#8779840 | I154: 14.27272727 | K154: 9.772727273
B155: 148 | C155: 148 | D155: 2#7674|1#51160|3#2558|4#2558 | E155: 8.402632 | F155: 14#321195|3#359105 | G155: 14#13097190|3#13127980 | H155: 14#13169538|3#9019615 | I155: 14.36363636 | K155: 9.863636364
B156: 149 | C156: 149 | D156: 2#7770|1#51800|3#2590|4#2590 | E156: 8.465163 | F156: 14#326990|3#366470 | G156: 14#13418385|3#13487085 | H156: 14#13485298|3#9264305 | I156: 14.45454545 | K156: 9.954545455
B157: 150 | C157: 150 | D157: 2#7866|1#52440|3#2622|4#2622 | E157: 8.527693 | F157: 14#332855|3#373930 | G157: 14#13745375|3#13853555 | H157: 14#13806547|3#9513970 | I157: 14.54545455 | K157: 10.04545455
B158: 151 | C158: 151 | D158: 2#7965|1#53100|3#2655|4#2655 | E158: 8.590224 | F158: 14#338790|3#381495 | G158: 14#14078230|3#14227485 | H158: 14#14133345|3#9768680 | I158: 14.63636364 | K158: 10.13636364
B159: 152 | C159: 152 | D159: 2#8064|1#53760|3#2688|4#2688 | E159: 8.652755 | F159: 14#344795|3#389160 | G159: 14#14417020|3#14608980 | H159: 14#14465753|3#10028505 | I159: 14.72727273 | K159: 10.22727273
B160: 153 | C160: 153 | D160: 2#8163|1#54420|3#2721|4#2721 | E160: 8.715285 | F160: 14#350865|3#396930 | G160: 14#14761815|3#14998140 | H160: 14#14803832|3#10293510 | I160: 14.81818182 | K160: 10.31818182
B161: 154 | C161: 154 | D161: 2#8262|1#55080|3#2754|4#2754 | E161: 8.777816 | F161: 14#357010|3#404800 | G161: 14#15112680|3#15395070 | H161: 14#15147643|3#10563765 | I161: 14.90909091 | K161: 10.40909091
B162: 155 | C162: 155 | D162: 2#8361|1#55740|3#2787|4#2787 | E162: 8.840346 | F162: 14#363220|3#412775 | G162: 14#15469690|3#15799870 | H162: 14#15497247|3#10839340 | I162: 15 | K162: 10.5
B163: 156 | C163: 156 | D163: 2#8463|1#56420|3#2821|4#2821 | E163: 8.902877 | F163: 14#369505|3#420850 | G163: 14#15832910|3#16212645 | H163: 14#15852706|3#11120300 | I163: 15.09090909 | K163: 10.59090909
B164: 157 | C164: 157 | D164: 2#8565|1#57100|3#2855|4#2855 | E164: 8.965407 | F164: 14#375855|3#429035 | G164: 14#16202415|3#16633495 | H164: 14#16214082|3#11406720 | I164: 15.18181818 | K164: 10.68181818
B165: 158 | C165: 158 | D165: 2#8667|1#57780|3#2889|4#2889 | E165: 9.027938 | F165: 14#382280|3#437320 | G165: 14#16578270|3#17062530 | H165: 14#16581438|3#11698665 | I165: 15.27272727 | K165: 10.77272727
B166: 159 | C166: 159 | D166: 2#8769|1#58460|3#2923|4#2923 | E166: 9.090468 | F166: 14#388780|3#445715 | G166: 14#16960550|3#17499850 | H166: 14#16954836|3#11996210 | I166: 15.36363636 | K166: 10.86363636
B167: 160 | C167: 160 | D167: 2#8871|1#59140|3#2957|4#2957 | E167: 9.152999 | F167: 14#395350|3#454215 | G167: 14#17349330|3#17945565 | H167: 14#17334339|3#12299425 | I167: 15.45454545 | K167: 10.95454545
B168: 161 | C168: 161 | D168: 2#8976|1#59840|3#2992|4#2992 | E168: 9.217780 | F168: 14#401990|3#462825 | G168: 14#17744680|3#18399780 | H168: 14#17720011|3#12608380 | I168: 15.54545455 | K168: 11.04545455
B169: 162 | C169: 162 | D169: 2#9081|1#60540|3#3027|4#3027 | E169: 9.282561 | F169: 14#408705|3#471545 | G169: 14#18146670|3#18862605 | H169: 14#18111915|3#12923150 | I169: 15.63636364 | K169: 11.13636364
B170: 163 | C170: 163 | D170: 2#9186|1#61240|3#3062|4#3062 | E170: 9.347342 | F170: 14#415490|3#480370 | G170: 14#18555375|3#19334150 | H170: 14#18510115|3#13243805 | I170: 15.72727273 | K170: 11.22727273
B171: 164 | C171: 164 | D171: 2#9291|1#61940|3#3097|4#3097 | E171: 9.412123 | F171: 14#422355|3#489305 | G171: 14#18970865|3#19814520 | H171: 14#18914675|3#13570420 | I171: 15.81818182 | K171: 11.31818182
B172: 165 | C172: 165 | D172: 2#9396|1#62640|3#3132|4#3132 | E172: 9.476905 | F172: 14#429290|3#498350 | G172: 14#19393220|3#20303825 | H172: 14#19325660|3#13903070 | I172: 15.90909091 | K172: 11.40909091
B173: 166 | C173: 166 | D173: 2#9504|1#63360|3#3168|4#3168 | E173: 9.541686 | F173: 14#436300|3#507505 | G173: 14#19822510|3#20802175 | H173: 14#19743135|3#14241825 | I173: 16 | K173: =I173-4.5 -> 11.5
B174: 167 | C174: 167 | D174: 2#9612|1#64080|3#3204|4#3204 | E174: 9.606467 | F174: 14#443385|3#516775 | G174: 14#20258810|3#21309680 | H174: 14#20167165|3#14586765 | I174: 16.09090909 | K174: 11.59090909
B175: 168 | C175: 168 | D175: 2#9720|1#64800|3#3240|4#3240 | E175: 9.671248 | F175: 14#450545|3#526155 | G175: 14#20702195|3#21826455 | H175: 14#20597815|3#14937960 | I175: 16.18181818 | K175: 11.68181818
B176: 169 | C176: 169 | D176: 2#9828|1#65520|3#3276|4#3276 | E176: 9.736029 | F176: 14#457780|3#535645 | G176: 14#21152740|3#22352610 | H176: 14#21035151|3#15295485 | I176: 16.27272727 | K176: 11.77272727
B177: 170 | C177: 170 | D177: 2#9936|1#66240|3#3312|4#3312 | E177: 9.800810 | F177: 14#465090|3#545255 | G177: 14#21610520|3#22888255 | H177: 14#21479239|3#15659415 | I177: 16.36363636 | K177: 11.86363636
B178: 171 | C178: 171 | D178: 2#10047|1#66980|3#3349|4#3349 | E178: 9.865592 | F178: 14#472480|3#554975 | G178: 14#22075610|3#23433510 | H178: 14#21930145|3#16029830 | I178: 16.45454545 | K178: 11.95454545
B179: 172 | C179: 172 | D179: 2#10158|1#67720|3#3386|4#3386 | E179: 9.930373 | F179: 14#479945|3#564810 | G179: 14#22548090|3#23988485 | H179: 14#22387936|3#16406805 | I179: 16.54545455 | K179: 12.04545455
B180: 173 | C180: 173 | D180: 2#10269|1#68460|3#3423|4#3423 | E180: 9.995154 | F180: 14#487485|3#574765 | G180: 14#23028035|3#24553295 | H180: 14#22852679|3#16790415 | I180: 16.63636364 | K180: 12.13636364
B181: 174 | C181: 174 | D181: 2#10380|1#69200|3#3460|4#3460 | E181: 10.059935 | F181: 14#495105|3#584830 | G181: 14#23515520|3#25128060 | H181: 14#23324441|3#17180740 | I181: 16.72727273 | K181: 12.22727273
B182: 175 | C182: 175 | D182: 2#10491|1#69940|3#3497|4#3497 | E182: 10.124716 | F182: 14#502805|3#595015 | G182: 14#24010625|3#25712890 | H182: 14#23803289|3#17577860 | I182: 16.81818182 | K182: 12.31818182
B183: 176 | C183: 176 | D183: 2#10605|1#70700|3#3535|4#3535 | E183: 10.189497 | F183: 14#510580|3#605320 | G183: 14#24513430|3#26307905 | H183: 14#24289291|3#17981850 | I183: 16.90909091 | K183: 12.40909091
B184: 177 | C184: 177 | D184: 2#10719|1#71460|3#3573|4#3573 | E184: 10.254279 | F184: 14#518435|3#615740 | G184: 14#25024010|3#26913225 | H184: 14#24782515|3#18392790 | I184: 17 | K184: 12.5
B185: 178 | C185: 178 | D185: 2#10833|1#72220|3#3611|4#3611 | E185: 10.319060 | F185: 14#526370|3#626280 | G185: 14#25542445|3#27528965 | H185: 14#25283030|3#18810760 | I185: 17.09090909 | K185: 12.59090909
B186: 179 | C186: 179 | D186: 2#10947|1#72980|3#3649|4#3649 | E186: 10.383841 | F186: 14#534385|3#636940 | G186: 14#26068815|3#28155245 | H186: 14#25790904|3#19235840 | I186: 17.18181818 | K186: 12.68181818
B187: 180 | C187: 180 | D187: 2#11061|1#73740|3#3687|4#3687 | E187: 10.448622 | F187: 14#542480|3#647720 | G187: 14#26603200|3#28792185 | H187: 14#26306206|3#19668105 | I187: 17.27272727 | K187: 12.77272727
B188: 181 | C188: 181 | D188: 2#11178|1#74520|3#3726|4#3726 | E188: 10.516779 | F188: 14#550655|3#658620 | G188: 14#27145680|3#29439905 | H188: 14#26829006|3#20107640 | I188: 17.36363636 | K188: 12.86363636
B189: 182 | C189: 182 | D189: 2#11295|1#75300|3#3765|4#3765 | E189: 10.584936 | F189: 14#558920|3#669640 | G189: 14#27696335|3#30098525 | H189: 14#27359373|3#20554530 | I189: 17.45454545 | K189: 12.95454545
B190: 183 | C190: 183 | D190: 2#11412|1#76080|3#3804|4#3804 | E190: 10.653093 | F190: 14#567280|3#680785 | G190: 14#28255255|3#30768165 | H190: 14#27897377|3#21008850 | I190: 17.54545455 | K190: 13.04545455
B191: 184 | C191: 184 | D191: 2#11529|1#76860|3#3843|4#3843 | E191: 10.721251 | F191: 14#575735|3#692055 | G191: 14#28822535|3#31448950 | H191: 14#28443088|3#21470685 | I191: 17.63636364 | K191: 13.13636364
B192: 185 | C192: 185 | D192: 2#11646|1#77640|3#3882|4#3882 | E192: 10.789408 | F192: 14#584290|3#703445 | G192: 14#29398270|3#32141005 | H192: 14#28996577|3#21940115 | I192: 17.72727273 | K192: 13.22727273
B193: 186 | C193: 186 | D193: 2#11766|1#78440|3#3922|4#3922 | E193: 10.857565 | F193: 14#592950|3#714965 | G193: 14#29982560|3#32844450 | H193: 14#29557915|3#22417225 | I193: 17.81818182 | K193: 13.31818182
B194: 187 | C194: 187 | D194: 2#11886|1#79240|3#3962|4#3962 | E194: 10.925722 | F194: 14#601715|3#726605 | G194: 14#30575510|3#33559415 | H194: 14#30127173|3#22902100 | I194: 17.90909091 | K194: 13.40909091
B195: 188 | C195: 188 | D195: 2#12006|1#80040|3#4002|4#4002 | E195: 10.993879 | F195: 14#610595|3#738370 | G195: 14#31177225|3#34286020 | H195: 14#30704422|3#23394825 | I195: 18 | K195: 13.5
B196: 189 | C196: 189 | D196: 2#12126|1#80840|3#4042|4#4042 | E196: 11.062036 | F196: 14#619595|3#750265 | G196: 14#31787820|3#35024390 | H196: 14#31289734|3#23895480 | I196: 18.09090909 | K196: 13.59090909
B197: 190 | C197: 190 | D197: 2#12246|1#81640|3#4082|4#4082 | E197: 11.130193 | F197: 14#628715|3#762285 | G197: 14#32407415|3#35774655 | H197: 14#31883181|3#24404150 | I197: 18.18181818 | K197: 13.68181818
B198: 191 | C198: 191 | D198: 2#12369|1#82460|3#4123|4#4123 | E198: 11.198351 | F198: 14#637965|3#774435 | G198: 14#33036130|3#36536940 | H198: 14#32484835|3#24920920 | I198: 18.27272727 | K198: 13.77272727
B199: 192 | C199: 192 | D199: 2#12492|1#83280|3#4164|4#4164 | E199: 11.266508 | F199: 14#647340|3#786710 | G199: 14#33674095|3#37311375 | H199: 14#33094769|3#25445880 | I199: 18.36363636 | K199: 13.86363636
B200: 193 | C200: 193 | D200: 2#12615|1#84100|3#4205|4#4205 | E200: 11.334665 | F200: 14#656855|3#799120 | G200: 14#34321435|3#38098085 | H200: 14#33713056|3#25979115 | I200: 18.45454545 | K200: 13.95454545
... 137 more rows

Sheet 备注页
A1: 14 | B1: 500 | D1: 3 | E1: 60 | G1: =[2]!SUMSTRING(A1:B1,"#") ->  | J1: =[2]!SUMSTRING(D1:E1,"#") ->  | L1: =[2]!SUMSTRING(G1:J1,"|") ->  | N1: 14 | O1: =SUM($B$1:B1)*0.6 -> 300 | P1: 3 | Q1: =SUM($E$1:E1)*0.6 -> 36 | S1: =[2]!SUMSTRING(N1:O1,"#") ->  | U1: =[2]!SUMSTRING(P1:Q1,"#") ->  | W1: =[2]!SUMSTRING(S1:U1,"|") -> 
A2: 14 | B2: 600 | D2: 3 | E2: 70 | G2: =[2]!SUMSTRING(A2:B2,"#") ->  | J2: =[2]!SUMSTRING(D2:E2,"#") ->  | L2: =[2]!SUMSTRING(G2:J2,"|") ->  | N2: 14 | O2: =SUM($B$1:B2)*0.6 -> 660 | P2: 3 | Q2: =SUM($E$1:E2)*0.6 -> 78 | S2: =[2]!SUMSTRING(N2:O2,"#") ->  | U2: =[2]!SUMSTRING(P2:Q2,"#") ->  | W2: =[2]!SUMSTRING(S2:U2,"|") -> 
A3: 14 | B3: 700 | D3: 3 | E3: 80 | G3: =[2]!SUMSTRING(A3:B3,"#") ->  | J3: =[2]!SUMSTRING(D3:E3,"#") ->  | L3: =[2]!SUMSTRING(G3:J3,"|") ->  | N3: 14 | O3: =SUM($B$1:B3)*0.6 -> 1080 | P3: 3 | Q3: =SUM($E$1:E3)*0.6 -> 126 | S3: =[2]!SUMSTRING(N3:O3,"#") ->  | U3: =[2]!SUMSTRING(P3:Q3,"#") ->  | W3: =[2]!SUMSTRING(S3:U3,"|") -> 
A4: 14 | B4: 800 | D4: 3 | E4: 90 | G4: =[2]!SUMSTRING(A4:B4,"#") ->  | J4: =[2]!SUMSTRING(D4:E4,"#") ->  | L4: =[2]!SUMSTRING(G4:J4,"|") ->  | N4: 14 | O4: =SUM($B$1:B4)*0.6 -> 1560 | P4: 3 | Q4: =SUM($E$1:E4)*0.6 -> 180 | S4: =[2]!SUMSTRING(N4:O4,"#") ->  | U4: =[2]!SUMSTRING(P4:Q4,"#") ->  | W4: =[2]!SUMSTRING(S4:U4,"|") -> 
A5: 14 | B5: 900 | D5: 3 | E5: 100 | G5: =[2]!SUMSTRING(A5:B5,"#") ->  | J5: =[2]!SUMSTRING(D5:E5,"#") ->  | L5: =[2]!SUMSTRING(G5:J5,"|") ->  | N5: 14 | O5: =SUM($B$1:B5)*0.6 -> 2100 | P5: 3 | Q5: =SUM($E$1:E5)*0.6 -> 240 | S5: =[2]!SUMSTRING(N5:O5,"#") ->  | U5: =[2]!SUMSTRING(P5:Q5,"#") ->  | W5: =[2]!SUMSTRING(S5:U5,"|") -> 
A6: 14 | B6: 1000 | D6: 3 | E6: 110 | G6: =[2]!SUMSTRING(A6:B6,"#") ->  | J6: =[2]!SUMSTRING(D6:E6,"#") ->  | L6: =[2]!SUMSTRING(G6:J6,"|") ->  | N6: 14 | O6: =SUM($B$1:B6)*0.6 -> 2700 | P6: 3 | Q6: =SUM($E$1:E6)*0.6 -> 306 | S6: =[2]!SUMSTRING(N6:O6,"#") ->  | U6: =[2]!SUMSTRING(P6:Q6,"#") ->  | W6: =[2]!SUMSTRING(S6:U6,"|") -> 
A7: 14 | B7: 1100 | D7: 3 | E7: 120 | G7: =[2]!SUMSTRING(A7:B7,"#") ->  | J7: =[2]!SUMSTRING(D7:E7,"#") ->  | L7: =[2]!SUMSTRING(G7:J7,"|") ->  | N7: 14 | O7: =SUM($B$1:B7)*0.6 -> 3360 | P7: 3 | Q7: =SUM($E$1:E7)*0.6 -> 378 | S7: =[2]!SUMSTRING(N7:O7,"#") ->  | U7: =[2]!SUMSTRING(P7:Q7,"#") ->  | W7: =[2]!SUMSTRING(S7:U7,"|") -> 
A8: 14 | B8: 1200 | D8: 3 | E8: 130 | G8: =[2]!SUMSTRING(A8:B8,"#") ->  | J8: =[2]!SUMSTRING(D8:E8,"#") ->  | L8: =[2]!SUMSTRING(G8:J8,"|") ->  | N8: 14 | O8: =SUM($B$1:B8)*0.6 -> 4080 | P8: 3 | Q8: =SUM($E$1:E8)*0.6 -> 456 | S8: =[2]!SUMSTRING(N8:O8,"#") ->  | U8: =[2]!SUMSTRING(P8:Q8,"#") ->  | W8: =[2]!SUMSTRING(S8:U8,"|") -> 
A9: 14 | B9: 1300 | D9: 3 | E9: 140 | G9: =[2]!SUMSTRING(A9:B9,"#") ->  | J9: =[2]!SUMSTRING(D9:E9,"#") ->  | L9: =[2]!SUMSTRING(G9:J9,"|") ->  | N9: 14 | O9: =SUM($B$1:B9)*0.6 -> 4860 | P9: 3 | Q9: =SUM($E$1:E9)*0.6 -> 540 | S9: =[2]!SUMSTRING(N9:O9,"#") ->  | U9: =[2]!SUMSTRING(P9:Q9,"#") ->  | W9: =[2]!SUMSTRING(S9:U9,"|") -> 
A10: 14 | B10: 1400 | D10: 3 | E10: 150 | G10: =[2]!SUMSTRING(A10:B10,"#") ->  | J10: =[2]!SUMSTRING(D10:E10,"#") ->  | L10: =[2]!SUMSTRING(G10:J10,"|") ->  | N10: 14 | O10: =SUM($B$1:B10)*0.6 -> 5700 | P10: 3 | Q10: =SUM($E$1:E10)*0.6 -> 630 | S10: =[2]!SUMSTRING(N10:O10,"#") ->  | U10: =[2]!SUMSTRING(P10:Q10,"#") ->  | W10: =[2]!SUMSTRING(S10:U10,"|") -> 
A11: 14 | B11: 1500 | D11: 3 | E11: 160 | G11: =[2]!SUMSTRING(A11:B11,"#") ->  | J11: =[2]!SUMSTRING(D11:E11,"#") ->  | L11: =[2]!SUMSTRING(G11:J11,"|") ->  | N11: 14 | O11: =SUM($B$1:B11)*0.6 -> 6600 | P11: 3 | Q11: =SUM($E$1:E11)*0.6 -> 726 | S11: =[2]!SUMSTRING(N11:O11,"#") ->  | U11: =[2]!SUMSTRING(P11:Q11,"#") ->  | W11: =[2]!SUMSTRING(S11:U11,"|") -> 
A12: 14 | B12: 1600 | D12: 3 | E12: 170 | G12: =[2]!SUMSTRING(A12:B12,"#") ->  | J12: =[2]!SUMSTRING(D12:E12,"#") ->  | L12: =[2]!SUMSTRING(G12:J12,"|") ->  | N12: 14 | O12: =SUM($B$1:B12)*0.6 -> 7560 | P12: 3 | Q12: =SUM($E$1:E12)*0.6 -> 828 | S12: =[2]!SUMSTRING(N12:O12,"#") ->  | U12: =[2]!SUMSTRING(P12:Q12,"#") ->  | W12: =[2]!SUMSTRING(S12:U12,"|") -> 
A13: 14 | B13: 1700 | D13: 3 | E13: 180 | G13: =[2]!SUMSTRING(A13:B13,"#") ->  | J13: =[2]!SUMSTRING(D13:E13,"#") ->  | L13: =[2]!SUMSTRING(G13:J13,"|") ->  | N13: 14 | O13: =SUM($B$1:B13)*0.6 -> 8580 | P13: 3 | Q13: =SUM($E$1:E13)*0.6 -> 936 | S13: =[2]!SUMSTRING(N13:O13,"#") ->  | U13: =[2]!SUMSTRING(P13:Q13,"#") ->  | W13: =[2]!SUMSTRING(S13:U13,"|") -> 
A14: 14 | B14: 1800 | D14: 3 | E14: 190 | G14: =[2]!SUMSTRING(A14:B14,"#") ->  | J14: =[2]!SUMSTRING(D14:E14,"#") ->  | L14: =[2]!SUMSTRING(G14:J14,"|") ->  | N14: 14 | O14: =SUM($B$1:B14)*0.6 -> 9660 | P14: 3 | Q14: =SUM($E$1:E14)*0.6 -> 1050 | S14: =[2]!SUMSTRING(N14:O14,"#") ->  | U14: =[2]!SUMSTRING(P14:Q14,"#") ->  | W14: =[2]!SUMSTRING(S14:U14,"|") -> 
A15: 14 | B15: 1900 | D15: 3 | E15: 200 | G15: =[2]!SUMSTRING(A15:B15,"#") ->  | J15: =[2]!SUMSTRING(D15:E15,"#") ->  | L15: =[2]!SUMSTRING(G15:J15,"|") ->  | N15: 14 | O15: =SUM($B$1:B15)*0.6 -> 10800 | P15: 3 | Q15: =SUM($E$1:E15)*0.6 -> 1170 | S15: =[2]!SUMSTRING(N15:O15,"#") ->  | U15: =[2]!SUMSTRING(P15:Q15,"#") ->  | W15: =[2]!SUMSTRING(S15:U15,"|") -> 
A16: 14 | B16: 2000 | D16: 3 | E16: 210 | G16: =[2]!SUMSTRING(A16:B16,"#") ->  | J16: =[2]!SUMSTRING(D16:E16,"#") ->  | L16: =[2]!SUMSTRING(G16:J16,"|") ->  | N16: 14 | O16: =SUM($B$1:B16)*0.6 -> 12000 | P16: 3 | Q16: =SUM($E$1:E16)*0.6 -> 1296 | S16: =[2]!SUMSTRING(N16:O16,"#") ->  | U16: =[2]!SUMSTRING(P16:Q16,"#") ->  | W16: =[2]!SUMSTRING(S16:U16,"|") -> 
A17: 14 | B17: 2100 | D17: 3 | E17: 220 | G17: =[2]!SUMSTRING(A17:B17,"#") ->  | J17: =[2]!SUMSTRING(D17:E17,"#") ->  | L17: =[2]!SUMSTRING(G17:J17,"|") ->  | N17: 14 | O17: =SUM($B$1:B17)*0.6 -> 13260 | P17: 3 | Q17: =SUM($E$1:E17)*0.6 -> 1428 | S17: =[2]!SUMSTRING(N17:O17,"#") ->  | U17: =[2]!SUMSTRING(P17:Q17,"#") ->  | W17: =[2]!SUMSTRING(S17:U17,"|") -> 
A18: 14 | B18: 2200 | D18: 3 | E18: 230 | G18: =[2]!SUMSTRING(A18:B18,"#") ->  | J18: =[2]!SUMSTRING(D18:E18,"#") ->  | L18: =[2]!SUMSTRING(G18:J18,"|") ->  | N18: 14 | O18: =SUM($B$1:B18)*0.6 -> 14580 | P18: 3 | Q18: =SUM($E$1:E18)*0.6 -> 1566 | S18: =[2]!SUMSTRING(N18:O18,"#") ->  | U18: =[2]!SUMSTRING(P18:Q18,"#") ->  | W18: =[2]!SUMSTRING(S18:U18,"|") -> 
A19: 14 | B19: 2300 | D19: 3 | E19: 240 | G19: =[2]!SUMSTRING(A19:B19,"#") ->  | J19: =[2]!SUMSTRING(D19:E19,"#") ->  | L19: =[2]!SUMSTRING(G19:J19,"|") ->  | N19: 14 | O19: =SUM($B$1:B19)*0.6 -> 15960 | P19: 3 | Q19: =SUM($E$1:E19)*0.6 -> 1710 | S19: =[2]!SUMSTRING(N19:O19,"#") ->  | U19: =[2]!SUMSTRING(P19:Q19,"#") ->  | W19: =[2]!SUMSTRING(S19:U19,"|") -> 
A20: 14 | B20: 2400 | D20: 3 | E20: 250 | G20: =[2]!SUMSTRING(A20:B20,"#") ->  | J20: =[2]!SUMSTRING(D20:E20,"#") ->  | L20: =[2]!SUMSTRING(G20:J20,"|") ->  | N20: 14 | O20: =SUM($B$1:B20)*0.6 -> 17400 | P20: 3 | Q20: =SUM($E$1:E20)*0.6 -> 1860 | S20: =[2]!SUMSTRING(N20:O20,"#") ->  | U20: =[2]!SUMSTRING(P20:Q20,"#") ->  | W20: =[2]!SUMSTRING(S20:U20,"|") -> 
A21: 14 | B21: 2500 | D21: 3 | E21: 260 | G21: =[2]!SUMSTRING(A21:B21,"#") ->  | J21: =[2]!SUMSTRING(D21:E21,"#") ->  | L21: =[2]!SUMSTRING(G21:J21,"|") ->  | N21: 14 | O21: =SUM($B$1:B21)*0.6 -> 18900 | P21: 3 | Q21: =SUM($E$1:E21)*0.6 -> 2016 | S21: =[2]!SUMSTRING(N21:O21,"#") ->  | U21: =[2]!SUMSTRING(P21:Q21,"#") ->  | W21: =[2]!SUMSTRING(S21:U21,"|") -> 
A22: 14 | B22: 2600 | D22: 3 | E22: 270 | G22: =[2]!SUMSTRING(A22:B22,"#") ->  | J22: =[2]!SUMSTRING(D22:E22,"#") ->  | L22: =[2]!SUMSTRING(G22:J22,"|") ->  | N22: 14 | O22: =SUM($B$1:B22)*0.6 -> 20460 | P22: 3 | Q22: =SUM($E$1:E22)*0.6 -> 2178 | S22: =[2]!SUMSTRING(N22:O22,"#") ->  | U22: =[2]!SUMSTRING(P22:Q22,"#") ->  | W22: =[2]!SUMSTRING(S22:U22,"|") -> 
A23: 14 | B23: 2700 | D23: 3 | E23: 280 | G23: =[2]!SUMSTRING(A23:B23,"#") ->  | J23: =[2]!SUMSTRING(D23:E23,"#") ->  | L23: =[2]!SUMSTRING(G23:J23,"|") ->  | N23: 14 | O23: =SUM($B$1:B23)*0.6 -> 22080 | P23: 3 | Q23: =SUM($E$1:E23)*0.6 -> 2346 | S23: =[2]!SUMSTRING(N23:O23,"#") ->  | U23: =[2]!SUMSTRING(P23:Q23,"#") ->  | W23: =[2]!SUMSTRING(S23:U23,"|") -> 
A24: 14 | B24: 2800 | D24: 3 | E24: 290 | G24: =[2]!SUMSTRING(A24:B24,"#") ->  | J24: =[2]!SUMSTRING(D24:E24,"#") ->  | L24: =[2]!SUMSTRING(G24:J24,"|") ->  | N24: 14 | O24: =SUM($B$1:B24)*0.6 -> 23760 | P24: 3 | Q24: =SUM($E$1:E24)*0.6 -> 2520 | S24: =[2]!SUMSTRING(N24:O24,"#") ->  | U24: =[2]!SUMSTRING(P24:Q24,"#") ->  | W24: =[2]!SUMSTRING(S24:U24,"|") -> 
A25: 14 | B25: 2900 | D25: 3 | E25: 300 | G25: =[2]!SUMSTRING(A25:B25,"#") ->  | J25: =[2]!SUMSTRING(D25:E25,"#") ->  | L25: =[2]!SUMSTRING(G25:J25,"|") ->  | N25: 14 | O25: =SUM($B$1:B25)*0.6 -> 25500 | P25: 3 | Q25: =SUM($E$1:E25)*0.6 -> 2700 | S25: =[2]!SUMSTRING(N25:O25,"#") ->  | U25: =[2]!SUMSTRING(P25:Q25,"#") ->  | W25: =[2]!SUMSTRING(S25:U25,"|") -> 
A26: 14 | B26: 3000 | D26: 3 | E26: 310 | G26: =[2]!SUMSTRING(A26:B26,"#") ->  | J26: =[2]!SUMSTRING(D26:E26,"#") ->  | L26: =[2]!SUMSTRING(G26:J26,"|") ->  | N26: 14 | O26: =SUM($B$1:B26)*0.6 -> 27300 | P26: 3 | Q26: =SUM($E$1:E26)*0.6 -> 2886 | S26: =[2]!SUMSTRING(N26:O26,"#") ->  | U26: =[2]!SUMSTRING(P26:Q26,"#") ->  | W26: =[2]!SUMSTRING(S26:U26,"|") -> 
A27: 14 | B27: 3100 | D27: 3 | E27: 320 | G27: =[2]!SUMSTRING(A27:B27,"#") ->  | J27: =[2]!SUMSTRING(D27:E27,"#") ->  | L27: =[2]!SUMSTRING(G27:J27,"|") ->  | N27: 14 | O27: =SUM($B$1:B27)*0.6 -> 29160 | P27: 3 | Q27: =SUM($E$1:E27)*0.6 -> 3078 | S27: =[2]!SUMSTRING(N27:O27,"#") ->  | U27: =[2]!SUMSTRING(P27:Q27,"#") ->  | W27: =[2]!SUMSTRING(S27:U27,"|") -> 
A28: 14 | B28: 3200 | D28: 3 | E28: 330 | G28: =[2]!SUMSTRING(A28:B28,"#") ->  | J28: =[2]!SUMSTRING(D28:E28,"#") ->  | L28: =[2]!SUMSTRING(G28:J28,"|") ->  | N28: 14 | O28: =SUM($B$1:B28)*0.6 -> 31080 | P28: 3 | Q28: =SUM($E$1:E28)*0.6 -> 3276 | S28: =[2]!SUMSTRING(N28:O28,"#") ->  | U28: =[2]!SUMSTRING(P28:Q28,"#") ->  | W28: =[2]!SUMSTRING(S28:U28,"|") -> 
A29: 14 | B29: 3300 | D29: 3 | E29: 340 | G29: =[2]!SUMSTRING(A29:B29,"#") ->  | J29: =[2]!SUMSTRING(D29:E29,"#") ->  | L29: =[2]!SUMSTRING(G29:J29,"|") ->  | N29: 14 | O29: =SUM($B$1:B29)*0.6 -> 33060 | P29: 3 | Q29: =SUM($E$1:E29)*0.6 -> 3480 | S29: =[2]!SUMSTRING(N29:O29,"#") ->  | U29: =[2]!SUMSTRING(P29:Q29,"#") ->  | W29: =[2]!SUMSTRING(S29:U29,"|") -> 
A30: 14 | B30: 3500 | D30: 3 | E30: 350 | G30: =[2]!SUMSTRING(A30:B30,"#") ->  | J30: =[2]!SUMSTRING(D30:E30,"#") ->  | L30: =[2]!SUMSTRING(G30:J30,"|") ->  | N30: 14 | O30: =SUM($B$1:B30)*0.6 -> 35160 | P30: 3 | Q30: =SUM($E$1:E30)*0.6 -> 3690 | S30: =[2]!SUMSTRING(N30:O30,"#") ->  | U30: =[2]!SUMSTRING(P30:Q30,"#") ->  | W30: =[2]!SUMSTRING(S30:U30,"|") -> 
A31: 14 | B31: 3700 | D31: 3 | E31: 360 | G31: =[2]!SUMSTRING(A31:B31,"#") ->  | J31: =[2]!SUMSTRING(D31:E31,"#") ->  | L31: =[2]!SUMSTRING(G31:J31,"|") ->  | N31: 14 | O31: =SUM($B$1:B31)*0.6 -> 37380 | P31: 3 | Q31: =SUM($E$1:E31)*0.6 -> 3906 | S31: =[2]!SUMSTRING(N31:O31,"#") ->  | U31: =[2]!SUMSTRING(P31:Q31,"#") ->  | W31: =[2]!SUMSTRING(S31:U31,"|") -> 
A32: 14 | B32: 3900 | D32: 3 | E32: 370 | G32: =[2]!SUMSTRING(A32:B32,"#") ->  | J32: =[2]!SUMSTRING(D32:E32,"#") ->  | L32: =[2]!SUMSTRING(G32:J32,"|") ->  | N32: 14 | O32: =SUM($B$1:B32)*0.6 -> 39720 | P32: 3 | Q32: =SUM($E$1:E32)*0.6 -> 4128 | S32: =[2]!SUMSTRING(N32:O32,"#") ->  | U32: =[2]!SUMSTRING(P32:Q32,"#") ->  | W32: =[2]!SUMSTRING(S32:U32,"|") -> 
A33: 14 | B33: 4100 | D33: 3 | E33: 380 | G33: =[2]!SUMSTRING(A33:B33,"#") ->  | J33: =[2]!SUMSTRING(D33:E33,"#") ->  | L33: =[2]!SUMSTRING(G33:J33,"|") ->  | N33: 14 | O33: =SUM($B$1:B33)*0.6 -> 42180 | P33: 3 | Q33: =SUM($E$1:E33)*0.6 -> 4356 | S33: =[2]!SUMSTRING(N33:O33,"#") ->  | U33: =[2]!SUMSTRING(P33:Q33,"#") ->  | W33: =[2]!SUMSTRING(S33:U33,"|") -> 
A34: 14 | B34: 4300 | D34: 3 | E34: 390 | G34: =[2]!SUMSTRING(A34:B34,"#") ->  | J34: =[2]!SUMSTRING(D34:E34,"#") ->  | L34: =[2]!SUMSTRING(G34:J34,"|") ->  | N34: 14 | O34: =SUM($B$1:B34)*0.6 -> 44760 | P34: 3 | Q34: =SUM($E$1:E34)*0.6 -> 4590 | S34: =[2]!SUMSTRING(N34:O34,"#") ->  | U34: =[2]!SUMSTRING(P34:Q34,"#") ->  | W34: =[2]!SUMSTRING(S34:U34,"|") -> 
A35: 14 | B35: 4500 | D35: 3 | E35: 400 | G35: =[2]!SUMSTRING(A35:B35,"#") ->  | J35: =[2]!SUMSTRING(D35:E35,"#") ->  | L35: =[2]!SUMSTRING(G35:J35,"|") ->  | N35: 14 | O35: =SUM($B$1:B35)*0.6 -> 47460 | P35: 3 | Q35: =SUM($E$1:E35)*0.6 -> 4830 | S35: =[2]!SUMSTRING(N35:O35,"#") ->  | U35: =[2]!SUMSTRING(P35:Q35,"#") ->  | W35: =[2]!SUMSTRING(S35:U35,"|") -> 
A36: 14 | B36: 4700 | D36: 3 | E36: 410 | G36: =[2]!SUMSTRING(A36:B36,"#") ->  | J36: =[2]!SUMSTRING(D36:E36,"#") ->  | L36: =[2]!SUMSTRING(G36:J36,"|") ->  | N36: 14 | O36: =SUM($B$1:B36)*0.6 -> 50280 | P36: 3 | Q36: =SUM($E$1:E36)*0.6 -> 5076 | S36: =[2]!SUMSTRING(N36:O36,"#") ->  | U36: =[2]!SUMSTRING(P36:Q36,"#") ->  | W36: =[2]!SUMSTRING(S36:U36,"|") -> 
A37: 14 | B37: 4900 | D37: 3 | E37: 420 | G37: =[2]!SUMSTRING(A37:B37,"#") ->  | J37: =[2]!SUMSTRING(D37:E37,"#") ->  | L37: =[2]!SUMSTRING(G37:J37,"|") ->  | N37: 14 | O37: =SUM($B$1:B37)*0.6 -> 53220 | P37: 3 | Q37: =SUM($E$1:E37)*0.6 -> 5328 | S37: =[2]!SUMSTRING(N37:O37,"#") ->  | U37: =[2]!SUMSTRING(P37:Q37,"#") ->  | W37: =[2]!SUMSTRING(S37:U37,"|") -> 
A38: 14 | B38: 5100 | D38: 3 | E38: 430 | G38: =[2]!SUMSTRING(A38:B38,"#") ->  | J38: =[2]!SUMSTRING(D38:E38,"#") ->  | L38: =[2]!SUMSTRING(G38:J38,"|") ->  | N38: 14 | O38: =SUM($B$1:B38)*0.6 -> 56280 | P38: 3 | Q38: =SUM($E$1:E38)*0.6 -> 5586 | S38: =[2]!SUMSTRING(N38:O38,"#") ->  | U38: =[2]!SUMSTRING(P38:Q38,"#") ->  | W38: =[2]!SUMSTRING(S38:U38,"|") -> 
A39: 14 | B39: 5300 | D39: 3 | E39: 440 | G39: =[2]!SUMSTRING(A39:B39,"#") ->  | J39: =[2]!SUMSTRING(D39:E39,"#") ->  | L39: =[2]!SUMSTRING(G39:J39,"|") ->  | N39: 14 | O39: =SUM($B$1:B39)*0.6 -> 59460 | P39: 3 | Q39: =SUM($E$1:E39)*0.6 -> 5850 | S39: =[2]!SUMSTRING(N39:O39,"#") ->  | U39: =[2]!SUMSTRING(P39:Q39,"#") ->  | W39: =[2]!SUMSTRING(S39:U39,"|") -> 
A40: 14 | B40: 5500 | D40: 3 | E40: 450 | G40: =[2]!SUMSTRING(A40:B40,"#") ->  | J40: =[2]!SUMSTRING(D40:E40,"#") ->  | L40: =[2]!SUMSTRING(G40:J40,"|") ->  | N40: 14 | O40: =SUM($B$1:B40)*0.6 -> 62760 | P40: 3 | Q40: =SUM($E$1:E40)*0.6 -> 6120 | S40: =[2]!SUMSTRING(N40:O40,"#") ->  | U40: =[2]!SUMSTRING(P40:Q40,"#") ->  | W40: =[2]!SUMSTRING(S40:U40,"|") -> 
A41: 14 | B41: 5700 | D41: 3 | E41: 460 | G41: =[2]!SUMSTRING(A41:B41,"#") ->  | J41: =[2]!SUMSTRING(D41:E41,"#") ->  | L41: =[2]!SUMSTRING(G41:J41,"|") ->  | N41: 14 | O41: =SUM($B$1:B41)*0.6 -> 66180 | P41: 3 | Q41: =SUM($E$1:E41)*0.6 -> 6396 | S41: =[2]!SUMSTRING(N41:O41,"#") ->  | U41: =[2]!SUMSTRING(P41:Q41,"#") ->  | W41: =[2]!SUMSTRING(S41:U41,"|") -> 
A42: 14 | B42: 5900 | D42: 3 | E42: 470 | G42: =[2]!SUMSTRING(A42:B42,"#") ->  | J42: =[2]!SUMSTRING(D42:E42,"#") ->  | L42: =[2]!SUMSTRING(G42:J42,"|") ->  | N42: 14 | O42: =SUM($B$1:B42)*0.6 -> 69720 | P42: 3 | Q42: =SUM($E$1:E42)*0.6 -> 6678 | S42: =[2]!SUMSTRING(N42:O42,"#") ->  | U42: =[2]!SUMSTRING(P42:Q42,"#") ->  | W42: =[2]!SUMSTRING(S42:U42,"|") -> 
A43: 14 | B43: 6100 | D43: 3 | E43: 480 | G43: =[2]!SUMSTRING(A43:B43,"#") ->  | J43: =[2]!SUMSTRING(D43:E43,"#") ->  | L43: =[2]!SUMSTRING(G43:J43,"|") ->  | N43: 14 | O43: =SUM($B$1:B43)*0.6 -> 73380 | P43: 3 | Q43: =SUM($E$1:E43)*0.6 -> 6966 | S43: =[2]!SUMSTRING(N43:O43,"#") ->  | U43: =[2]!SUMSTRING(P43:Q43,"#") ->  | W43: =[2]!SUMSTRING(S43:U43,"|") -> 
A44: 14 | B44: 6300 | D44: 3 | E44: 490 | G44: =[2]!SUMSTRING(A44:B44,"#") ->  | J44: =[2]!SUMSTRING(D44:E44,"#") ->  | L44: =[2]!SUMSTRING(G44:J44,"|") ->  | N44: 14 | O44: =SUM($B$1:B44)*0.6 -> 77160 | P44: 3 | Q44: =SUM($E$1:E44)*0.6 -> 7260 | S44: =[2]!SUMSTRING(N44:O44,"#") ->  | U44: =[2]!SUMSTRING(P44:Q44,"#") ->  | W44: =[2]!SUMSTRING(S44:U44,"|") -> 
A45: 14 | B45: 6500 | D45: 3 | E45: 500 | G45: =[2]!SUMSTRING(A45:B45,"#") ->  | J45: =[2]!SUMSTRING(D45:E45,"#") ->  | L45: =[2]!SUMSTRING(G45:J45,"|") ->  | N45: 14 | O45: =SUM($B$1:B45)*0.6 -> 81060 | P45: 3 | Q45: =SUM($E$1:E45)*0.6 -> 7560 | S45: =[2]!SUMSTRING(N45:O45,"#") ->  | U45: =[2]!SUMSTRING(P45:Q45,"#") ->  | W45: =[2]!SUMSTRING(S45:U45,"|") -> 
A46: 14 | B46: 6700 | D46: 3 | E46: 510 | G46: =[2]!SUMSTRING(A46:B46,"#") ->  | J46: =[2]!SUMSTRING(D46:E46,"#") ->  | L46: =[2]!SUMSTRING(G46:J46,"|") ->  | N46: 14 | O46: =SUM($B$1:B46)*0.6 -> 85080 | P46: 3 | Q46: =SUM($E$1:E46)*0.6 -> 7866 | S46: =[2]!SUMSTRING(N46:O46,"#") ->  | U46: =[2]!SUMSTRING(P46:Q46,"#") ->  | W46: =[2]!SUMSTRING(S46:U46,"|") -> 
A47: 14 | B47: 6900 | D47: 3 | E47: 520 | G47: =[2]!SUMSTRING(A47:B47,"#") ->  | J47: =[2]!SUMSTRING(D47:E47,"#") ->  | L47: =[2]!SUMSTRING(G47:J47,"|") ->  | N47: 14 | O47: =SUM($B$1:B47)*0.6 -> 89220 | P47: 3 | Q47: =SUM($E$1:E47)*0.6 -> 8178 | S47: =[2]!SUMSTRING(N47:O47,"#") ->  | U47: =[2]!SUMSTRING(P47:Q47,"#") ->  | W47: =[2]!SUMSTRING(S47:U47,"|") -> 
A48: 14 | B48: 7100 | D48: 3 | E48: 530 | G48: =[2]!SUMSTRING(A48:B48,"#") ->  | J48: =[2]!SUMSTRING(D48:E48,"#") ->  | L48: =[2]!SUMSTRING(G48:J48,"|") ->  | N48: 14 | O48: =SUM($B$1:B48)*0.6 -> 93480 | P48: 3 | Q48: =SUM($E$1:E48)*0.6 -> 8496 | S48: =[2]!SUMSTRING(N48:O48,"#") ->  | U48: =[2]!SUMSTRING(P48:Q48,"#") ->  | W48: =[2]!SUMSTRING(S48:U48,"|") -> 
A49: 14 | B49: 7300 | D49: 3 | E49: 540 | G49: =[2]!SUMSTRING(A49:B49,"#") ->  | J49: =[2]!SUMSTRING(D49:E49,"#") ->  | L49: =[2]!SUMSTRING(G49:J49,"|") ->  | N49: 14 | O49: =SUM($B$1:B49)*0.6 -> 97860 | P49: 3 | Q49: =SUM($E$1:E49)*0.6 -> 8820 | S49: =[2]!SUMSTRING(N49:O49,"#") ->  | U49: =[2]!SUMSTRING(P49:Q49,"#") ->  | W49: =[2]!SUMSTRING(S49:U49,"|") -> 
A50: 14 | B50: 7500 | D50: 3 | E50: 550 | G50: =[2]!SUMSTRING(A50:B50,"#") ->  | J50: =[2]!SUMSTRING(D50:E50,"#") ->  | L50: =[2]!SUMSTRING(G50:J50,"|") ->  | N50: 14 | O50: =SUM($B$1:B50)*0.6 -> 102360 | P50: 3 | Q50: =SUM($E$1:E50)*0.6 -> 9150 | S50: =[2]!SUMSTRING(N50:O50,"#") ->  | U50: =[2]!SUMSTRING(P50:Q50,"#") ->  | W50: =[2]!SUMSTRING(S50:U50,"|") -> 
A51: 14 | B51: 7700 | D51: 3 | E51: 560 | G51: =[2]!SUMSTRING(A51:B51,"#") ->  | J51: =[2]!SUMSTRING(D51:E51,"#") ->  | L51: =[2]!SUMSTRING(G51:J51,"|") ->  | N51: 14 | O51: =SUM($B$1:B51)*0.6 -> 106980 | P51: 3 | Q51: =SUM($E$1:E51)*0.6 -> 9486 | S51: =[2]!SUMSTRING(N51:O51,"#") ->  | U51: =[2]!SUMSTRING(P51:Q51,"#") ->  | W51: =[2]!SUMSTRING(S51:U51,"|") -> 
A52: 14 | B52: 7900 | D52: 3 | E52: 570 | G52: =[2]!SUMSTRING(A52:B52,"#") ->  | J52: =[2]!SUMSTRING(D52:E52,"#") ->  | L52: =[2]!SUMSTRING(G52:J52,"|") ->  | N52: 14 | O52: =SUM($B$1:B52)*0.6 -> 111720 | P52: 3 | Q52: =SUM($E$1:E52)*0.6 -> 9828 | S52: =[2]!SUMSTRING(N52:O52,"#") ->  | U52: =[2]!SUMSTRING(P52:Q52,"#") ->  | W52: =[2]!SUMSTRING(S52:U52,"|") -> 
A53: 14 | B53: 8100 | D53: 3 | E53: 580 | G53: =[2]!SUMSTRING(A53:B53,"#") ->  | J53: =[2]!SUMSTRING(D53:E53,"#") ->  | L53: =[2]!SUMSTRING(G53:J53,"|") ->  | N53: 14 | O53: =SUM($B$1:B53)*0.6 -> 116580 | P53: 3 | Q53: =SUM($E$1:E53)*0.6 -> 10176 | S53: =[2]!SUMSTRING(N53:O53,"#") ->  | U53: =[2]!SUMSTRING(P53:Q53,"#") ->  | W53: =[2]!SUMSTRING(S53:U53,"|") -> 
A54: 14 | B54: 8300 | D54: 3 | E54: 590 | G54: =[2]!SUMSTRING(A54:B54,"#") ->  | J54: =[2]!SUMSTRING(D54:E54,"#") ->  | L54: =[2]!SUMSTRING(G54:J54,"|") ->  | N54: 14 | O54: =SUM($B$1:B54)*0.6 -> 121560 | P54: 3 | Q54: =SUM($E$1:E54)*0.6 -> 10530 | S54: =[2]!SUMSTRING(N54:O54,"#") ->  | U54: =[2]!SUMSTRING(P54:Q54,"#") ->  | W54: =[2]!SUMSTRING(S54:U54,"|") -> 
A55: 14 | B55: 8500 | D55: 3 | E55: 600 | G55: =[2]!SUMSTRING(A55:B55,"#") ->  | J55: =[2]!SUMSTRING(D55:E55,"#") ->  | L55: =[2]!SUMSTRING(G55:J55,"|") ->  | N55: 14 | O55: =SUM($B$1:B55)*0.6 -> 126660 | P55: 3 | Q55: =SUM($E$1:E55)*0.6 -> 10890 | S55: =[2]!SUMSTRING(N55:O55,"#") ->  | U55: =[2]!SUMSTRING(P55:Q55,"#") ->  | W55: =[2]!SUMSTRING(S55:U55,"|") -> 
A56: 14 | B56: 8700 | D56: 3 | E56: 610 | G56: =[2]!SUMSTRING(A56:B56,"#") ->  | J56: =[2]!SUMSTRING(D56:E56,"#") ->  | L56: =[2]!SUMSTRING(G56:J56,"|") ->  | N56: 14 | O56: =SUM($B$1:B56)*0.6 -> 131880 | P56: 3 | Q56: =SUM($E$1:E56)*0.6 -> 11256 | S56: =[2]!SUMSTRING(N56:O56,"#") ->  | U56: =[2]!SUMSTRING(P56:Q56,"#") ->  | W56: =[2]!SUMSTRING(S56:U56,"|") -> 
A57: 14 | B57: 8900 | D57: 3 | E57: 620 | G57: =[2]!SUMSTRING(A57:B57,"#") ->  | J57: =[2]!SUMSTRING(D57:E57,"#") ->  | L57: =[2]!SUMSTRING(G57:J57,"|") ->  | N57: 14 | O57: =SUM($B$1:B57)*0.6 -> 137220 | P57: 3 | Q57: =SUM($E$1:E57)*0.6 -> 11628 | S57: =[2]!SUMSTRING(N57:O57,"#") ->  | U57: =[2]!SUMSTRING(P57:Q57,"#") ->  | W57: =[2]!SUMSTRING(S57:U57,"|") -> 
A58: 14 | B58: 9100 | D58: 3 | E58: 630 | G58: =[2]!SUMSTRING(A58:B58,"#") ->  | J58: =[2]!SUMSTRING(D58:E58,"#") ->  | L58: =[2]!SUMSTRING(G58:J58,"|") ->  | N58: 14 | O58: =SUM($B$1:B58)*0.6 -> 142680 | P58: 3 | Q58: =SUM($E$1:E58)*0.6 -> 12006 | S58: =[2]!SUMSTRING(N58:O58,"#") ->  | U58: =[2]!SUMSTRING(P58:Q58,"#") ->  | W58: =[2]!SUMSTRING(S58:U58,"|") -> 
A59: 14 | B59: 9300 | D59: 3 | E59: 640 | G59: =[2]!SUMSTRING(A59:B59,"#") ->  | J59: =[2]!SUMSTRING(D59:E59,"#") ->  | L59: =[2]!SUMSTRING(G59:J59,"|") ->  | N59: 14 | O59: =SUM($B$1:B59)*0.6 -> 148260 | P59: 3 | Q59: =SUM($E$1:E59)*0.6 -> 12390 | S59: =[2]!SUMSTRING(N59:O59,"#") ->  | U59: =[2]!SUMSTRING(P59:Q59,"#") ->  | W59: =[2]!SUMSTRING(S59:U59,"|") -> 
A60: 14 | B60: 10000 | D60: 3 | E60: 650 | G60: =[2]!SUMSTRING(A60:B60,"#") ->  | J60: =[2]!SUMSTRING(D60:E60,"#") ->  | L60: =[2]!SUMSTRING(G60:J60,"|") ->  | N60: 14 | O60: =SUM($B$1:B60)*0.6 -> 154260 | P60: 3 | Q60: =SUM($E$1:E60)*0.6 -> 12780 | S60: =[2]!SUMSTRING(N60:O60,"#") ->  | U60: =[2]!SUMSTRING(P60:Q60,"#") ->  | W60: =[2]!SUMSTRING(S60:U60,"|") -> 
A61: 14 | B61: 10700 | D61: 3 | E61: 660 | G61: =[2]!SUMSTRING(A61:B61,"#") ->  | J61: =[2]!SUMSTRING(D61:E61,"#") ->  | L61: =[2]!SUMSTRING(G61:J61,"|") ->  | N61: 14 | O61: =SUM($B$1:B61)*0.6 -> 160680 | P61: 3 | Q61: =SUM($E$1:E61)*0.6 -> 13176 | S61: =[2]!SUMSTRING(N61:O61,"#") ->  | U61: =[2]!SUMSTRING(P61:Q61,"#") ->  | W61: =[2]!SUMSTRING(S61:U61,"|") -> 
A62: 14 | B62: 11400 | D62: 3 | E62: 670 | G62: =[2]!SUMSTRING(A62:B62,"#") ->  | J62: =[2]!SUMSTRING(D62:E62,"#") ->  | L62: =[2]!SUMSTRING(G62:J62,"|") ->  | N62: 14 | O62: =SUM($B$1:B62)*0.6 -> 167520 | P62: 3 | Q62: =SUM($E$1:E62)*0.6 -> 13578 | S62: =[2]!SUMSTRING(N62:O62,"#") ->  | U62: =[2]!SUMSTRING(P62:Q62,"#") ->  | W62: =[2]!SUMSTRING(S62:U62,"|") -> 
A63: 14 | B63: 12100 | D63: 3 | E63: 680 | G63: =[2]!SUMSTRING(A63:B63,"#") ->  | J63: =[2]!SUMSTRING(D63:E63,"#") ->  | L63: =[2]!SUMSTRING(G63:J63,"|") ->  | N63: 14 | O63: =SUM($B$1:B63)*0.6 -> 174780 | P63: 3 | Q63: =SUM($E$1:E63)*0.6 -> 13986 | S63: =[2]!SUMSTRING(N63:O63,"#") ->  | U63: =[2]!SUMSTRING(P63:Q63,"#") ->  | W63: =[2]!SUMSTRING(S63:U63,"|") -> 
A64: 14 | B64: 12800 | D64: 3 | E64: 690 | G64: =[2]!SUMSTRING(A64:B64,"#") ->  | J64: =[2]!SUMSTRING(D64:E64,"#") ->  | L64: =[2]!SUMSTRING(G64:J64,"|") ->  | N64: 14 | O64: =SUM($B$1:B64)*0.6 -> 182460 | P64: 3 | Q64: =SUM($E$1:E64)*0.6 -> 14400 | S64: =[2]!SUMSTRING(N64:O64,"#") ->  | U64: =[2]!SUMSTRING(P64:Q64,"#") ->  | W64: =[2]!SUMSTRING(S64:U64,"|") -> 
A65: 14 | B65: 13500 | D65: 3 | E65: 700 | G65: =[2]!SUMSTRING(A65:B65,"#") ->  | J65: =[2]!SUMSTRING(D65:E65,"#") ->  | L65: =[2]!SUMSTRING(G65:J65,"|") ->  | N65: 14 | O65: =SUM($B$1:B65)*0.6 -> 190560 | P65: 3 | Q65: =SUM($E$1:E65)*0.6 -> 14820 | S65: =[2]!SUMSTRING(N65:O65,"#") ->  | U65: =[2]!SUMSTRING(P65:Q65,"#") ->  | W65: =[2]!SUMSTRING(S65:U65,"|") -> 
A66: 14 | B66: 14200 | D66: 3 | E66: 710 | G66: =[2]!SUMSTRING(A66:B66,"#") ->  | J66: =[2]!SUMSTRING(D66:E66,"#") ->  | L66: =[2]!SUMSTRING(G66:J66,"|") ->  | N66: 14 | O66: =SUM($B$1:B66)*0.6 -> 199080 | P66: 3 | Q66: =SUM($E$1:E66)*0.6 -> 15246 | S66: =[2]!SUMSTRING(N66:O66,"#") ->  | U66: =[2]!SUMSTRING(P66:Q66,"#") ->  | W66: =[2]!SUMSTRING(S66:U66,"|") -> 
A67: 14 | B67: 14900 | D67: 3 | E67: 720 | G67: =[2]!SUMSTRING(A67:B67,"#") ->  | J67: =[2]!SUMSTRING(D67:E67,"#") ->  | L67: =[2]!SUMSTRING(G67:J67,"|") ->  | N67: 14 | O67: =SUM($B$1:B67)*0.6 -> 208020 | P67: 3 | Q67: =SUM($E$1:E67)*0.6 -> 15678 | S67: =[2]!SUMSTRING(N67:O67,"#") ->  | U67: =[2]!SUMSTRING(P67:Q67,"#") ->  | W67: =[2]!SUMSTRING(S67:U67,"|") -> 
A68: 14 | B68: 15600 | D68: 3 | E68: 730 | G68: =[2]!SUMSTRING(A68:B68,"#") ->  | J68: =[2]!SUMSTRING(D68:E68,"#") ->  | L68: =[2]!SUMSTRING(G68:J68,"|") ->  | N68: 14 | O68: =SUM($B$1:B68)*0.6 -> 217380 | P68: 3 | Q68: =SUM($E$1:E68)*0.6 -> 16116 | S68: =[2]!SUMSTRING(N68:O68,"#") ->  | U68: =[2]!SUMSTRING(P68:Q68,"#") ->  | W68: =[2]!SUMSTRING(S68:U68,"|") -> 
A69: 14 | B69: 16300 | D69: 3 | E69: 740 | G69: =[2]!SUMSTRING(A69:B69,"#") ->  | J69: =[2]!SUMSTRING(D69:E69,"#") ->  | L69: =[2]!SUMSTRING(G69:J69,"|") ->  | N69: 14 | O69: =SUM($B$1:B69)*0.6 -> 227160 | P69: 3 | Q69: =SUM($E$1:E69)*0.6 -> 16560 | S69: =[2]!SUMSTRING(N69:O69,"#") ->  | U69: =[2]!SUMSTRING(P69:Q69,"#") ->  | W69: =[2]!SUMSTRING(S69:U69,"|") -> 
A70: 14 | B70: 17000 | D70: 3 | E70: 750 | G70: =[2]!SUMSTRING(A70:B70,"#") ->  | J70: =[2]!SUMSTRING(D70:E70,"#") ->  | L70: =[2]!SUMSTRING(G70:J70,"|") ->  | N70: 14 | O70: =SUM($B$1:B70)*0.6 -> 237360 | P70: 3 | Q70: =SUM($E$1:E70)*0.6 -> 17010 | S70: =[2]!SUMSTRING(N70:O70,"#") ->  | U70: =[2]!SUMSTRING(P70:Q70,"#") ->  | W70: =[2]!SUMSTRING(S70:U70,"|") -> 
A71: 14 | B71: 17700 | D71: 3 | E71: 760 | G71: =[2]!SUMSTRING(A71:B71,"#") ->  | J71: =[2]!SUMSTRING(D71:E71,"#") ->  | L71: =[2]!SUMSTRING(G71:J71,"|") ->  | N71: 14 | O71: =SUM($B$1:B71)*0.6 -> 247980 | P71: 3 | Q71: =SUM($E$1:E71)*0.6 -> 17466 | S71: =[2]!SUMSTRING(N71:O71,"#") ->  | U71: =[2]!SUMSTRING(P71:Q71,"#") ->  | W71: =[2]!SUMSTRING(S71:U71,"|") -> 
A72: 14 | B72: 18400 | D72: 3 | E72: 770 | G72: =[2]!SUMSTRING(A72:B72,"#") ->  | J72: =[2]!SUMSTRING(D72:E72,"#") ->  | L72: =[2]!SUMSTRING(G72:J72,"|") ->  | N72: 14 | O72: =SUM($B$1:B72)*0.6 -> 259020 | P72: 3 | Q72: =SUM($E$1:E72)*0.6 -> 17928 | S72: =[2]!SUMSTRING(N72:O72,"#") ->  | U72: =[2]!SUMSTRING(P72:Q72,"#") ->  | W72: =[2]!SUMSTRING(S72:U72,"|") -> 
A73: 14 | B73: 19100 | D73: 3 | E73: 780 | G73: =[2]!SUMSTRING(A73:B73,"#") ->  | J73: =[2]!SUMSTRING(D73:E73,"#") ->  | L73: =[2]!SUMSTRING(G73:J73,"|") ->  | N73: 14 | O73: =SUM($B$1:B73)*0.6 -> 270480 | P73: 3 | Q73: =SUM($E$1:E73)*0.6 -> 18396 | S73: =[2]!SUMSTRING(N73:O73,"#") ->  | U73: =[2]!SUMSTRING(P73:Q73,"#") ->  | W73: =[2]!SUMSTRING(S73:U73,"|") -> 
A74: 14 | B74: 19800 | D74: 3 | E74: 790 | G74: =[2]!SUMSTRING(A74:B74,"#") ->  | J74: =[2]!SUMSTRING(D74:E74,"#") ->  | L74: =[2]!SUMSTRING(G74:J74,"|") ->  | N74: 14 | O74: =SUM($B$1:B74)*0.6 -> 282360 | P74: 3 | Q74: =SUM($E$1:E74)*0.6 -> 18870 | S74: =[2]!SUMSTRING(N74:O74,"#") ->  | U74: =[2]!SUMSTRING(P74:Q74,"#") ->  | W74: =[2]!SUMSTRING(S74:U74,"|") -> 
A75: 14 | B75: 20500 | D75: 3 | E75: 800 | G75: =[2]!SUMSTRING(A75:B75,"#") ->  | J75: =[2]!SUMSTRING(D75:E75,"#") ->  | L75: =[2]!SUMSTRING(G75:J75,"|") ->  | N75: 14 | O75: =SUM($B$1:B75)*0.6 -> 294660 | P75: 3 | Q75: =SUM($E$1:E75)*0.6 -> 19350 | S75: =[2]!SUMSTRING(N75:O75,"#") ->  | U75: =[2]!SUMSTRING(P75:Q75,"#") ->  | W75: =[2]!SUMSTRING(S75:U75,"|") -> 
A76: 14 | B76: 21200 | D76: 3 | E76: 810 | G76: =[2]!SUMSTRING(A76:B76,"#") ->  | J76: =[2]!SUMSTRING(D76:E76,"#") ->  | L76: =[2]!SUMSTRING(G76:J76,"|") ->  | N76: 14 | O76: =SUM($B$1:B76)*0.6 -> 307380 | P76: 3 | Q76: =SUM($E$1:E76)*0.6 -> 19836 | S76: =[2]!SUMSTRING(N76:O76,"#") ->  | U76: =[2]!SUMSTRING(P76:Q76,"#") ->  | W76: =[2]!SUMSTRING(S76:U76,"|") -> 
A77: 14 | B77: 21900 | D77: 3 | E77: 820 | G77: =[2]!SUMSTRING(A77:B77,"#") ->  | J77: =[2]!SUMSTRING(D77:E77,"#") ->  | L77: =[2]!SUMSTRING(G77:J77,"|") ->  | N77: 14 | O77: =SUM($B$1:B77)*0.6 -> 320520 | P77: 3 | Q77: =SUM($E$1:E77)*0.6 -> 20328 | S77: =[2]!SUMSTRING(N77:O77,"#") ->  | U77: =[2]!SUMSTRING(P77:Q77,"#") ->  | W77: =[2]!SUMSTRING(S77:U77,"|") -> 
A78: 14 | B78: 22600 | D78: 3 | E78: 830 | G78: =[2]!SUMSTRING(A78:B78,"#") ->  | J78: =[2]!SUMSTRING(D78:E78,"#") ->  | L78: =[2]!SUMSTRING(G78:J78,"|") ->  | N78: 14 | O78: =SUM($B$1:B78)*0.6 -> 334080 | P78: 3 | Q78: =SUM($E$1:E78)*0.6 -> 20826 | S78: =[2]!SUMSTRING(N78:O78,"#") ->  | U78: =[2]!SUMSTRING(P78:Q78,"#") ->  | W78: =[2]!SUMSTRING(S78:U78,"|") -> 
A79: 14 | B79: 23300 | D79: 3 | E79: 840 | G79: =[2]!SUMSTRING(A79:B79,"#") ->  | J79: =[2]!SUMSTRING(D79:E79,"#") ->  | L79: =[2]!SUMSTRING(G79:J79,"|") ->  | N79: 14 | O79: =SUM($B$1:B79)*0.6 -> 348060 | P79: 3 | Q79: =SUM($E$1:E79)*0.6 -> 21330 | S79: =[2]!SUMSTRING(N79:O79,"#") ->  | U79: =[2]!SUMSTRING(P79:Q79,"#") ->  | W79: =[2]!SUMSTRING(S79:U79,"|") -> 
A80: 14 | B80: 24000 | D80: 3 | E80: 850 | G80: =[2]!SUMSTRING(A80:B80,"#") ->  | J80: =[2]!SUMSTRING(D80:E80,"#") ->  | L80: =[2]!SUMSTRING(G80:J80,"|") ->  | N80: 14 | O80: =SUM($B$1:B80)*0.6 -> 362460 | P80: 3 | Q80: =SUM($E$1:E80)*0.6 -> 21840 | S80: =[2]!SUMSTRING(N80:O80,"#") ->  | U80: =[2]!SUMSTRING(P80:Q80,"#") ->  | W80: =[2]!SUMSTRING(S80:U80,"|") -> 
A81: 14 | B81: 24700 | D81: 3 | E81: 860 | G81: =[2]!SUMSTRING(A81:B81,"#") ->  | J81: =[2]!SUMSTRING(D81:E81,"#") ->  | L81: =[2]!SUMSTRING(G81:J81,"|") ->  | N81: 14 | O81: =SUM($B$1:B81)*0.6 -> 377280 | P81: 3 | Q81: =SUM($E$1:E81)*0.6 -> 22356 | S81: =[2]!SUMSTRING(N81:O81,"#") ->  | U81: =[2]!SUMSTRING(P81:Q81,"#") ->  | W81: =[2]!SUMSTRING(S81:U81,"|") -> 
A82: 14 | B82: 25400 | D82: 3 | E82: 870 | G82: =[2]!SUMSTRING(A82:B82,"#") ->  | J82: =[2]!SUMSTRING(D82:E82,"#") ->  | L82: =[2]!SUMSTRING(G82:J82,"|") ->  | N82: 14 | O82: =SUM($B$1:B82)*0.6 -> 392520 | P82: 3 | Q82: =SUM($E$1:E82)*0.6 -> 22878 | S82: =[2]!SUMSTRING(N82:O82,"#") ->  | U82: =[2]!SUMSTRING(P82:Q82,"#") ->  | W82: =[2]!SUMSTRING(S82:U82,"|") -> 
A83: 14 | B83: 26100 | D83: 3 | E83: 880 | G83: =[2]!SUMSTRING(A83:B83,"#") ->  | J83: =[2]!SUMSTRING(D83:E83,"#") ->  | L83: =[2]!SUMSTRING(G83:J83,"|") ->  | N83: 14 | O83: =SUM($B$1:B83)*0.6 -> 408180 | P83: 3 | Q83: =SUM($E$1:E83)*0.6 -> 23406 | S83: =[2]!SUMSTRING(N83:O83,"#") ->  | U83: =[2]!SUMSTRING(P83:Q83,"#") ->  | W83: =[2]!SUMSTRING(S83:U83,"|") -> 
A84: 14 | B84: 26800 | D84: 3 | E84: 890 | G84: =[2]!SUMSTRING(A84:B84,"#") ->  | J84: =[2]!SUMSTRING(D84:E84,"#") ->  | L84: =[2]!SUMSTRING(G84:J84,"|") ->  | N84: 14 | O84: =SUM($B$1:B84)*0.6 -> 424260 | P84: 3 | Q84: =SUM($E$1:E84)*0.6 -> 23940 | S84: =[2]!SUMSTRING(N84:O84,"#") ->  | U84: =[2]!SUMSTRING(P84:Q84,"#") ->  | W84: =[2]!SUMSTRING(S84:U84,"|") -> 
A85: 14 | B85: 27500 | D85: 3 | E85: 900 | G85: =[2]!SUMSTRING(A85:B85,"#") ->  | J85: =[2]!SUMSTRING(D85:E85,"#") ->  | L85: =[2]!SUMSTRING(G85:J85,"|") ->  | N85: 14 | O85: =SUM($B$1:B85)*0.6 -> 440760 | P85: 3 | Q85: =SUM($E$1:E85)*0.6 -> 24480 | S85: =[2]!SUMSTRING(N85:O85,"#") ->  | U85: =[2]!SUMSTRING(P85:Q85,"#") ->  | W85: =[2]!SUMSTRING(S85:U85,"|") -> 
A86: 14 | B86: 28200 | D86: 3 | E86: 910 | G86: =[2]!SUMSTRING(A86:B86,"#") ->  | J86: =[2]!SUMSTRING(D86:E86,"#") ->  | L86: =[2]!SUMSTRING(G86:J86,"|") ->  | N86: 14 | O86: =SUM($B$1:B86)*0.6 -> 457680 | P86: 3 | Q86: =SUM($E$1:E86)*0.6 -> 25026 | S86: =[2]!SUMSTRING(N86:O86,"#") ->  | U86: =[2]!SUMSTRING(P86:Q86,"#") ->  | W86: =[2]!SUMSTRING(S86:U86,"|") -> 
A87: 14 | B87: 28900 | D87: 3 | E87: 920 | G87: =[2]!SUMSTRING(A87:B87,"#") ->  | J87: =[2]!SUMSTRING(D87:E87,"#") ->  | L87: =[2]!SUMSTRING(G87:J87,"|") ->  | N87: 14 | O87: =SUM($B$1:B87)*0.6 -> 475020 | P87: 3 | Q87: =SUM($E$1:E87)*0.6 -> 25578 | S87: =[2]!SUMSTRING(N87:O87,"#") ->  | U87: =[2]!SUMSTRING(P87:Q87,"#") ->  | W87: =[2]!SUMSTRING(S87:U87,"|") -> 
A88: 14 | B88: 29600 | D88: 3 | E88: 930 | G88: =[2]!SUMSTRING(A88:B88,"#") ->  | J88: =[2]!SUMSTRING(D88:E88,"#") ->  | L88: =[2]!SUMSTRING(G88:J88,"|") ->  | N88: 14 | O88: =SUM($B$1:B88)*0.6 -> 492780 | P88: 3 | Q88: =SUM($E$1:E88)*0.6 -> 26136 | S88: =[2]!SUMSTRING(N88:O88,"#") ->  | U88: =[2]!SUMSTRING(P88:Q88,"#") ->  | W88: =[2]!SUMSTRING(S88:U88,"|") -> 
A89: 14 | B89: 30300 | D89: 3 | E89: 940 | G89: =[2]!SUMSTRING(A89:B89,"#") ->  | J89: =[2]!SUMSTRING(D89:E89,"#") ->  | L89: =[2]!SUMSTRING(G89:J89,"|") ->  | N89: 14 | O89: =SUM($B$1:B89)*0.6 -> 510960 | P89: 3 | Q89: =SUM($E$1:E89)*0.6 -> 26700 | S89: =[2]!SUMSTRING(N89:O89,"#") ->  | U89: =[2]!SUMSTRING(P89:Q89,"#") ->  | W89: =[2]!SUMSTRING(S89:U89,"|") -> 
A90: 14 | B90: 31000 | D90: 3 | E90: 950 | G90: =[2]!SUMSTRING(A90:B90,"#") ->  | J90: =[2]!SUMSTRING(D90:E90,"#") ->  | L90: =[2]!SUMSTRING(G90:J90,"|") ->  | N90: 14 | O90: =SUM($B$1:B90)*0.6 -> 529560 | P90: 3 | Q90: =SUM($E$1:E90)*0.6 -> 27270 | S90: =[2]!SUMSTRING(N90:O90,"#") ->  | U90: =[2]!SUMSTRING(P90:Q90,"#") ->  | W90: =[2]!SUMSTRING(S90:U90,"|") -> 
A91: 14 | B91: 31700 | D91: 3 | E91: 960 | G91: =[2]!SUMSTRING(A91:B91,"#") ->  | J91: =[2]!SUMSTRING(D91:E91,"#") ->  | L91: =[2]!SUMSTRING(G91:J91,"|") ->  | N91: 14 | O91: =SUM($B$1:B91)*0.6 -> 548580 | P91: 3 | Q91: =SUM($E$1:E91)*0.6 -> 27846 | S91: =[2]!SUMSTRING(N91:O91,"#") ->  | U91: =[2]!SUMSTRING(P91:Q91,"#") ->  | W91: =[2]!SUMSTRING(S91:U91,"|") -> 
A92: 14 | B92: 32400 | D92: 3 | E92: 970 | G92: =[2]!SUMSTRING(A92:B92,"#") ->  | J92: =[2]!SUMSTRING(D92:E92,"#") ->  | L92: =[2]!SUMSTRING(G92:J92,"|") ->  | N92: 14 | O92: =SUM($B$1:B92)*0.6 -> 568020 | P92: 3 | Q92: =SUM($E$1:E92)*0.6 -> 28428 | S92: =[2]!SUMSTRING(N92:O92,"#") ->  | U92: =[2]!SUMSTRING(P92:Q92,"#") ->  | W92: =[2]!SUMSTRING(S92:U92,"|") -> 
A93: 14 | B93: 33100 | D93: 3 | E93: 980 | G93: =[2]!SUMSTRING(A93:B93,"#") ->  | J93: =[2]!SUMSTRING(D93:E93,"#") ->  | L93: =[2]!SUMSTRING(G93:J93,"|") ->  | N93: 14 | O93: =SUM($B$1:B93)*0.6 -> 587880 | P93: 3 | Q93: =SUM($E$1:E93)*0.6 -> 29016 | S93: =[2]!SUMSTRING(N93:O93,"#") ->  | U93: =[2]!SUMSTRING(P93:Q93,"#") ->  | W93: =[2]!SUMSTRING(S93:U93,"|") -> 
A94: 14 | B94: 33800 | D94: 3 | E94: 990 | G94: =[2]!SUMSTRING(A94:B94,"#") ->  | J94: =[2]!SUMSTRING(D94:E94,"#") ->  | L94: =[2]!SUMSTRING(G94:J94,"|") ->  | N94: 14 | O94: =SUM($B$1:B94)*0.6 -> 608160 | P94: 3 | Q94: =SUM($E$1:E94)*0.6 -> 29610 | S94: =[2]!SUMSTRING(N94:O94,"#") ->  | U94: =[2]!SUMSTRING(P94:Q94,"#") ->  | W94: =[2]!SUMSTRING(S94:U94,"|") -> 
A95: 14 | B95: 34500 | D95: 3 | E95: 1000 | G95: =[2]!SUMSTRING(A95:B95,"#") ->  | J95: =[2]!SUMSTRING(D95:E95,"#") ->  | L95: =[2]!SUMSTRING(G95:J95,"|") ->  | N95: 14 | O95: =SUM($B$1:B95)*0.6 -> 628860 | P95: 3 | Q95: =SUM($E$1:E95)*0.6 -> 30210 | S95: =[2]!SUMSTRING(N95:O95,"#") ->  | U95: =[2]!SUMSTRING(P95:Q95,"#") ->  | W95: =[2]!SUMSTRING(S95:U95,"|") -> 
A96: 14 | B96: 35200 | D96: 3 | E96: 1010 | G96: =[2]!SUMSTRING(A96:B96,"#") ->  | J96: =[2]!SUMSTRING(D96:E96,"#") ->  | L96: =[2]!SUMSTRING(G96:J96,"|") ->  | N96: 14 | O96: =SUM($B$1:B96)*0.6 -> 649980 | P96: 3 | Q96: =SUM($E$1:E96)*0.6 -> 30816 | S96: =[2]!SUMSTRING(N96:O96,"#") ->  | U96: =[2]!SUMSTRING(P96:Q96,"#") ->  | W96: =[2]!SUMSTRING(S96:U96,"|") -> 
A97: 14 | B97: 35900 | D97: 3 | E97: 1020 | G97: =[2]!SUMSTRING(A97:B97,"#") ->  | J97: =[2]!SUMSTRING(D97:E97,"#") ->  | L97: =[2]!SUMSTRING(G97:J97,"|") ->  | N97: 14 | O97: =SUM($B$1:B97)*0.6 -> 671520 | P97: 3 | Q97: =SUM($E$1:E97)*0.6 -> 31428 | S97: =[2]!SUMSTRING(N97:O97,"#") ->  | U97: =[2]!SUMSTRING(P97:Q97,"#") ->  | W97: =[2]!SUMSTRING(S97:U97,"|") -> 
A98: 14 | B98: 36600 | D98: 3 | E98: 1030 | G98: =[2]!SUMSTRING(A98:B98,"#") ->  | J98: =[2]!SUMSTRING(D98:E98,"#") ->  | L98: =[2]!SUMSTRING(G98:J98,"|") ->  | N98: 14 | O98: =SUM($B$1:B98)*0.6 -> 693480 | P98: 3 | Q98: =SUM($E$1:E98)*0.6 -> 32046 | S98: =[2]!SUMSTRING(N98:O98,"#") ->  | U98: =[2]!SUMSTRING(P98:Q98,"#") ->  | W98: =[2]!SUMSTRING(S98:U98,"|") -> 
A99: 14 | B99: 37300 | D99: 3 | E99: 1040 | G99: =[2]!SUMSTRING(A99:B99,"#") ->  | J99: =[2]!SUMSTRING(D99:E99,"#") ->  | L99: =[2]!SUMSTRING(G99:J99,"|") ->  | N99: 14 | O99: =SUM($B$1:B99)*0.6 -> 715860 | P99: 3 | Q99: =SUM($E$1:E99)*0.6 -> 32670 | S99: =[2]!SUMSTRING(N99:O99,"#") ->  | U99: =[2]!SUMSTRING(P99:Q99,"#") ->  | W99: =[2]!SUMSTRING(S99:U99,"|") -> 
A100: 14 | B100: 38000 | D100: 3 | E100: 1140 | G100: =[2]!SUMSTRING(A100:B100,"#") ->  | J100: =[2]!SUMSTRING(D100:E100,"#") ->  | L100: =[2]!SUMSTRING(G100:J100,"|") ->  | N100: 14 | O100: =SUM($B$1:B100)*0.6 -> 738660 | P100: 3 | Q100: =SUM($E$1:E100)*0.6 -> 33354 | S100: =[2]!SUMSTRING(N100:O100,"#") ->  | U100: =[2]!SUMSTRING(P100:Q100,"#") ->  | W100: =[2]!SUMSTRING(S100:U100,"|") -> 
A101: 14 | B101: 39000 | D101: 3 | E101: 1240 | G101: =[2]!SUMSTRING(A101:B101,"#") ->  | J101: =[2]!SUMSTRING(D101:E101,"#") ->  | L101: =[2]!SUMSTRING(G101:J101,"|") ->  | N101: 14 | O101: =SUM($B$1:B101)*0.6 -> 762060 | P101: 3 | Q101: =SUM($E$1:E101)*0.6 -> 34098 | S101: =[2]!SUMSTRING(N101:O101,"#") ->  | U101: =[2]!SUMSTRING(P101:Q101,"#") ->  | W101: =[2]!SUMSTRING(S101:U101,"|") -> 
A102: 14 | B102: 40000 | D102: 3 | E102: 1340 | G102: =[2]!SUMSTRING(A102:B102,"#") ->  | J102: =[2]!SUMSTRING(D102:E102,"#") ->  | L102: =[2]!SUMSTRING(G102:J102,"|") ->  | N102: 14 | O102: =SUM($B$1:B102)*0.6 -> 786060 | P102: 3 | Q102: =SUM($E$1:E102)*0.6 -> 34902 | S102: =[2]!SUMSTRING(N102:O102,"#") ->  | U102: =[2]!SUMSTRING(P102:Q102,"#") ->  | W102: =[2]!SUMSTRING(S102:U102,"|") -> 
A103: 14 | B103: 41000 | D103: 3 | E103: 1440 | G103: =[2]!SUMSTRING(A103:B103,"#") ->  | J103: =[2]!SUMSTRING(D103:E103,"#") ->  | L103: =[2]!SUMSTRING(G103:J103,"|") ->  | N103: 14 | O103: =SUM($B$1:B103)*0.6 -> 810660 | P103: 3 | Q103: =SUM($E$1:E103)*0.6 -> 35766 | S103: =[2]!SUMSTRING(N103:O103,"#") ->  | U103: =[2]!SUMSTRING(P103:Q103,"#") ->  | W103: =[2]!SUMSTRING(S103:U103,"|") -> 
A104: 14 | B104: 42000 | D104: 3 | E104: 1540 | G104: =[2]!SUMSTRING(A104:B104,"#") ->  | J104: =[2]!SUMSTRING(D104:E104,"#") ->  | L104: =[2]!SUMSTRING(G104:J104,"|") ->  | N104: 14 | O104: =SUM($B$1:B104)*0.6 -> 835860 | P104: 3 | Q104: =SUM($E$1:E104)*0.6 -> 36690 | S104: =[2]!SUMSTRING(N104:O104,"#") ->  | U104: =[2]!SUMSTRING(P104:Q104,"#") ->  | W104: =[2]!SUMSTRING(S104:U104,"|") -> 
A105: 14 | B105: 43000 | D105: 3 | E105: 1640 | G105: =[2]!SUMSTRING(A105:B105,"#") ->  | J105: =[2]!SUMSTRING(D105:E105,"#") ->  | L105: =[2]!SUMSTRING(G105:J105,"|") ->  | N105: 14 | O105: =SUM($B$1:B105)*0.6 -> 861660 | P105: 3 | Q105: =SUM($E$1:E105)*0.6 -> 37674 | S105: =[2]!SUMSTRING(N105:O105,"#") ->  | U105: =[2]!SUMSTRING(P105:Q105,"#") ->  | W105: =[2]!SUMSTRING(S105:U105,"|") -> 
A106: 14 | B106: 44000 | D106: 3 | E106: 1740 | G106: =[2]!SUMSTRING(A106:B106,"#") ->  | J106: =[2]!SUMSTRING(D106:E106,"#") ->  | L106: =[2]!SUMSTRING(G106:J106,"|") ->  | N106: 14 | O106: =SUM($B$1:B106)*0.6 -> 888060 | P106: 3 | Q106: =SUM($E$1:E106)*0.6 -> 38718 | S106: =[2]!SUMSTRING(N106:O106,"#") ->  | U106: =[2]!SUMSTRING(P106:Q106,"#") ->  | W106: =[2]!SUMSTRING(S106:U106,"|") -> 
A107: 14 | B107: 45000 | D107: 3 | E107: 1840 | G107: =[2]!SUMSTRING(A107:B107,"#") ->  | J107: =[2]!SUMSTRING(D107:E107,"#") ->  | L107: =[2]!SUMSTRING(G107:J107,"|") ->  | N107: 14 | O107: =SUM($B$1:B107)*0.6 -> 915060 | P107: 3 | Q107: =SUM($E$1:E107)*0.6 -> 39822 | S107: =[2]!SUMSTRING(N107:O107,"#") ->  | U107: =[2]!SUMSTRING(P107:Q107,"#") ->  | W107: =[2]!SUMSTRING(S107:U107,"|") -> 
A108: 14 | B108: 46000 | D108: 3 | E108: 1940 | G108: =[2]!SUMSTRING(A108:B108,"#") ->  | J108: =[2]!SUMSTRING(D108:E108,"#") ->  | L108: =[2]!SUMSTRING(G108:J108,"|") ->  | N108: 14 | O108: =SUM($B$1:B108)*0.6 -> 942660 | P108: 3 | Q108: =SUM($E$1:E108)*0.6 -> 40986 | S108: =[2]!SUMSTRING(N108:O108,"#") ->  | U108: =[2]!SUMSTRING(P108:Q108,"#") ->  | W108: =[2]!SUMSTRING(S108:U108,"|") -> 
A109: 14 | B109: 47000 | D109: 3 | E109: 2040 | G109: =[2]!SUMSTRING(A109:B109,"#") ->  | J109: =[2]!SUMSTRING(D109:E109,"#") ->  | L109: =[2]!SUMSTRING(G109:J109,"|") ->  | N109: 14 | O109: =SUM($B$1:B109)*0.6 -> 970860 | P109: 3 | Q109: =SUM($E$1:E109)*0.6 -> 42210 | S109: =[2]!SUMSTRING(N109:O109,"#") ->  | U109: =[2]!SUMSTRING(P109:Q109,"#") ->  | W109: =[2]!SUMSTRING(S109:U109,"|") -> 
A110: 14 | B110: 48000 | D110: 3 | E110: 2140 | G110: =[2]!SUMSTRING(A110:B110,"#") ->  | J110: =[2]!SUMSTRING(D110:E110,"#") ->  | L110: =[2]!SUMSTRING(G110:J110,"|") ->  | N110: 14 | O110: =SUM($B$1:B110)*0.6 -> 999660 | P110: 3 | Q110: =SUM($E$1:E110)*0.6 -> 43494 | S110: =[2]!SUMSTRING(N110:O110,"#") ->  | U110: =[2]!SUMSTRING(P110:Q110,"#") ->  | W110: =[2]!SUMSTRING(S110:U110,"|") -> 
A111: 14 | B111: 49000 | D111: 3 | E111: 2240 | G111: =[2]!SUMSTRING(A111:B111,"#") ->  | J111: =[2]!SUMSTRING(D111:E111,"#") ->  | L111: =[2]!SUMSTRING(G111:J111,"|") ->  | N111: 14 | O111: =SUM($B$1:B111)*0.6 -> 1029060 | P111: 3 | Q111: =SUM($E$1:E111)*0.6 -> 44838 | S111: =[2]!SUMSTRING(N111:O111,"#") ->  | U111: =[2]!SUMSTRING(P111:Q111,"#") ->  | W111: =[2]!SUMSTRING(S111:U111,"|") -> 
A112: 14 | B112: 50000 | D112: 3 | E112: 2340 | G112: =[2]!SUMSTRING(A112:B112,"#") ->  | J112: =[2]!SUMSTRING(D112:E112,"#") ->  | L112: =[2]!SUMSTRING(G112:J112,"|") ->  | N112: 14 | O112: =SUM($B$1:B112)*0.6 -> 1059060 | P112: 3 | Q112: =SUM($E$1:E112)*0.6 -> 46242 | S112: =[2]!SUMSTRING(N112:O112,"#") ->  | U112: =[2]!SUMSTRING(P112:Q112,"#") ->  | W112: =[2]!SUMSTRING(S112:U112,"|") -> 
A113: 14 | B113: 51000 | D113: 3 | E113: 2440 | G113: =[2]!SUMSTRING(A113:B113,"#") ->  | J113: =[2]!SUMSTRING(D113:E113,"#") ->  | L113: =[2]!SUMSTRING(G113:J113,"|") ->  | N113: 14 | O113: =SUM($B$1:B113)*0.6 -> 1089660 | P113: 3 | Q113: =SUM($E$1:E113)*0.6 -> 47706 | S113: =[2]!SUMSTRING(N113:O113,"#") ->  | U113: =[2]!SUMSTRING(P113:Q113,"#") ->  | W113: =[2]!SUMSTRING(S113:U113,"|") -> 
A114: 14 | B114: 52000 | D114: 3 | E114: 2540 | G114: =[2]!SUMSTRING(A114:B114,"#") ->  | J114: =[2]!SUMSTRING(D114:E114,"#") ->  | L114: =[2]!SUMSTRING(G114:J114,"|") ->  | N114: 14 | O114: =SUM($B$1:B114)*0.6 -> 1120860 | P114: 3 | Q114: =SUM($E$1:E114)*0.6 -> 49230 | S114: =[2]!SUMSTRING(N114:O114,"#") ->  | U114: =[2]!SUMSTRING(P114:Q114,"#") ->  | W114: =[2]!SUMSTRING(S114:U114,"|") -> 
A115: 14 | B115: 53000 | D115: 3 | E115: 2640 | G115: =[2]!SUMSTRING(A115:B115,"#") ->  | J115: =[2]!SUMSTRING(D115:E115,"#") ->  | L115: =[2]!SUMSTRING(G115:J115,"|") ->  | N115: 14 | O115: =SUM($B$1:B115)*0.6 -> 1152660 | P115: 3 | Q115: =SUM($E$1:E115)*0.6 -> 50814 | S115: =[2]!SUMSTRING(N115:O115,"#") ->  | U115: =[2]!SUMSTRING(P115:Q115,"#") ->  | W115: =[2]!SUMSTRING(S115:U115,"|") -> 
A116: 14 | B116: 54000 | D116: 3 | E116: 2740 | G116: =[2]!SUMSTRING(A116:B116,"#") ->  | J116: =[2]!SUMSTRING(D116:E116,"#") ->  | L116: =[2]!SUMSTRING(G116:J116,"|") ->  | N116: 14 | O116: =SUM($B$1:B116)*0.6 -> 1185060 | P116: 3 | Q116: =SUM($E$1:E116)*0.6 -> 52458 | S116: =[2]!SUMSTRING(N116:O116,"#") ->  | U116: =[2]!SUMSTRING(P116:Q116,"#") ->  | W116: =[2]!SUMSTRING(S116:U116,"|") -> 
A117: 14 | B117: 55000 | D117: 3 | E117: 2840 | G117: =[2]!SUMSTRING(A117:B117,"#") ->  | J117: =[2]!SUMSTRING(D117:E117,"#") ->  | L117: =[2]!SUMSTRING(G117:J117,"|") ->  | N117: 14 | O117: =SUM($B$1:B117)*0.6 -> 1218060 | P117: 3 | Q117: =SUM($E$1:E117)*0.6 -> 54162 | S117: =[2]!SUMSTRING(N117:O117,"#") ->  | U117: =[2]!SUMSTRING(P117:Q117,"#") ->  | W117: =[2]!SUMSTRING(S117:U117,"|") -> 
A118: 14 | B118: 56000 | D118: 3 | E118: 2940 | G118: =[2]!SUMSTRING(A118:B118,"#") ->  | J118: =[2]!SUMSTRING(D118:E118,"#") ->  | L118: =[2]!SUMSTRING(G118:J118,"|") ->  | N118: 14 | O118: =SUM($B$1:B118)*0.6 -> 1251660 | P118: 3 | Q118: =SUM($E$1:E118)*0.6 -> 55926 | S118: =[2]!SUMSTRING(N118:O118,"#") ->  | U118: =[2]!SUMSTRING(P118:Q118,"#") ->  | W118: =[2]!SUMSTRING(S118:U118,"|") -> 
A119: 14 | B119: 57000 | D119: 3 | E119: 3040 | G119: =[2]!SUMSTRING(A119:B119,"#") ->  | J119: =[2]!SUMSTRING(D119:E119,"#") ->  | L119: =[2]!SUMSTRING(G119:J119,"|") ->  | N119: 14 | O119: =SUM($B$1:B119)*0.6 -> 1285860 | P119: 3 | Q119: =SUM($E$1:E119)*0.6 -> 57750 | S119: =[2]!SUMSTRING(N119:O119,"#") ->  | U119: =[2]!SUMSTRING(P119:Q119,"#") ->  | W119: =[2]!SUMSTRING(S119:U119,"|") -> 
A120: 14 | B120: 58000 | D120: 3 | E120: 3140 | G120: =[2]!SUMSTRING(A120:B120,"#") ->  | J120: =[2]!SUMSTRING(D120:E120,"#") ->  | L120: =[2]!SUMSTRING(G120:J120,"|") ->  | N120: 14 | O120: =SUM($B$1:B120)*0.6 -> 1320660 | P120: 3 | Q120: =SUM($E$1:E120)*0.6 -> 59634 | S120: =[2]!SUMSTRING(N120:O120,"#") ->  | U120: =[2]!SUMSTRING(P120:Q120,"#") ->  | W120: =[2]!SUMSTRING(S120:U120,"|") -> 
A121: 14 | B121: 59000 | D121: 3 | E121: 3240 | G121: =[2]!SUMSTRING(A121:B121,"#") ->  | J121: =[2]!SUMSTRING(D121:E121,"#") ->  | L121: =[2]!SUMSTRING(G121:J121,"|") ->  | N121: 14 | O121: =SUM($B$1:B121)*0.6 -> 1356060 | P121: 3 | Q121: =SUM($E$1:E121)*0.6 -> 61578 | S121: =[2]!SUMSTRING(N121:O121,"#") ->  | U121: =[2]!SUMSTRING(P121:Q121,"#") ->  | W121: =[2]!SUMSTRING(S121:U121,"|") -> 
A122: 14 | B122: 60000 | D122: 3 | E122: 3340 | G122: =[2]!SUMSTRING(A122:B122,"#") ->  | J122: =[2]!SUMSTRING(D122:E122,"#") ->  | L122: =[2]!SUMSTRING(G122:J122,"|") ->  | N122: 14 | O122: =SUM($B$1:B122)*0.6 -> 1392060 | P122: 3 | Q122: =SUM($E$1:E122)*0.6 -> 63582 | S122: =[2]!SUMSTRING(N122:O122,"#") ->  | U122: =[2]!SUMSTRING(P122:Q122,"#") ->  | W122: =[2]!SUMSTRING(S122:U122,"|") -> 
A123: 14 | B123: 61000 | D123: 3 | E123: 3440 | G123: =[2]!SUMSTRING(A123:B123,"#") ->  | J123: =[2]!SUMSTRING(D123:E123,"#") ->  | L123: =[2]!SUMSTRING(G123:J123,"|") ->  | N123: 14 | O123: =SUM($B$1:B123)*0.6 -> 1428660 | P123: 3 | Q123: =SUM($E$1:E123)*0.6 -> 65646 | S123: =[2]!SUMSTRING(N123:O123,"#") ->  | U123: =[2]!SUMSTRING(P123:Q123,"#") ->  | W123: =[2]!SUMSTRING(S123:U123,"|") -> 
A124: 14 | B124: 62000 | D124: 3 | E124: 3540 | G124: =[2]!SUMSTRING(A124:B124,"#") ->  | J124: =[2]!SUMSTRING(D124:E124,"#") ->  | L124: =[2]!SUMSTRING(G124:J124,"|") ->  | N124: 14 | O124: =SUM($B$1:B124)*0.6 -> 1465860 | P124: 3 | Q124: =SUM($E$1:E124)*0.6 -> 67770 | S124: =[2]!SUMSTRING(N124:O124,"#") ->  | U124: =[2]!SUMSTRING(P124:Q124,"#") ->  | W124: =[2]!SUMSTRING(S124:U124,"|") -> 
A125: 14 | B125: 63000 | D125: 3 | E125: 3640 | G125: =[2]!SUMSTRING(A125:B125,"#") ->  | J125: =[2]!SUMSTRING(D125:E125,"#") ->  | L125: =[2]!SUMSTRING(G125:J125,"|") ->  | N125: 14 | O125: =SUM($B$1:B125)*0.6 -> 1503660 | P125: 3 | Q125: =SUM($E$1:E125)*0.6 -> 69954 | S125: =[2]!SUMSTRING(N125:O125,"#") ->  | U125: =[2]!SUMSTRING(P125:Q125,"#") ->  | W125: =[2]!SUMSTRING(S125:U125,"|") -> 
A126: 14 | B126: 64000 | D126: 3 | E126: 3740 | G126: =[2]!SUMSTRING(A126:B126,"#") ->  | J126: =[2]!SUMSTRING(D126:E126,"#") ->  | L126: =[2]!SUMSTRING(G126:J126,"|") ->  | N126: 14 | O126: =SUM($B$1:B126)*0.6 -> 1542060 | P126: 3 | Q126: =SUM($E$1:E126)*0.6 -> 72198 | S126: =[2]!SUMSTRING(N126:O126,"#") ->  | U126: =[2]!SUMSTRING(P126:Q126,"#") ->  | W126: =[2]!SUMSTRING(S126:U126,"|") -> 
A127: 14 | B127: 65000 | D127: 3 | E127: 3840 | G127: =[2]!SUMSTRING(A127:B127,"#") ->  | J127: =[2]!SUMSTRING(D127:E127,"#") ->  | L127: =[2]!SUMSTRING(G127:J127,"|") ->  | N127: 14 | O127: =SUM($B$1:B127)*0.6 -> 1581060 | P127: 3 | Q127: =SUM($E$1:E127)*0.6 -> 74502 | S127: =[2]!SUMSTRING(N127:O127,"#") ->  | U127: =[2]!SUMSTRING(P127:Q127,"#") ->  | W127: =[2]!SUMSTRING(S127:U127,"|") -> 
A128: 14 | B128: 66000 | D128: 3 | E128: 3940 | G128: =[2]!SUMSTRING(A128:B128,"#") ->  | J128: =[2]!SUMSTRING(D128:E128,"#") ->  | L128: =[2]!SUMSTRING(G128:J128,"|") ->  | N128: 14 | O128: =SUM($B$1:B128)*0.6 -> 1620660 | P128: 3 | Q128: =SUM($E$1:E128)*0.6 -> 76866 | S128: =[2]!SUMSTRING(N128:O128,"#") ->  | U128: =[2]!SUMSTRING(P128:Q128,"#") ->  | W128: =[2]!SUMSTRING(S128:U128,"|") -> 
A129: 14 | B129: 67000 | D129: 3 | E129: 4040 | G129: =[2]!SUMSTRING(A129:B129,"#") ->  | J129: =[2]!SUMSTRING(D129:E129,"#") ->  | L129: =[2]!SUMSTRING(G129:J129,"|") ->  | N129: 14 | O129: =SUM($B$1:B129)*0.6 -> 1660860 | P129: 3 | Q129: =SUM($E$1:E129)*0.6 -> 79290 | S129: =[2]!SUMSTRING(N129:O129,"#") ->  | U129: =[2]!SUMSTRING(P129:Q129,"#") ->  | W129: =[2]!SUMSTRING(S129:U129,"|") -> 
A130: 14 | B130: 68000 | D130: 3 | E130: 4140 | G130: =[2]!SUMSTRING(A130:B130,"#") ->  | J130: =[2]!SUMSTRING(D130:E130,"#") ->  | L130: =[2]!SUMSTRING(G130:J130,"|") ->  | N130: 14 | O130: =SUM($B$1:B130)*0.6 -> 1701660 | P130: 3 | Q130: =SUM($E$1:E130)*0.6 -> 81774 | S130: =[2]!SUMSTRING(N130:O130,"#") ->  | U130: =[2]!SUMSTRING(P130:Q130,"#") ->  | W130: =[2]!SUMSTRING(S130:U130,"|") -> 
A131: 14 | B131: 69000 | D131: 3 | E131: 4240 | G131: =[2]!SUMSTRING(A131:B131,"#") ->  | J131: =[2]!SUMSTRING(D131:E131,"#") ->  | L131: =[2]!SUMSTRING(G131:J131,"|") ->  | N131: 14 | O131: =SUM($B$1:B131)*0.6 -> 1743060 | P131: 3 | Q131: =SUM($E$1:E131)*0.6 -> 84318 | S131: =[2]!SUMSTRING(N131:O131,"#") ->  | U131: =[2]!SUMSTRING(P131:Q131,"#") ->  | W131: =[2]!SUMSTRING(S131:U131,"|") -> 
A132: 14 | B132: 70000 | D132: 3 | E132: 4340 | G132: =[2]!SUMSTRING(A132:B132,"#") ->  | J132: =[2]!SUMSTRING(D132:E132,"#") ->  | L132: =[2]!SUMSTRING(G132:J132,"|") ->  | N132: 14 | O132: =SUM($B$1:B132)*0.6 -> 1785060 | P132: 3 | Q132: =SUM($E$1:E132)*0.6 -> 86922 | S132: =[2]!SUMSTRING(N132:O132,"#") ->  | U132: =[2]!SUMSTRING(P132:Q132,"#") ->  | W132: =[2]!SUMSTRING(S132:U132,"|") -> 
A133: 14 | B133: 71000 | D133: 3 | E133: 4440 | G133: =[2]!SUMSTRING(A133:B133,"#") ->  | J133: =[2]!SUMSTRING(D133:E133,"#") ->  | L133: =[2]!SUMSTRING(G133:J133,"|") ->  | N133: 14 | O133: =SUM($B$1:B133)*0.6 -> 1827660 | P133: 3 | Q133: =SUM($E$1:E133)*0.6 -> 89586 | S133: =[2]!SUMSTRING(N133:O133,"#") ->  | U133: =[2]!SUMSTRING(P133:Q133,"#") ->  | W133: =[2]!SUMSTRING(S133:U133,"|") -> 
A134: 14 | B134: 72000 | D134: 3 | E134: 4540 | G134: =[2]!SUMSTRING(A134:B134,"#") ->  | J134: =[2]!SUMSTRING(D134:E134,"#") ->  | L134: =[2]!SUMSTRING(G134:J134,"|") ->  | N134: 14 | O134: =SUM($B$1:B134)*0.6 -> 1870860 | P134: 3 | Q134: =SUM($E$1:E134)*0.6 -> 92310 | S134: =[2]!SUMSTRING(N134:O134,"#") ->  | U134: =[2]!SUMSTRING(P134:Q134,"#") ->  | W134: =[2]!SUMSTRING(S134:U134,"|") -> 
A135: 14 | B135: 73000 | D135: 3 | E135: 4640 | G135: =[2]!SUMSTRING(A135:B135,"#") ->  | J135: =[2]!SUMSTRING(D135:E135,"#") ->  | L135: =[2]!SUMSTRING(G135:J135,"|") ->  | N135: 14 | O135: =SUM($B$1:B135)*0.6 -> 1914660 | P135: 3 | Q135: =SUM($E$1:E135)*0.6 -> 95094 | S135: =[2]!SUMSTRING(N135:O135,"#") ->  | U135: =[2]!SUMSTRING(P135:Q135,"#") ->  | W135: =[2]!SUMSTRING(S135:U135,"|") -> 
A136: 14 | B136: 74000 | D136: 3 | E136: 4740 | G136: =[2]!SUMSTRING(A136:B136,"#") ->  | J136: =[2]!SUMSTRING(D136:E136,"#") ->  | L136: =[2]!SUMSTRING(G136:J136,"|") ->  | N136: 14 | O136: =SUM($B$1:B136)*0.6 -> 1959060 | P136: 3 | Q136: =SUM($E$1:E136)*0.6 -> 97938 | S136: =[2]!SUMSTRING(N136:O136,"#") ->  | U136: =[2]!SUMSTRING(P136:Q136,"#") ->  | W136: =[2]!SUMSTRING(S136:U136,"|") -> 
A137: 14 | B137: 75000 | D137: 3 | E137: 4840 | G137: =[2]!SUMSTRING(A137:B137,"#") ->  | J137: =[2]!SUMSTRING(D137:E137,"#") ->  | L137: =[2]!SUMSTRING(G137:J137,"|") ->  | N137: 14 | O137: =SUM($B$1:B137)*0.6 -> 2004060 | P137: 3 | Q137: =SUM($E$1:E137)*0.6 -> 100842 | S137: =[2]!SUMSTRING(N137:O137,"#") ->  | U137: =[2]!SUMSTRING(P137:Q137,"#") ->  | W137: =[2]!SUMSTRING(S137:U137,"|") -> 
A138: 14 | B138: 76000 | D138: 3 | E138: 4940 | G138: =[2]!SUMSTRING(A138:B138,"#") ->  | J138: =[2]!SUMSTRING(D138:E138,"#") ->  | L138: =[2]!SUMSTRING(G138:J138,"|") ->  | N138: 14 | O138: =SUM($B$1:B138)*0.6 -> 2049660 | P138: 3 | Q138: =SUM($E$1:E138)*0.6 -> 103806 | S138: =[2]!SUMSTRING(N138:O138,"#") ->  | U138: =[2]!SUMSTRING(P138:Q138,"#") ->  | W138: =[2]!SUMSTRING(S138:U138,"|") -> 
A139: 14 | B139: 77000 | D139: 3 | E139: 5040 | G139: =[2]!SUMSTRING(A139:B139,"#") ->  | J139: =[2]!SUMSTRING(D139:E139,"#") ->  | L139: =[2]!SUMSTRING(G139:J139,"|") ->  | N139: 14 | O139: =SUM($B$1:B139)*0.6 -> 2095860 | P139: 3 | Q139: =SUM($E$1:E139)*0.6 -> 106830 | S139: =[2]!SUMSTRING(N139:O139,"#") ->  | U139: =[2]!SUMSTRING(P139:Q139,"#") ->  | W139: =[2]!SUMSTRING(S139:U139,"|") -> 
A140: 14 | B140: 80000 | D140: 3 | E140: 5340 | G140: =[2]!SUMSTRING(A140:B140,"#") ->  | J140: =[2]!SUMSTRING(D140:E140,"#") ->  | L140: =[2]!SUMSTRING(G140:J140,"|") ->  | N140: 14 | O140: =SUM($B$1:B140)*0.6 -> 2143860 | P140: 3 | Q140: =SUM($E$1:E140)*0.6 -> 110034 | S140: =[2]!SUMSTRING(N140:O140,"#") ->  | U140: =[2]!SUMSTRING(P140:Q140,"#") ->  | W140: =[2]!SUMSTRING(S140:U140,"|") -> 
A141: 14 | B141: 83000 | D141: 3 | E141: 6140 | G141: =[2]!SUMSTRING(A141:B141,"#") ->  | J141: =[2]!SUMSTRING(D141:E141,"#") ->  | L141: =[2]!SUMSTRING(G141:J141,"|") ->  | N141: 14 | O141: =SUM($B$1:B141)*0.6 -> 2193660 | P141: 3 | Q141: =SUM($E$1:E141)*0.6 -> 113718 | S141: =[2]!SUMSTRING(N141:O141,"#") ->  | U141: =[2]!SUMSTRING(P141:Q141,"#") ->  | W141: =[2]!SUMSTRING(S141:U141,"|") -> 
A142: 14 | B142: 86000 | D142: 3 | E142: 7440 | G142: =[2]!SUMSTRING(A142:B142,"#") ->  | J142: =[2]!SUMSTRING(D142:E142,"#") ->  | L142: =[2]!SUMSTRING(G142:J142,"|") ->  | N142: 14 | O142: =SUM($B$1:B142)*0.6 -> 2245260 | P142: 3 | Q142: =SUM($E$1:E142)*0.6 -> 118182 | S142: =[2]!SUMSTRING(N142:O142,"#") ->  | U142: =[2]!SUMSTRING(P142:Q142,"#") ->  | W142: =[2]!SUMSTRING(S142:U142,"|") -> 
A143: 14 | B143: 89000 | D143: 3 | E143: 8740 | G143: =[2]!SUMSTRING(A143:B143,"#") ->  | J143: =[2]!SUMSTRING(D143:E143,"#") ->  | L143: =[2]!SUMSTRING(G143:J143,"|") ->  | N143: 14 | O143: =SUM($B$1:B143)*0.6 -> 2298660 | P143: 3 | Q143: =SUM($E$1:E143)*0.6 -> 123426 | S143: =[2]!SUMSTRING(N143:O143,"#") ->  | U143: =[2]!SUMSTRING(P143:Q143,"#") ->  | W143: =[2]!SUMSTRING(S143:U143,"|") -> 
A144: 14 | B144: 92000 | D144: 3 | E144: 10040 | G144: =[2]!SUMSTRING(A144:B144,"#") ->  | J144: =[2]!SUMSTRING(D144:E144,"#") ->  | L144: =[2]!SUMSTRING(G144:J144,"|") ->  | N144: 14 | O144: =SUM($B$1:B144)*0.6 -> 2353860 | P144: 3 | Q144: =SUM($E$1:E144)*0.6 -> 129450 | S144: =[2]!SUMSTRING(N144:O144,"#") ->  | U144: =[2]!SUMSTRING(P144:Q144,"#") ->  | W144: =[2]!SUMSTRING(S144:U144,"|") -> 
A145: 14 | B145: 95000 | D145: 3 | E145: 11340 | G145: =[2]!SUMSTRING(A145:B145,"#") ->  | J145: =[2]!SUMSTRING(D145:E145,"#") ->  | L145: =[2]!SUMSTRING(G145:J145,"|") ->  | N145: 14 | O145: =SUM($B$1:B145)*0.6 -> 2410860 | P145: 3 | Q145: =SUM($E$1:E145)*0.6 -> 136254 | S145: =[2]!SUMSTRING(N145:O145,"#") ->  | U145: =[2]!SUMSTRING(P145:Q145,"#") ->  | W145: =[2]!SUMSTRING(S145:U145,"|") -> 
A146: 14 | B146: 98000 | D146: 3 | E146: 12640 | G146: =[2]!SUMSTRING(A146:B146,"#") ->  | J146: =[2]!SUMSTRING(D146:E146,"#") ->  | L146: =[2]!SUMSTRING(G146:J146,"|") ->  | N146: 14 | O146: =SUM($B$1:B146)*0.6 -> 2469660 | P146: 3 | Q146: =SUM($E$1:E146)*0.6 -> 143838 | S146: =[2]!SUMSTRING(N146:O146,"#") ->  | U146: =[2]!SUMSTRING(P146:Q146,"#") ->  | W146: =[2]!SUMSTRING(S146:U146,"|") -> 
A147: 14 | B147: 101000 | D147: 3 | E147: 13940 | G147: =[2]!SUMSTRING(A147:B147,"#") ->  | J147: =[2]!SUMSTRING(D147:E147,"#") ->  | L147: =[2]!SUMSTRING(G147:J147,"|") ->  | N147: 14 | O147: =SUM($B$1:B147)*0.6 -> 2530260 | P147: 3 | Q147: =SUM($E$1:E147)*0.6 -> 152202 | S147: =[2]!SUMSTRING(N147:O147,"#") ->  | U147: =[2]!SUMSTRING(P147:Q147,"#") ->  | W147: =[2]!SUMSTRING(S147:U147,"|") -> 
A148: 14 | B148: 104000 | D148: 3 | E148: 15240 | G148: =[2]!SUMSTRING(A148:B148,"#") ->  | J148: =[2]!SUMSTRING(D148:E148,"#") ->  | L148: =[2]!SUMSTRING(G148:J148,"|") ->  | N148: 14 | O148: =SUM($B$1:B148)*0.6 -> 2592660 | P148: 3 | Q148: =SUM($E$1:E148)*0.6 -> 161346 | S148: =[2]!SUMSTRING(N148:O148,"#") ->  | U148: =[2]!SUMSTRING(P148:Q148,"#") ->  | W148: =[2]!SUMSTRING(S148:U148,"|") -> 
A149: 14 | B149: 107000 | D149: 3 | E149: 16540 | G149: =[2]!SUMSTRING(A149:B149,"#") ->  | J149: =[2]!SUMSTRING(D149:E149,"#") ->  | L149: =[2]!SUMSTRING(G149:J149,"|") ->  | N149: 14 | O149: =SUM($B$1:B149)*0.6 -> 2656860 | P149: 3 | Q149: =SUM($E$1:E149)*0.6 -> 171270 | S149: =[2]!SUMSTRING(N149:O149,"#") ->  | U149: =[2]!SUMSTRING(P149:Q149,"#") ->  | W149: =[2]!SUMSTRING(S149:U149,"|") -> 
A150: 14 | B150: 110000 | D150: 3 | E150: 17840 | G150: =[2]!SUMSTRING(A150:B150,"#") ->  | J150: =[2]!SUMSTRING(D150:E150,"#") ->  | L150: =[2]!SUMSTRING(G150:J150,"|") ->  | N150: 14 | O150: =SUM($B$1:B150)*0.6 -> 2722860 | P150: 3 | Q150: =SUM($E$1:E150)*0.6 -> 181974 | S150: =[2]!SUMSTRING(N150:O150,"#") ->  | U150: =[2]!SUMSTRING(P150:Q150,"#") ->  | W150: =[2]!SUMSTRING(S150:U150,"|") -> 
A151: 14 | B151: 113000 | D151: 3 | E151: 19140 | G151: =[2]!SUMSTRING(A151:B151,"#") ->  | J151: =[2]!SUMSTRING(D151:E151,"#") ->  | L151: =[2]!SUMSTRING(G151:J151,"|") ->  | N151: 14 | O151: =SUM($B$1:B151)*0.6 -> 2790660 | P151: 3 | Q151: =SUM($E$1:E151)*0.6 -> 193458 | S151: =[2]!SUMSTRING(N151:O151,"#") ->  | U151: =[2]!SUMSTRING(P151:Q151,"#") ->  | W151: =[2]!SUMSTRING(S151:U151,"|") -> 
A152: 14 | B152: 116000 | D152: 3 | E152: 20440 | G152: =[2]!SUMSTRING(A152:B152,"#") ->  | J152: =[2]!SUMSTRING(D152:E152,"#") ->  | L152: =[2]!SUMSTRING(G152:J152,"|") ->  | N152: 14 | O152: =SUM($B$1:B152)*0.6 -> 2860260 | P152: 3 | Q152: =SUM($E$1:E152)*0.6 -> 205722 | S152: =[2]!SUMSTRING(N152:O152,"#") ->  | U152: =[2]!SUMSTRING(P152:Q152,"#") ->  | W152: =[2]!SUMSTRING(S152:U152,"|") -> 
A153: 14 | B153: 119000 | D153: 3 | E153: 21740 | G153: =[2]!SUMSTRING(A153:B153,"#") ->  | J153: =[2]!SUMSTRING(D153:E153,"#") ->  | L153: =[2]!SUMSTRING(G153:J153,"|") ->  | N153: 14 | O153: =SUM($B$1:B153)*0.6 -> 2931660 | P153: 3 | Q153: =SUM($E$1:E153)*0.6 -> 218766 | S153: =[2]!SUMSTRING(N153:O153,"#") ->  | U153: =[2]!SUMSTRING(P153:Q153,"#") ->  | W153: =[2]!SUMSTRING(S153:U153,"|") -> 
A154: 14 | B154: 122000 | D154: 3 | E154: 23040 | G154: =[2]!SUMSTRING(A154:B154,"#") ->  | J154: =[2]!SUMSTRING(D154:E154,"#") ->  | L154: =[2]!SUMSTRING(G154:J154,"|") ->  | N154: 14 | O154: =SUM($B$1:B154)*0.6 -> 3004860 | P154: 3 | Q154: =SUM($E$1:E154)*0.6 -> 232590 | S154: =[2]!SUMSTRING(N154:O154,"#") ->  | U154: =[2]!SUMSTRING(P154:Q154,"#") ->  | W154: =[2]!SUMSTRING(S154:U154,"|") -> 
A155: 14 | B155: 125000 | D155: 3 | E155: 24340 | G155: =[2]!SUMSTRING(A155:B155,"#") ->  | J155: =[2]!SUMSTRING(D155:E155,"#") ->  | L155: =[2]!SUMSTRING(G155:J155,"|") ->  | N155: 14 | O155: =SUM($B$1:B155)*0.6 -> 3079860 | P155: 3 | Q155: =SUM($E$1:E155)*0.6 -> 247194 | S155: =[2]!SUMSTRING(N155:O155,"#") ->  | U155: =[2]!SUMSTRING(P155:Q155,"#") ->  | W155: =[2]!SUMSTRING(S155:U155,"|") -> 
A156: 14 | B156: 128000 | D156: 3 | E156: 25640 | G156: =[2]!SUMSTRING(A156:B156,"#") ->  | J156: =[2]!SUMSTRING(D156:E156,"#") ->  | L156: =[2]!SUMSTRING(G156:J156,"|") ->  | N156: 14 | O156: =SUM($B$1:B156)*0.6 -> 3156660 | P156: 3 | Q156: =SUM($E$1:E156)*0.6 -> 262578 | S156: =[2]!SUMSTRING(N156:O156,"#") ->  | U156: =[2]!SUMSTRING(P156:Q156,"#") ->  | W156: =[2]!SUMSTRING(S156:U156,"|") -> 
A157: 14 | B157: 131000 | D157: 3 | E157: 26940 | G157: =[2]!SUMSTRING(A157:B157,"#") ->  | J157: =[2]!SUMSTRING(D157:E157,"#") ->  | L157: =[2]!SUMSTRING(G157:J157,"|") ->  | N157: 14 | O157: =SUM($B$1:B157)*0.6 -> 3235260 | P157: 3 | Q157: =SUM($E$1:E157)*0.6 -> 278742 | S157: =[2]!SUMSTRING(N157:O157,"#") ->  | U157: =[2]!SUMSTRING(P157:Q157,"#") ->  | W157: =[2]!SUMSTRING(S157:U157,"|") -> 
A158: 14 | B158: 134000 | D158: 3 | E158: 28240 | G158: =[2]!SUMSTRING(A158:B158,"#") ->  | J158: =[2]!SUMSTRING(D158:E158,"#") ->  | L158: =[2]!SUMSTRING(G158:J158,"|") ->  | N158: 14 | O158: =SUM($B$1:B158)*0.6 -> 3315660 | P158: 3 | Q158: =SUM($E$1:E158)*0.6 -> 295686 | S158: =[2]!SUMSTRING(N158:O158,"#") ->  | U158: =[2]!SUMSTRING(P158:Q158,"#") ->  | W158: =[2]!SUMSTRING(S158:U158,"|") -> 
A159: 14 | B159: 137000 | D159: 3 | E159: 29540 | G159: =[2]!SUMSTRING(A159:B159,"#") ->  | J159: =[2]!SUMSTRING(D159:E159,"#") ->  | L159: =[2]!SUMSTRING(G159:J159,"|") ->  | N159: 14 | O159: =SUM($B$1:B159)*0.6 -> 3397860 | P159: 3 | Q159: =SUM($E$1:E159)*0.6 -> 313410 | S159: =[2]!SUMSTRING(N159:O159,"#") ->  | U159: =[2]!SUMSTRING(P159:Q159,"#") ->  | W159: =[2]!SUMSTRING(S159:U159,"|") -> 
A160: 14 | B160: 140000 | D160: 3 | E160: 30840 | G160: =[2]!SUMSTRING(A160:B160,"#") ->  | J160: =[2]!SUMSTRING(D160:E160,"#") ->  | L160: =[2]!SUMSTRING(G160:J160,"|") ->  | N160: 14 | O160: =SUM($B$1:B160)*0.6 -> 3481860 | P160: 3 | Q160: =SUM($E$1:E160)*0.6 -> 331914 | S160: =[2]!SUMSTRING(N160:O160,"#") ->  | U160: =[2]!SUMSTRING(P160:Q160,"#") ->  | W160: =[2]!SUMSTRING(S160:U160,"|") -> 
A161: 14 | B161: 145000 | D161: 3 | E161: 32000 | G161: =[2]!SUMSTRING(A161:B161,"#") ->  | J161: =[2]!SUMSTRING(D161:E161,"#") ->  | L161: =[2]!SUMSTRING(G161:J161,"|") ->  | N161: 14 | O161: =SUM($B$1:B161)*0.6 -> 3568860 | P161: 3 | Q161: =SUM($E$1:E161)*0.6 -> 351114 | S161: =[2]!SUMSTRING(N161:O161,"#") ->  | U161: =[2]!SUMSTRING(P161:Q161,"#") ->  | W161: =[2]!SUMSTRING(S161:U161,"|") -> 
A162: 14 | B162: 150000 | D162: 3 | E162: 33160 | G162: =[2]!SUMSTRING(A162:B162,"#") ->  | J162: =[2]!SUMSTRING(D162:E162,"#") ->  | L162: =[2]!SUMSTRING(G162:J162,"|") ->  | N162: 14 | O162: =SUM($B$1:B162)*0.6 -> 3658860 | P162: 3 | Q162: =SUM($E$1:E162)*0.6 -> 371010 | S162: =[2]!SUMSTRING(N162:O162,"#") ->  | U162: =[2]!SUMSTRING(P162:Q162,"#") ->  | W162: =[2]!SUMSTRING(S162:U162,"|") -> 
A163: 14 | B163: 155000 | D163: 3 | E163: 34320 | G163: =[2]!SUMSTRING(A163:B163,"#") ->  | J163: =[2]!SUMSTRING(D163:E163,"#") ->  | L163: =[2]!SUMSTRING(G163:J163,"|") ->  | N163: 14 | O163: =SUM($B$1:B163)*0.6 -> 3751860 | P163: 3 | Q163: =SUM($E$1:E163)*0.6 -> 391602 | S163: =[2]!SUMSTRING(N163:O163,"#") ->  | U163: =[2]!SUMSTRING(P163:Q163,"#") ->  | W163: =[2]!SUMSTRING(S163:U163,"|") -> 
A164: 14 | B164: 160000 | D164: 3 | E164: 35480 | G164: =[2]!SUMSTRING(A164:B164,"#") ->  | J164: =[2]!SUMSTRING(D164:E164,"#") ->  | L164: =[2]!SUMSTRING(G164:J164,"|") ->  | N164: 14 | O164: =SUM($B$1:B164)*0.6 -> 3847860 | P164: 3 | Q164: =SUM($E$1:E164)*0.6 -> 412890 | S164: =[2]!SUMSTRING(N164:O164,"#") ->  | U164: =[2]!SUMSTRING(P164:Q164,"#") ->  | W164: =[2]!SUMSTRING(S164:U164,"|") -> 
A165: 14 | B165: 165000 | D165: 3 | E165: 36640 | G165: =[2]!SUMSTRING(A165:B165,"#") ->  | J165: =[2]!SUMSTRING(D165:E165,"#") ->  | L165: =[2]!SUMSTRING(G165:J165,"|") ->  | N165: 14 | O165: =SUM($B$1:B165)*0.6 -> 3946860 | P165: 3 | Q165: =SUM($E$1:E165)*0.6 -> 434874 | S165: =[2]!SUMSTRING(N165:O165,"#") ->  | U165: =[2]!SUMSTRING(P165:Q165,"#") ->  | W165: =[2]!SUMSTRING(S165:U165,"|") -> 
A166: 14 | B166: 170000 | D166: 3 | E166: 37800 | G166: =[2]!SUMSTRING(A166:B166,"#") ->  | J166: =[2]!SUMSTRING(D166:E166,"#") ->  | L166: =[2]!SUMSTRING(G166:J166,"|") ->  | N166: 14 | O166: =SUM($B$1:B166)*0.6 -> 4048860 | P166: 3 | Q166: =SUM($E$1:E166)*0.6 -> 457554 | S166: =[2]!SUMSTRING(N166:O166,"#") ->  | U166: =[2]!SUMSTRING(P166:Q166,"#") ->  | W166: =[2]!SUMSTRING(S166:U166,"|") -> 
A167: 14 | B167: 175000 | D167: 3 | E167: 38960 | G167: =[2]!SUMSTRING(A167:B167,"#") ->  | J167: =[2]!SUMSTRING(D167:E167,"#") ->  | L167: =[2]!SUMSTRING(G167:J167,"|") ->  | N167: 14 | O167: =SUM($B$1:B167)*0.6 -> 4153860 | P167: 3 | Q167: =SUM($E$1:E167)*0.6 -> 480930 | S167: =[2]!SUMSTRING(N167:O167,"#") ->  | U167: =[2]!SUMSTRING(P167:Q167,"#") ->  | W167: =[2]!SUMSTRING(S167:U167,"|") -> 
A168: 14 | B168: 180000 | D168: 3 | E168: 40120 | G168: =[2]!SUMSTRING(A168:B168,"#") ->  | J168: =[2]!SUMSTRING(D168:E168,"#") ->  | L168: =[2]!SUMSTRING(G168:J168,"|") ->  | N168: 14 | O168: =SUM($B$1:B168)*0.6 -> 4261860 | P168: 3 | Q168: =SUM($E$1:E168)*0.6 -> 505002 | S168: =[2]!SUMSTRING(N168:O168,"#") ->  | U168: =[2]!SUMSTRING(P168:Q168,"#") ->  | W168: =[2]!SUMSTRING(S168:U168,"|") -> 
A169: 14 | B169: 185000 | D169: 3 | E169: 41280 | G169: =[2]!SUMSTRING(A169:B169,"#") ->  | J169: =[2]!SUMSTRING(D169:E169,"#") ->  | L169: =[2]!SUMSTRING(G169:J169,"|") ->  | N169: 14 | O169: =SUM($B$1:B169)*0.6 -> 4372860 | P169: 3 | Q169: =SUM($E$1:E169)*0.6 -> 529770 | S169: =[2]!SUMSTRING(N169:O169,"#") ->  | U169: =[2]!SUMSTRING(P169:Q169,"#") ->  | W169: =[2]!SUMSTRING(S169:U169,"|") -> 
A170: 14 | B170: 190000 | D170: 3 | E170: 42440 | G170: =[2]!SUMSTRING(A170:B170,"#") ->  | J170: =[2]!SUMSTRING(D170:E170,"#") ->  | L170: =[2]!SUMSTRING(G170:J170,"|") ->  | N170: 14 | O170: =SUM($B$1:B170)*0.6 -> 4486860 | P170: 3 | Q170: =SUM($E$1:E170)*0.6 -> 555234 | S170: =[2]!SUMSTRING(N170:O170,"#") ->  | U170: =[2]!SUMSTRING(P170:Q170,"#") ->  | W170: =[2]!SUMSTRING(S170:U170,"|") -> 
A171: 14 | B171: 195000 | D171: 3 | E171: 43600 | G171: =[2]!SUMSTRING(A171:B171,"#") ->  | J171: =[2]!SUMSTRING(D171:E171,"#") ->  | L171: =[2]!SUMSTRING(G171:J171,"|") ->  | N171: 14 | O171: =SUM($B$1:B171)*0.6 -> 4603860 | P171: 3 | Q171: =SUM($E$1:E171)*0.6 -> 581394 | S171: =[2]!SUMSTRING(N171:O171,"#") ->  | U171: =[2]!SUMSTRING(P171:Q171,"#") ->  | W171: =[2]!SUMSTRING(S171:U171,"|") -> 
A172: 14 | B172: 200000 | D172: 3 | E172: 44760 | G172: =[2]!SUMSTRING(A172:B172,"#") ->  | J172: =[2]!SUMSTRING(D172:E172,"#") ->  | L172: =[2]!SUMSTRING(G172:J172,"|") ->  | N172: 14 | O172: =SUM($B$1:B172)*0.6 -> 4723860 | P172: 3 | Q172: =SUM($E$1:E172)*0.6 -> 608250 | S172: =[2]!SUMSTRING(N172:O172,"#") ->  | U172: =[2]!SUMSTRING(P172:Q172,"#") ->  | W172: =[2]!SUMSTRING(S172:U172,"|") -> 
A173: 14 | B173: 205000 | D173: 3 | E173: 45920 | G173: =[2]!SUMSTRING(A173:B173,"#") ->  | J173: =[2]!SUMSTRING(D173:E173,"#") ->  | L173: =[2]!SUMSTRING(G173:J173,"|") ->  | N173: 14 | O173: =SUM($B$1:B173)*0.6 -> 4846860 | P173: 3 | Q173: =SUM($E$1:E173)*0.6 -> 635802 | S173: =[2]!SUMSTRING(N173:O173,"#") ->  | U173: =[2]!SUMSTRING(P173:Q173,"#") ->  | W173: =[2]!SUMSTRING(S173:U173,"|") -> 
A174: 14 | B174: 210000 | D174: 3 | E174: 47080 | G174: =[2]!SUMSTRING(A174:B174,"#") ->  | J174: =[2]!SUMSTRING(D174:E174,"#") ->  | L174: =[2]!SUMSTRING(G174:J174,"|") ->  | N174: 14 | O174: =SUM($B$1:B174)*0.6 -> 4972860 | P174: 3 | Q174: =SUM($E$1:E174)*0.6 -> 664050 | S174: =[2]!SUMSTRING(N174:O174,"#") ->  | U174: =[2]!SUMSTRING(P174:Q174,"#") ->  | W174: =[2]!SUMSTRING(S174:U174,"|") -> 
A175: 14 | B175: 215000 | D175: 3 | E175: 48240 | G175: =[2]!SUMSTRING(A175:B175,"#") ->  | J175: =[2]!SUMSTRING(D175:E175,"#") ->  | L175: =[2]!SUMSTRING(G175:J175,"|") ->  | N175: 14 | O175: =SUM($B$1:B175)*0.6 -> 5101860 | P175: 3 | Q175: =SUM($E$1:E175)*0.6 -> 692994 | S175: =[2]!SUMSTRING(N175:O175,"#") ->  | U175: =[2]!SUMSTRING(P175:Q175,"#") ->  | W175: =[2]!SUMSTRING(S175:U175,"|") -> 
A176: 14 | B176: 220000 | D176: 3 | E176: 49400 | G176: =[2]!SUMSTRING(A176:B176,"#") ->  | J176: =[2]!SUMSTRING(D176:E176,"#") ->  | L176: =[2]!SUMSTRING(G176:J176,"|") ->  | N176: 14 | O176: =SUM($B$1:B176)*0.6 -> 5233860 | P176: 3 | Q176: =SUM($E$1:E176)*0.6 -> 722634 | S176: =[2]!SUMSTRING(N176:O176,"#") ->  | U176: =[2]!SUMSTRING(P176:Q176,"#") ->  | W176: =[2]!SUMSTRING(S176:U176,"|") -> 
A177: 14 | B177: 225000 | D177: 3 | E177: 50560 | G177: =[2]!SUMSTRING(A177:B177,"#") ->  | J177: =[2]!SUMSTRING(D177:E177,"#") ->  | L177: =[2]!SUMSTRING(G177:J177,"|") ->  | N177: 14 | O177: =SUM($B$1:B177)*0.6 -> 5368860 | P177: 3 | Q177: =SUM($E$1:E177)*0.6 -> 752970 | S177: =[2]!SUMSTRING(N177:O177,"#") ->  | U177: =[2]!SUMSTRING(P177:Q177,"#") ->  | W177: =[2]!SUMSTRING(S177:U177,"|") -> 
A178: 14 | B178: 230000 | D178: 3 | E178: 51720 | G178: =[2]!SUMSTRING(A178:B178,"#") ->  | J178: =[2]!SUMSTRING(D178:E178,"#") ->  | L178: =[2]!SUMSTRING(G178:J178,"|") ->  | N178: 14 | O178: =SUM($B$1:B178)*0.6 -> 5506860 | P178: 3 | Q178: =SUM($E$1:E178)*0.6 -> 784002 | S178: =[2]!SUMSTRING(N178:O178,"#") ->  | U178: =[2]!SUMSTRING(P178:Q178,"#") ->  | W178: =[2]!SUMSTRING(S178:U178,"|") -> 
A179: 14 | B179: 235000 | D179: 3 | E179: 52880 | G179: =[2]!SUMSTRING(A179:B179,"#") ->  | J179: =[2]!SUMSTRING(D179:E179,"#") ->  | L179: =[2]!SUMSTRING(G179:J179,"|") ->  | N179: 14 | O179: =SUM($B$1:B179)*0.6 -> 5647860 | P179: 3 | Q179: =SUM($E$1:E179)*0.6 -> 815730 | S179: =[2]!SUMSTRING(N179:O179,"#") ->  | U179: =[2]!SUMSTRING(P179:Q179,"#") ->  | W179: =[2]!SUMSTRING(S179:U179,"|") -> 
A180: 14 | B180: 240000 | D180: 3 | E180: 54040 | G180: =[2]!SUMSTRING(A180:B180,"#") ->  | J180: =[2]!SUMSTRING(D180:E180,"#") ->  | L180: =[2]!SUMSTRING(G180:J180,"|") ->  | N180: 14 | O180: =SUM($B$1:B180)*0.6 -> 5791860 | P180: 3 | Q180: =SUM($E$1:E180)*0.6 -> 848154 | S180: =[2]!SUMSTRING(N180:O180,"#") ->  | U180: =[2]!SUMSTRING(P180:Q180,"#") ->  | W180: =[2]!SUMSTRING(S180:U180,"|") -> 
A181: 14 | B181: 245000 | D181: 3 | E181: 55200 | G181: =[2]!SUMSTRING(A181:B181,"#") ->  | J181: =[2]!SUMSTRING(D181:E181,"#") ->  | L181: =[2]!SUMSTRING(G181:J181,"|") ->  | N181: 14 | O181: =SUM($B$1:B181)*0.6 -> 5938860 | P181: 3 | Q181: =SUM($E$1:E181)*0.6 -> 881274 | S181: =[2]!SUMSTRING(N181:O181,"#") ->  | U181: =[2]!SUMSTRING(P181:Q181,"#") ->  | W181: =[2]!SUMSTRING(S181:U181,"|") -> 
A182: 14 | B182: 250000 | D182: 3 | E182: 56360 | G182: =[2]!SUMSTRING(A182:B182,"#") ->  | J182: =[2]!SUMSTRING(D182:E182,"#") ->  | L182: =[2]!SUMSTRING(G182:J182,"|") ->  | N182: 14 | O182: =SUM($B$1:B182)*0.6 -> 6088860 | P182: 3 | Q182: =SUM($E$1:E182)*0.6 -> 915090 | S182: =[2]!SUMSTRING(N182:O182,"#") ->  | U182: =[2]!SUMSTRING(P182:Q182,"#") ->  | W182: =[2]!SUMSTRING(S182:U182,"|") -> 
A183: 14 | B183: 255000 | D183: 3 | E183: 57520 | G183: =[2]!SUMSTRING(A183:B183,"#") ->  | J183: =[2]!SUMSTRING(D183:E183,"#") ->  | L183: =[2]!SUMSTRING(G183:J183,"|") ->  | N183: 14 | O183: =SUM($B$1:B183)*0.6 -> 6241860 | P183: 3 | Q183: =SUM($E$1:E183)*0.6 -> 949602 | S183: =[2]!SUMSTRING(N183:O183,"#") ->  | U183: =[2]!SUMSTRING(P183:Q183,"#") ->  | W183: =[2]!SUMSTRING(S183:U183,"|") -> 
A184: 14 | B184: 260000 | D184: 3 | E184: 58680 | G184: =[2]!SUMSTRING(A184:B184,"#") ->  | J184: =[2]!SUMSTRING(D184:E184,"#") ->  | L184: =[2]!SUMSTRING(G184:J184,"|") ->  | N184: 14 | O184: =SUM($B$1:B184)*0.6 -> 6397860 | P184: 3 | Q184: =SUM($E$1:E184)*0.6 -> 984810 | S184: =[2]!SUMSTRING(N184:O184,"#") ->  | U184: =[2]!SUMSTRING(P184:Q184,"#") ->  | W184: =[2]!SUMSTRING(S184:U184,"|") -> 
A185: 14 | B185: 265000 | D185: 3 | E185: 59840 | G185: =[2]!SUMSTRING(A185:B185,"#") ->  | J185: =[2]!SUMSTRING(D185:E185,"#") ->  | L185: =[2]!SUMSTRING(G185:J185,"|") ->  | N185: 14 | O185: =SUM($B$1:B185)*0.6 -> 6556860 | P185: 3 | Q185: =SUM($E$1:E185)*0.6 -> 1020714 | S185: =[2]!SUMSTRING(N185:O185,"#") ->  | U185: =[2]!SUMSTRING(P185:Q185,"#") ->  | W185: =[2]!SUMSTRING(S185:U185,"|") -> 
A186: 14 | B186: 270000 | D186: 3 | E186: 61000 | G186: =[2]!SUMSTRING(A186:B186,"#") ->  | J186: =[2]!SUMSTRING(D186:E186,"#") ->  | L186: =[2]!SUMSTRING(G186:J186,"|") ->  | N186: 14 | O186: =SUM($B$1:B186)*0.6 -> 6718860 | P186: 3 | Q186: =SUM($E$1:E186)*0.6 -> 1057314 | S186: =[2]!SUMSTRING(N186:O186,"#") ->  | U186: =[2]!SUMSTRING(P186:Q186,"#") ->  | W186: =[2]!SUMSTRING(S186:U186,"|") -> 
A187: 14 | B187: 275000 | D187: 3 | E187: 62160 | G187: =[2]!SUMSTRING(A187:B187,"#") ->  | J187: =[2]!SUMSTRING(D187:E187,"#") ->  | L187: =[2]!SUMSTRING(G187:J187,"|") ->  | N187: 14 | O187: =SUM($B$1:B187)*0.6 -> 6883860 | P187: 3 | Q187: =SUM($E$1:E187)*0.6 -> 1094610 | S187: =[2]!SUMSTRING(N187:O187,"#") ->  | U187: =[2]!SUMSTRING(P187:Q187,"#") ->  | W187: =[2]!SUMSTRING(S187:U187,"|") -> 
A188: 14 | B188: 280000 | D188: 3 | E188: 63320 | G188: =[2]!SUMSTRING(A188:B188,"#") ->  | J188: =[2]!SUMSTRING(D188:E188,"#") ->  | L188: =[2]!SUMSTRING(G188:J188,"|") ->  | N188: 14 | O188: =SUM($B$1:B188)*0.6 -> 7051860 | P188: 3 | Q188: =SUM($E$1:E188)*0.6 -> 1132602 | S188: =[2]!SUMSTRING(N188:O188,"#") ->  | U188: =[2]!SUMSTRING(P188:Q188,"#") ->  | W188: =[2]!SUMSTRING(S188:U188,"|") -> 
A189: 14 | B189: 285000 | D189: 3 | E189: 64480 | G189: =[2]!SUMSTRING(A189:B189,"#") ->  | J189: =[2]!SUMSTRING(D189:E189,"#") ->  | L189: =[2]!SUMSTRING(G189:J189,"|") ->  | N189: 14 | O189: =SUM($B$1:B189)*0.6 -> 7222860 | P189: 3 | Q189: =SUM($E$1:E189)*0.6 -> 1171290 | S189: =[2]!SUMSTRING(N189:O189,"#") ->  | U189: =[2]!SUMSTRING(P189:Q189,"#") ->  | W189: =[2]!SUMSTRING(S189:U189,"|") -> 
A190: 14 | B190: 290000 | D190: 3 | E190: 65640 | G190: =[2]!SUMSTRING(A190:B190,"#") ->  | J190: =[2]!SUMSTRING(D190:E190,"#") ->  | L190: =[2]!SUMSTRING(G190:J190,"|") ->  | N190: 14 | O190: =SUM($B$1:B190)*0.6 -> 7396860 | P190: 3 | Q190: =SUM($E$1:E190)*0.6 -> 1210674 | S190: =[2]!SUMSTRING(N190:O190,"#") ->  | U190: =[2]!SUMSTRING(P190:Q190,"#") ->  | W190: =[2]!SUMSTRING(S190:U190,"|") -> 
A191: 14 | B191: 295000 | D191: 3 | E191: 66800 | G191: =[2]!SUMSTRING(A191:B191,"#") ->  | J191: =[2]!SUMSTRING(D191:E191,"#") ->  | L191: =[2]!SUMSTRING(G191:J191,"|") ->  | N191: 14 | O191: =SUM($B$1:B191)*0.6 -> 7573860 | P191: 3 | Q191: =SUM($E$1:E191)*0.6 -> 1250754 | S191: =[2]!SUMSTRING(N191:O191,"#") ->  | U191: =[2]!SUMSTRING(P191:Q191,"#") ->  | W191: =[2]!SUMSTRING(S191:U191,"|") -> 
A192: 14 | B192: 300000 | D192: 3 | E192: 67960 | G192: =[2]!SUMSTRING(A192:B192,"#") ->  | J192: =[2]!SUMSTRING(D192:E192,"#") ->  | L192: =[2]!SUMSTRING(G192:J192,"|") ->  | N192: 14 | O192: =SUM($B$1:B192)*0.6 -> 7753860 | P192: 3 | Q192: =SUM($E$1:E192)*0.6 -> 1291530 | S192: =[2]!SUMSTRING(N192:O192,"#") ->  | U192: =[2]!SUMSTRING(P192:Q192,"#") ->  | W192: =[2]!SUMSTRING(S192:U192,"|") -> 
A193: 14 | B193: 305000 | D193: 3 | E193: 69120 | G193: =[2]!SUMSTRING(A193:B193,"#") ->  | J193: =[2]!SUMSTRING(D193:E193,"#") ->  | L193: =[2]!SUMSTRING(G193:J193,"|") ->  | N193: 14 | O193: =SUM($B$1:B193)*0.6 -> 7936860 | P193: 3 | Q193: =SUM($E$1:E193)*0.6 -> 1333002 | S193: =[2]!SUMSTRING(N193:O193,"#") ->  | U193: =[2]!SUMSTRING(P193:Q193,"#") ->  | W193: =[2]!SUMSTRING(S193:U193,"|") -> 
A194: 14 | B194: 310000 | D194: 3 | E194: 70280 | G194: =[2]!SUMSTRING(A194:B194,"#") ->  | J194: =[2]!SUMSTRING(D194:E194,"#") ->  | L194: =[2]!SUMSTRING(G194:J194,"|") ->  | N194: 14 | O194: =SUM($B$1:B194)*0.6 -> 8122860 | P194: 3 | Q194: =SUM($E$1:E194)*0.6 -> 1375170 | S194: =[2]!SUMSTRING(N194:O194,"#") ->  | U194: =[2]!SUMSTRING(P194:Q194,"#") ->  | W194: =[2]!SUMSTRING(S194:U194,"|") -> 
A195: 14 | B195: 315000 | D195: 3 | E195: 71440 | G195: =[2]!SUMSTRING(A195:B195,"#") ->  | J195: =[2]!SUMSTRING(D195:E195,"#") ->  | L195: =[2]!SUMSTRING(G195:J195,"|") ->  | N195: 14 | O195: =SUM($B$1:B195)*0.6 -> 8311860 | P195: 3 | Q195: =SUM($E$1:E195)*0.6 -> 1418034 | S195: =[2]!SUMSTRING(N195:O195,"#") ->  | U195: =[2]!SUMSTRING(P195:Q195,"#") ->  | W195: =[2]!SUMSTRING(S195:U195,"|") -> 
A196: 14 | B196: 320000 | D196: 3 | E196: 72600 | G196: =[2]!SUMSTRING(A196:B196,"#") ->  | J196: =[2]!SUMSTRING(D196:E196,"#") ->  | L196: =[2]!SUMSTRING(G196:J196,"|") ->  | N196: 14 | O196: =SUM($B$1:B196)*0.6 -> 8503860 | P196: 3 | Q196: =SUM($E$1:E196)*0.6 -> 1461594 | S196: =[2]!SUMSTRING(N196:O196,"#") ->  | U196: =[2]!SUMSTRING(P196:Q196,"#") ->  | W196: =[2]!SUMSTRING(S196:U196,"|") -> 
A197: 14 | B197: 325000 | D197: 3 | E197: 73760 | G197: =[2]!SUMSTRING(A197:B197,"#") ->  | J197: =[2]!SUMSTRING(D197:E197,"#") ->  | L197: =[2]!SUMSTRING(G197:J197,"|") ->  | N197: 14 | O197: =SUM($B$1:B197)*0.6 -> 8698860 | P197: 3 | Q197: =SUM($E$1:E197)*0.6 -> 1505850 | S197: =[2]!SUMSTRING(N197:O197,"#") ->  | U197: =[2]!SUMSTRING(P197:Q197,"#") ->  | W197: =[2]!SUMSTRING(S197:U197,"|") -> 
A198: 14 | B198: 330000 | D198: 3 | E198: 74920 | G198: =[2]!SUMSTRING(A198:B198,"#") ->  | J198: =[2]!SUMSTRING(D198:E198,"#") ->  | L198: =[2]!SUMSTRING(G198:J198,"|") ->  | N198: 14 | O198: =SUM($B$1:B198)*0.6 -> 8896860 | P198: 3 | Q198: =SUM($E$1:E198)*0.6 -> 1550802 | S198: =[2]!SUMSTRING(N198:O198,"#") ->  | U198: =[2]!SUMSTRING(P198:Q198,"#") ->  | W198: =[2]!SUMSTRING(S198:U198,"|") -> 
A199: 14 | B199: 335000 | D199: 3 | E199: 76080 | G199: =[2]!SUMSTRING(A199:B199,"#") ->  | J199: =[2]!SUMSTRING(D199:E199,"#") ->  | L199: =[2]!SUMSTRING(G199:J199,"|") ->  | N199: 14 | O199: =SUM($B$1:B199)*0.6 -> 9097860 | P199: 3 | Q199: =SUM($E$1:E199)*0.6 -> 1596450 | S199: =[2]!SUMSTRING(N199:O199,"#") ->  | U199: =[2]!SUMSTRING(P199:Q199,"#") ->  | W199: =[2]!SUMSTRING(S199:U199,"|") -> 
A200: 14 | B200: 340000 | D200: 3 | E200: 77240 | G200: =[2]!SUMSTRING(A200:B200,"#") ->  | J200: =[2]!SUMSTRING(D200:E200,"#") ->  | L200: =[2]!SUMSTRING(G200:J200,"|") ->  | N200: 14 | O200: =SUM($B$1:B200)*0.6 -> 9301860 | P200: 3 | Q200: =SUM($E$1:E200)*0.6 -> 1642794 | S200: =[2]!SUMSTRING(N200:O200,"#") ->  | U200: =[2]!SUMSTRING(P200:Q200,"#") ->  | W200: =[2]!SUMSTRING(S200:U200,"|") -> 
... 50 more rows

Sheet Sheet1
I1: 14 | J1: 5788700 | K1: 3#396340
B2: 115600 | C2: 14 | D2: =B2*1.5 -> 173400 | E2: 3#16290 | F2: =C2&"#"&D2&"|"&E2 -> 14#173400|3#16290 | I2: 14 | J2: =J1+D2 -> 5962100 | K2: 3#412630 | L2: =I2&"#"&J2&"|"&K2 -> 14#5962100|3#412630 | O2: 1.000000 | P2: 1.000000 | Q2: =ROUND(O2,6) -> 1 | R2: =ROUND(P2,6) -> 1
B3: 118600 | C3: 14 | D3: =B3*1.5 -> 177900 | E3: 3#17090 | F3: =C3&"#"&D3&"|"&E3 -> 14#177900|3#17090 | I3: 14 | J3: =J2+D3 -> 6140000 | K3: 3#429720 | L3: =I3&"#"&J3&"|"&K3 -> 14#6140000|3#429720 | O3: 1.039394 | P3: 1.045455 | Q3: =ROUND(O3,6) -> 1.039394 | R3: =ROUND(P3,6) -> 1.045455
B4: 121600 | C4: 14 | D4: 182400 | E4: 3#17890 | F4: 14#182400|3#17890 | I4: 14 | J4: 6322400 | K4: 3#447610 | L4: 14#6322400|3#447610 | O4: 1.078788 | P4: 1.090909 | Q4: 1.078788 | R4: 1.090909
B5: 124600 | C5: 14 | D5: 186900 | E5: 3#18690 | F5: 14#186900|3#18690 | I5: 14 | J5: 6509300 | K5: 3#466300 | L5: 14#6509300|3#466300 | O5: 1.118182 | P5: 1.136364 | Q5: 1.118182 | R5: 1.136364
B6: 127600 | C6: 14 | D6: 191400 | E6: 3#19490 | F6: 14#191400|3#19490 | I6: 14 | J6: 6700700 | K6: 3#485790 | L6: 14#6700700|3#485790 | O6: 1.157576 | P6: 1.181818 | Q6: 1.157576 | R6: 1.181818
B7: 130600 | C7: 14 | D7: 195900 | E7: 3#20290 | F7: 14#195900|3#20290 | I7: 14 | J7: 6896600 | K7: 3#506080 | L7: 14#6896600|3#506080 | O7: 1.196970 | P7: 1.227273 | Q7: 1.19697 | R7: 1.227273
B8: 133600 | C8: 14 | D8: 200400 | E8: 3#21090 | F8: 14#200400|3#21090 | I8: 14 | J8: 7097000 | K8: 3#527170 | L8: 14#7097000|3#527170 | O8: 1.236364 | P8: 1.272727 | Q8: 1.236364 | R8: 1.272727
B9: 136600 | C9: 14 | D9: 204900 | E9: 3#21890 | F9: 14#204900|3#21890 | I9: 14 | J9: 7301900 | K9: 3#549060 | L9: 14#7301900|3#549060 | O9: 1.275758 | P9: 1.318182 | Q9: 1.275758 | R9: 1.318182
B10: 139600 | C10: 14 | D10: 209400 | E10: 3#22690 | F10: 14#209400|3#22690 | I10: 14 | J10: 7511300 | K10: 3#571750 | L10: 14#7511300|3#571750 | O10: 1.315152 | P10: 1.363636 | Q10: 1.315152 | R10: 1.363636
B11: 142600 | C11: 14 | D11: 213900 | E11: 3#23490 | F11: 14#213900|3#23490 | I11: 14 | J11: 7725200 | K11: 3#595240 | L11: 14#7725200|3#595240 | O11: 1.354545 | P11: 1.409091 | Q11: 1.354545 | R11: 1.409091
B12: 145600 | C12: 14 | D12: 218400 | E12: 3#24290 | F12: 14#218400|3#24290 | I12: 14 | J12: 7943600 | K12: 3#619530 | L12: 14#7943600|3#619530 | O12: 1.393939 | P12: 1.454545 | Q12: 1.393939 | R12: 1.454545
B13: 148600 | C13: 14 | D13: 222900 | E13: 3#25090 | F13: 14#222900|3#25090 | I13: 14 | J13: 8166500 | K13: 3#644620 | L13: 14#8166500|3#644620 | O13: 1.433333 | P13: 1.500000 | Q13: 1.433333 | R13: 1.5
B14: 151600 | C14: 14 | D14: 227400 | E14: 3#25890 | F14: 14#227400|3#25890 | I14: 14 | J14: 8393900 | K14: 3#670510 | L14: 14#8393900|3#670510 | O14: 1.472727 | P14: 1.545455 | Q14: 1.472727 | R14: 1.545455
B15: 154600 | C15: 14 | D15: 231900 | E15: 3#26690 | F15: 14#231900|3#26690 | I15: 14 | J15: 8625800 | K15: 3#697200 | L15: 14#8625800|3#697200 | O15: 1.512121 | P15: 1.590909 | Q15: 1.512121 | R15: 1.590909
B16: 157600 | C16: 14 | D16: 236400 | E16: 3#27490 | F16: 14#236400|3#27490 | I16: 14 | J16: 8862200 | K16: 3#724690 | L16: 14#8862200|3#724690 | O16: 1.551515 | P16: 1.636364 | Q16: 1.551515 | R16: 1.636364
B17: 160600 | C17: 14 | D17: 240900 | E17: 3#28290 | F17: 14#240900|3#28290 | I17: 14 | J17: 9103100 | K17: 3#752980 | L17: 14#9103100|3#752980 | O17: 1.590909 | P17: 1.681818 | Q17: 1.590909 | R17: 1.681818
B18: 163600 | C18: 14 | D18: 245400 | E18: 3#29090 | F18: 14#245400|3#29090 | I18: 14 | J18: 9348500 | K18: 3#782070 | L18: 14#9348500|3#782070 | O18: 1.630303 | P18: 1.727273 | Q18: 1.630303 | R18: 1.727273
B19: 166600 | C19: 14 | D19: 249900 | E19: 3#29890 | F19: 14#249900|3#29890 | I19: 14 | J19: 9598400 | K19: 3#811960 | L19: 14#9598400|3#811960 | O19: 1.669697 | P19: 1.772727 | Q19: 1.669697 | R19: 1.772727
B20: 169600 | C20: 14 | D20: 254400 | E20: 3#30690 | F20: 14#254400|3#30690 | I20: 14 | J20: 9852800 | K20: 3#842650 | L20: 14#9852800|3#842650 | O20: 1.709091 | P20: 1.818182 | Q20: 1.709091 | R20: 1.818182
B21: 172600 | C21: 14 | D21: 258900 | E21: 3#31490 | F21: 14#258900|3#31490 | I21: 14 | J21: 10111700 | K21: 3#874140 | L21: 14#10111700|3#874140 | O21: 1.748485 | P21: 1.863636 | Q21: 1.748485 | R21: 1.863636
B22: 175600 | C22: 14 | D22: 263400 | E22: 3#32290 | F22: 14#263400|3#32290 | I22: 14 | J22: 10375100 | K22: 3#906430 | L22: 14#10375100|3#906430 | O22: 1.787879 | P22: 1.909091 | Q22: 1.787879 | R22: 1.909091
B23: 178600 | C23: 14 | D23: 267900 | E23: 3#33090 | F23: 14#267900|3#33090 | I23: 14 | J23: 10643000 | K23: 3#939520 | L23: 14#10643000|3#939520 | O23: 1.827273 | P23: 1.954545 | Q23: 1.827273 | R23: 1.954545
B24: 181600 | C24: 14 | D24: 272400 | E24: 3#33890 | F24: 14#272400|3#33890 | I24: 14 | J24: 10915400 | K24: 3#973410 | L24: 14#10915400|3#973410 | O24: 1.866667 | P24: 2.000000 | Q24: 1.866667 | R24: 2
B25: 184600 | C25: 14 | D25: 276900 | E25: 3#34690 | F25: 14#276900|3#34690 | I25: 14 | J25: 11192300 | K25: 3#1008100 | L25: 14#11192300|3#1008100 | O25: 1.906061 | P25: 2.045455 | Q25: 1.906061 | R25: 2.045455
B26: 187600 | C26: 14 | D26: 281400 | E26: 3#35490 | F26: 14#281400|3#35490 | I26: 14 | J26: 11473700 | K26: 3#1043590 | L26: 14#11473700|3#1043590 | O26: 1.945455 | P26: 2.090909 | Q26: 1.945455 | R26: 2.090909
B27: 190600 | C27: 14 | D27: 285900 | E27: 3#36290 | F27: 14#285900|3#36290 | I27: 14 | J27: 11759600 | K27: 3#1079880 | L27: 14#11759600|3#1079880 | O27: 1.984848 | P27: 2.136364 | Q27: 1.984848 | R27: 2.136364
B28: 193600 | C28: 14 | D28: 290400 | E28: 3#37090 | F28: 14#290400|3#37090 | I28: 14 | J28: 12050000 | K28: 3#1116970 | L28: 14#12050000|3#1116970 | O28: 2.024242 | P28: 2.181818 | Q28: 2.024242 | R28: 2.181818
B29: 196600 | C29: 14 | D29: 294900 | E29: 3#37890 | F29: 14#294900|3#37890 | I29: 14 | J29: 12344900 | K29: 3#1154860 | L29: 14#12344900|3#1154860 | O29: 2.063636 | P29: 2.227273 | Q29: 2.063636 | R29: 2.227273
B30: 199600 | C30: 14 | D30: 299400 | E30: 3#38690 | F30: 14#299400|3#38690 | I30: 14 | J30: 12644300 | K30: 3#1193550 | L30: 14#12644300|3#1193550 | O30: 2.103030 | P30: 2.272727 | Q30: 2.10303 | R30: 2.272727
B31: 202600 | C31: 14 | D31: 303900 | E31: 3#39490 | F31: 14#303900|3#39490 | I31: 14 | J31: 12948200 | K31: 3#1233040 | L31: 14#12948200|3#1233040 | O31: 2.142424 | P31: 2.318182 | Q31: 2.142424 | R31: 2.318182
B32: 205600 | C32: 14 | D32: 308400 | E32: 3#40290 | F32: 14#308400|3#40290 | I32: 14 | J32: 13256600 | K32: 3#1273330 | L32: 14#13256600|3#1273330 | O32: 2.181818 | P32: 2.363636 | Q32: 2.181818 | R32: 2.363636
B33: 208600 | C33: 14 | D33: 312900 | E33: 3#41090 | F33: 14#312900|3#41090 | I33: 14 | J33: 13569500 | K33: 3#1314420 | L33: 14#13569500|3#1314420 | O33: 2.221212 | P33: 2.409091 | Q33: 2.221212 | R33: 2.409091
B34: 211600 | C34: 14 | D34: 317400 | E34: 3#41890 | F34: 14#317400|3#41890 | I34: 14 | J34: 13886900 | K34: 3#1356310 | L34: 14#13886900|3#1356310 | O34: 2.260606 | P34: 2.454545 | Q34: 2.260606 | R34: 2.454545
B35: 214600 | C35: 14 | D35: 321900 | E35: 3#42690 | F35: 14#321900|3#42690 | I35: 14 | J35: 14208800 | K35: 3#1399000 | L35: 14#14208800|3#1399000 | O35: 2.300000 | P35: 2.500000 | Q35: 2.3 | R35: 2.5
B36: 217600 | C36: 14 | D36: 326400 | E36: 3#43490 | F36: 14#326400|3#43490 | I36: 14 | J36: 14535200 | K36: 3#1442490 | L36: 14#14535200|3#1442490 | O36: 2.339394 | P36: 2.545455 | Q36: 2.339394 | R36: 2.545455
B37: 220600 | C37: 14 | D37: 330900 | E37: 3#44290 | F37: 14#330900|3#44290 | I37: 14 | J37: 14866100 | K37: 3#1486780 | L37: 14#14866100|3#1486780 | O37: 2.378788 | P37: 2.590909 | Q37: 2.378788 | R37: 2.590909
B38: 223600 | C38: 14 | D38: 335400 | E38: 3#45090 | F38: 14#335400|3#45090 | I38: 14 | J38: 15201500 | K38: 3#1531870 | L38: 14#15201500|3#1531870 | O38: 2.418182 | P38: 2.636364 | Q38: 2.418182 | R38: 2.636364
B39: 226600 | C39: 14 | D39: 339900 | E39: 3#45890 | F39: 14#339900|3#45890 | I39: 14 | J39: 15541400 | K39: 3#1577760 | L39: 14#15541400|3#1577760 | O39: 2.457576 | P39: 2.681818 | Q39: 2.457576 | R39: 2.681818
B40: 229600 | C40: 14 | D40: 344400 | E40: 3#46690 | F40: 14#344400|3#46690 | I40: 14 | J40: 15885800 | K40: 3#1624450 | L40: 14#15885800|3#1624450 | O40: 2.496970 | P40: 2.727273 | Q40: 2.49697 | R40: 2.727273
B41: 232600 | C41: 14 | D41: 348900 | E41: 3#47490 | F41: 14#348900|3#47490 | I41: 14 | J41: 16234700 | K41: 3#1671940 | L41: 14#16234700|3#1671940 | O41: 2.536364 | P41: 2.772727 | Q41: 2.536364 | R41: 2.772727
B42: 237000 | C42: 14 | D42: 355500 | E42: 3#48500 | F42: 14#355500|3#48500 | I42: 14 | J42: 16590200 | K42: 3#1720440 | L42: 14#16590200|3#1720440 | O42: 2.575758 | P42: 2.818182 | Q42: 2.575758 | R42: 2.818182
B43: 241000 | C43: 14 | D43: 361500 | E43: 3#49500 | F43: 14#361500|3#49500 | I43: 14 | J43: 16951700 | K43: 3#1769940 | L43: 14#16951700|3#1769940 | O43: 2.615152 | P43: 2.863636 | Q43: 2.615152 | R43: 2.863636
B44: 245000 | C44: 14 | D44: 367500 | E44: 3#50500 | F44: 14#367500|3#50500 | I44: 14 | J44: 17319200 | K44: 3#1820440 | L44: 14#17319200|3#1820440 | O44: 2.654545 | P44: 2.909091 | Q44: 2.654545 | R44: 2.909091
B45: 249000 | C45: 14 | D45: 373500 | E45: 3#51500 | F45: 14#373500|3#51500 | I45: 14 | J45: 17692700 | K45: 3#1871940 | L45: 14#17692700|3#1871940 | O45: 2.693939 | P45: 2.954545 | Q45: 2.693939 | R45: 2.954545
B46: 253000 | C46: 14 | D46: 379500 | E46: 3#52500 | F46: 14#379500|3#52500 | I46: 14 | J46: 18072200 | K46: 3#1924440 | L46: 14#18072200|3#1924440 | O46: 2.733333 | P46: 3.000000 | Q46: 2.733333 | R46: 3
B47: 257000 | C47: 14 | D47: 385500 | E47: 3#53500 | F47: 14#385500|3#53500 | I47: 14 | J47: 18457700 | K47: 3#1977940 | L47: 14#18457700|3#1977940 | O47: 2.772727 | P47: 3.045455 | Q47: 2.772727 | R47: 3.045455
B48: 261000 | C48: 14 | D48: 391500 | E48: 3#54500 | F48: 14#391500|3#54500 | I48: 14 | J48: 18849200 | K48: 3#2032440 | L48: 14#18849200|3#2032440 | O48: 2.812121 | P48: 3.090909 | Q48: 2.812121 | R48: 3.090909
B49: 265000 | C49: 14 | D49: 397500 | E49: 3#55500 | F49: 14#397500|3#55500 | I49: 14 | J49: 19246700 | K49: 3#2087940 | L49: 14#19246700|3#2087940 | O49: 2.851515 | P49: 3.136364 | Q49: 2.851515 | R49: 3.136364
B50: 269000 | C50: 14 | D50: 403500 | E50: 3#56500 | F50: 14#403500|3#56500 | I50: 14 | J50: 19650200 | K50: 3#2144440 | L50: 14#19650200|3#2144440 | O50: 2.890909 | P50: 3.181818 | Q50: 2.890909 | R50: 3.181818
B51: 273000 | C51: 14 | D51: 409500 | E51: 3#57500 | F51: 14#409500|3#57500 | I51: 14 | J51: 20059700 | K51: 3#2201940 | L51: 14#20059700|3#2201940 | O51: 2.930303 | P51: 3.227273 | Q51: 2.930303 | R51: 3.227273
B52: 277000 | C52: 14 | D52: 415500 | E52: 3#58500 | F52: 14#415500|3#58500 | I52: 14 | J52: 20475200 | K52: 3#2260440 | L52: 14#20475200|3#2260440 | O52: 2.969697 | P52: 3.272727 | Q52: 2.969697 | R52: 3.272727
B53: 281000 | C53: 14 | D53: 421500 | E53: 3#59500 | F53: 14#421500|3#59500 | I53: 14 | J53: 20896700 | K53: 3#2319940 | L53: 14#20896700|3#2319940 | O53: 3.009091 | P53: 3.318182 | Q53: 3.009091 | R53: 3.318182
B54: 285000 | C54: 14 | D54: 427500 | E54: 3#60500 | F54: 14#427500|3#60500 | I54: 14 | J54: 21324200 | K54: 3#2380440 | L54: 14#21324200|3#2380440 | O54: 3.048485 | P54: 3.363636 | Q54: 3.048485 | R54: 3.363636
B55: 289000 | C55: 14 | D55: 433500 | E55: 3#61500 | F55: 14#433500|3#61500 | I55: 14 | J55: 21757700 | K55: 3#2441940 | L55: 14#21757700|3#2441940 | O55: 3.087879 | P55: 3.409091 | Q55: 3.087879 | R55: 3.409091
B56: 293000 | C56: 14 | D56: 439500 | E56: 3#62500 | F56: 14#439500|3#62500 | I56: 14 | J56: 22197200 | K56: 3#2504440 | L56: 14#22197200|3#2504440 | O56: 3.127273 | P56: 3.454545 | Q56: 3.127273 | R56: 3.454545
B57: 297000 | C57: 14 | D57: 445500 | E57: 3#63500 | F57: 14#445500|3#63500 | I57: 14 | J57: 22642700 | K57: 3#2567940 | L57: 14#22642700|3#2567940 | O57: 3.166667 | P57: 3.500000 | Q57: 3.166667 | R57: 3.5
B58: 301000 | C58: 14 | D58: 451500 | E58: 3#64500 | F58: 14#451500|3#64500 | I58: 14 | J58: 23094200 | K58: 3#2632440 | L58: 14#23094200|3#2632440 | O58: 3.206061 | P58: 3.545455 | Q58: 3.206061 | R58: 3.545455
B59: 305000 | C59: 14 | D59: 457500 | E59: 3#65500 | F59: 14#457500|3#65500 | I59: 14 | J59: 23551700 | K59: 3#2697940 | L59: 14#23551700|3#2697940 | O59: 3.245455 | P59: 3.590909 | Q59: 3.245455 | R59: 3.590909
B60: 309000 | C60: 14 | D60: 463500 | E60: 3#66500 | F60: 14#463500|3#66500 | I60: 14 | J60: 24015200 | K60: 3#2764440 | L60: 14#24015200|3#2764440 | O60: 3.284848 | P60: 3.636364 | Q60: 3.284848 | R60: 3.636364
B61: 313000 | C61: 14 | D61: 469500 | E61: 3#67500 | F61: 14#469500|3#67500 | I61: 14 | J61: 24484700 | K61: 3#2831940 | L61: 14#24484700|3#2831940 | O61: 3.324242 | P61: 3.681818 | Q61: 3.324242 | R61: 3.681818
B62: 318000 | C62: 14 | D62: 477000 | E62: 3#69000 | F62: 14#477000|3#69000 | I62: 14 | J62: 24961700 | K62: 3#2900940 | L62: 14#24961700|3#2900940 | O62: 3.363636 | P62: 3.727273 | Q62: 3.363636 | R62: 3.727273
B63: 323000 | C63: 14 | D63: 484500 | E63: 3#70500 | F63: 14#484500|3#70500 | I63: 14 | J63: 25446200 | K63: 3#2971440 | L63: 14#25446200|3#2971440 | O63: 3.403030 | P63: 3.772727 | Q63: 3.40303 | R63: 3.772727
B64: 328000 | C64: 14 | D64: 492000 | E64: 3#72000 | F64: 14#492000|3#72000 | I64: 14 | J64: 25938200 | K64: 3#3043440 | L64: 14#25938200|3#3043440 | O64: 3.442424 | P64: 3.818182 | Q64: 3.442424 | R64: 3.818182
B65: 333000 | C65: 14 | D65: 499500 | E65: 3#73500 | F65: 14#499500|3#73500 | I65: 14 | J65: 26437700 | K65: 3#3116940 | L65: 14#26437700|3#3116940 | O65: 3.481818 | P65: 3.863636 | Q65: 3.481818 | R65: 3.863636
B66: 338000 | C66: 14 | D66: 507000 | E66: 3#75000 | F66: 14#507000|3#75000 | I66: 14 | J66: 26944700 | K66: 3#3191940 | L66: 14#26944700|3#3191940 | O66: 3.521212 | P66: 3.909091 | Q66: 3.521212 | R66: 3.909091
B67: 343000 | C67: 14 | D67: =B67*1.5 -> 514500 | E67: 3#76500 | F67: =C67&"#"&D67&"|"&E67 -> 14#514500|3#76500 | I67: 14 | J67: =J66+D67 -> 27459200 | K67: 3#3268440 | L67: =I67&"#"&J67&"|"&K67 -> 14#27459200|3#3268440 | O67: 3.560606 | P67: 3.954545 | Q67: =ROUND(O67,6) -> 3.560606 | R67: =ROUND(P67,6) -> 3.954545
B68: 348000 | C68: 14 | D68: 522000 | E68: 3#78000 | F68: 14#522000|3#78000 | I68: 14 | J68: 27981200 | K68: 3#3346440 | L68: 14#27981200|3#3346440 | O68: 3.600000 | P68: 4.000000 | Q68: 3.6 | R68: 4
B69: 353000 | C69: 14 | D69: 529500 | E69: 3#79500 | F69: 14#529500|3#79500 | I69: 14 | J69: 28510700 | K69: 3#3425940 | L69: 14#28510700|3#3425940 | O69: 3.639394 | P69: 4.045455 | Q69: 3.639394 | R69: 4.045455
B70: 358000 | C70: 14 | D70: 537000 | E70: 3#81000 | F70: 14#537000|3#81000 | I70: 14 | J70: 29047700 | K70: 3#3506940 | L70: 14#29047700|3#3506940 | O70: 3.678788 | P70: 4.090909 | Q70: 3.678788 | R70: 4.090909
B71: 363000 | C71: 14 | D71: 544500 | E71: 3#82500 | F71: 14#544500|3#82500 | I71: 14 | J71: 29592200 | K71: 3#3589440 | L71: 14#29592200|3#3589440 | O71: 3.718182 | P71: 4.136364 | Q71: 3.718182 | R71: 4.136364
B72: 368000 | C72: 14 | D72: 552000 | E72: 3#84000 | F72: 14#552000|3#84000 | I72: 14 | J72: 30144200 | K72: 3#3673440 | L72: 14#30144200|3#3673440 | O72: 3.757576 | P72: 4.181818 | Q72: 3.757576 | R72: 4.181818
B73: 373000 | C73: 14 | D73: 559500 | E73: 3#85500 | F73: 14#559500|3#85500 | I73: 14 | J73: 30703700 | K73: 3#3758940 | L73: 14#30703700|3#3758940 | O73: 3.796970 | P73: 4.227273 | Q73: 3.79697 | R73: 4.227273
B74: 378000 | C74: 14 | D74: 567000 | E74: 3#87000 | F74: 14#567000|3#87000 | I74: 14 | J74: 31270700 | K74: 3#3845940 | L74: 14#31270700|3#3845940 | O74: 3.836364 | P74: 4.272727 | Q74: 3.836364 | R74: 4.272727
B75: 383000 | C75: 14 | D75: 574500 | E75: 3#88500 | F75: 14#574500|3#88500 | I75: 14 | J75: 31845200 | K75: 3#3934440 | L75: 14#31845200|3#3934440 | O75: 3.875758 | P75: 4.318182 | Q75: 3.875758 | R75: 4.318182
B76: 388000 | C76: 14 | D76: 582000 | E76: 3#90000 | F76: 14#582000|3#90000 | I76: 14 | J76: 32427200 | K76: 3#4024440 | L76: 14#32427200|3#4024440 | O76: 3.915152 | P76: 4.363636 | Q76: 3.915152 | R76: 4.363636
B77: 393000 | C77: 14 | D77: 589500 | E77: 3#91500 | F77: 14#589500|3#91500 | I77: 14 | J77: 33016700 | K77: 3#4115940 | L77: 14#33016700|3#4115940 | O77: 3.954545 | P77: 4.409091 | Q77: 3.954545 | R77: 4.409091
B78: 398000 | C78: 14 | D78: 597000 | E78: 3#93000 | F78: 14#597000|3#93000 | I78: 14 | J78: 33613700 | K78: 3#4208940 | L78: 14#33613700|3#4208940 | O78: 3.993939 | P78: 4.454545 | Q78: 3.993939 | R78: 4.454545
B79: 403000 | C79: 14 | D79: 604500 | E79: 3#94500 | F79: 14#604500|3#94500 | I79: 14 | J79: 34218200 | K79: 3#4303440 | L79: 14#34218200|3#4303440 | O79: 4.033333 | P79: 4.500000 | Q79: 4.033333 | R79: 4.5
B80: 408000 | C80: 14 | D80: 612000 | E80: 3#96000 | F80: 14#612000|3#96000 | I80: 14 | J80: 34830200 | K80: 3#4399440 | L80: 14#34830200|3#4399440 | O80: 4.072727 | P80: 4.545455 | Q80: 4.072727 | R80: 4.545455
B81: 413000 | C81: 14 | D81: 619500 | E81: 3#97500 | F81: 14#619500|3#97500 | I81: 14 | J81: 35449700 | K81: 3#4496940 | L81: 14#35449700|3#4496940 | O81: 4.112121 | P81: 4.590909 | Q81: 4.112121 | R81: 4.590909
B82: 418000 | C82: 14 | D82: 627000 | E82: 3#99000 | F82: 14#627000|3#99000 | I82: 14 | J82: 36076700 | K82: 3#4595940 | L82: 14#36076700|3#4595940 | O82: 4.151515 | P82: 4.636364 | Q82: 4.151515 | R82: 4.636364
B83: 423000 | C83: 14 | D83: 634500 | E83: 3#100500 | F83: 14#634500|3#100500 | I83: 14 | J83: 36711200 | K83: 3#4696440 | L83: 14#36711200|3#4696440 | O83: 4.190909 | P83: 4.681818 | Q83: 4.190909 | R83: 4.681818
B84: 428000 | C84: 14 | D84: 642000 | E84: 3#102000 | F84: 14#642000|3#102000 | I84: 14 | J84: 37353200 | K84: 3#4798440 | L84: 14#37353200|3#4798440 | O84: 4.230303 | P84: 4.727273 | Q84: 4.230303 | R84: 4.727273
B85: 433000 | C85: 14 | D85: 649500 | E85: 3#103500 | F85: 14#649500|3#103500 | I85: 14 | J85: 38002700 | K85: 3#4901940 | L85: 14#38002700|3#4901940 | O85: 4.269697 | P85: 4.772727 | Q85: 4.269697 | R85: 4.772727
B86: 438000 | C86: 14 | D86: 657000 | E86: 3#105000 | F86: 14#657000|3#105000 | I86: 14 | J86: 38659700 | K86: 3#5006940 | L86: 14#38659700|3#5006940 | O86: 4.309091 | P86: 4.818182 | Q86: 4.309091 | R86: 4.818182
B87: 443000 | C87: 14 | D87: 664500 | E87: 3#106500 | F87: 14#664500|3#106500 | I87: 14 | J87: 39324200 | K87: 3#5113440 | L87: 14#39324200|3#5113440 | O87: 4.348485 | P87: 4.863636 | Q87: 4.348485 | R87: 4.863636
B88: 448000 | C88: 14 | D88: 672000 | E88: 3#108000 | F88: 14#672000|3#108000 | I88: 14 | J88: 39996200 | K88: 3#5221440 | L88: 14#39996200|3#5221440 | O88: 4.387879 | P88: 4.909091 | Q88: 4.387879 | R88: 4.909091
B89: 453000 | C89: 14 | D89: 679500 | E89: 3#109500 | F89: 14#679500|3#109500 | I89: 14 | J89: 40675700 | K89: 3#5330940 | L89: 14#40675700|3#5330940 | O89: 4.427273 | P89: 4.954545 | Q89: 4.427273 | R89: 4.954545
B90: 458000 | C90: 14 | D90: 687000 | E90: 3#111000 | F90: 14#687000|3#111000 | I90: 14 | J90: 41362700 | K90: 3#5441940 | L90: 14#41362700|3#5441940 | O90: 4.466667 | P90: 5.000000 | Q90: 4.466667 | R90: 5
B91: 463000 | C91: 14 | D91: 694500 | E91: 3#113000 | F91: 14#694500|3#113000 | I91: 14 | J91: 42057200 | K91: 3#5554940 | L91: 14#42057200|3#5554940 | O91: 4.506061 | P91: 5.045455 | Q91: 4.506061 | R91: 5.045455
B92: 468000 | C92: 14 | D92: 702000 | E92: 3#115000 | F92: 14#702000|3#115000 | I92: 14 | J92: 42759200 | K92: 3#5669940 | L92: 14#42759200|3#5669940 | O92: 4.545455 | P92: 5.090909 | Q92: 4.545455 | R92: 5.090909
B93: 473000 | C93: 14 | D93: 709500 | E93: 3#117000 | F93: 14#709500|3#117000 | I93: 14 | J93: 43468700 | K93: 3#5786940 | L93: 14#43468700|3#5786940 | O93: 4.584848 | P93: 5.136364 | Q93: 4.584848 | R93: 5.136364
B94: 478000 | C94: 14 | D94: 717000 | E94: 3#119000 | F94: 14#717000|3#119000 | I94: 14 | J94: 44185700 | K94: 3#5905940 | L94: 14#44185700|3#5905940 | O94: 4.624242 | P94: 5.181818 | Q94: 4.624242 | R94: 5.181818
B95: 483000 | C95: 14 | D95: 724500 | E95: 3#121000 | F95: 14#724500|3#121000 | I95: 14 | J95: 44910200 | K95: 3#6026940 | L95: 14#44910200|3#6026940 | O95: 4.663636 | P95: 5.227273 | Q95: 4.663636 | R95: 5.227273
B96: 488000 | C96: 14 | D96: 732000 | E96: 3#123000 | F96: 14#732000|3#123000 | I96: 14 | J96: 45642200 | K96: 3#6149940 | L96: 14#45642200|3#6149940 | O96: 4.703030 | P96: 5.272727 | Q96: 4.70303 | R96: 5.272727
B97: 493000 | C97: 14 | D97: 739500 | E97: 3#125000 | F97: 14#739500|3#125000 | I97: 14 | J97: 46381700 | K97: 3#6274940 | L97: 14#46381700|3#6274940 | O97: 4.742424 | P97: 5.318182 | Q97: 4.742424 | R97: 5.318182
B98: 498000 | C98: 14 | D98: 747000 | E98: 3#127000 | F98: 14#747000|3#127000 | I98: 14 | J98: 47128700 | K98: 3#6401940 | L98: 14#47128700|3#6401940 | O98: 4.781818 | P98: 5.363636 | Q98: 4.781818 | R98: 5.363636
B99: 503000 | C99: 14 | D99: 754500 | E99: 3#129000 | F99: 14#754500|3#129000 | I99: 14 | J99: 47883200 | K99: 3#6530940 | L99: 14#47883200|3#6530940 | O99: 4.821212 | P99: 5.409091 | Q99: 4.821212 | R99: 5.409091
B100: 508000 | C100: 14 | D100: 762000 | E100: 3#131000 | F100: 14#762000|3#131000 | I100: 14 | J100: 48645200 | K100: 3#6661940 | L100: 14#48645200|3#6661940 | O100: 4.860606 | P100: 5.454545 | Q100: 4.860606 | R100: 5.454545
B101: 513000 | C101: 14 | D101: 769500 | E101: 3#133000 | F101: 14#769500|3#133000 | I101: 14 | J101: 49414700 | K101: 3#6794940 | L101: 14#49414700|3#6794940 | O101: 4.942000 | P101: 5.513700 | Q101: 4.942 | R101: 5.5137
B102: 518000 | C102: 14 | D102: 777000 | E102: 3#135000 | F102: 14#777000|3#135000 | I102: 14 | J102: 50191700 | K102: 3#6929940 | L102: 14#50191700|3#6929940 | O102: 5.024168 | P102: 5.573417 | Q102: 5.024168 | R102: 5.573417
B103: 523000 | C103: 14 | D103: 784500 | E103: 3#137000 | F103: 14#784500|3#137000 | I103: 14 | J103: 50976200 | K103: 3#7066940 | L103: 14#50976200|3#7066940 | O103: 5.106336 | P103: 5.633134 | Q103: 5.106336 | R103: 5.633134
B104: 528000 | C104: 14 | D104: 792000 | E104: 3#139000 | F104: 14#792000|3#139000 | I104: 14 | J104: 51768200 | K104: 3#7205940 | L104: 14#51768200|3#7205940 | O104: 5.188504 | P104: 5.692852 | Q104: 5.188504 | R104: 5.692852
B105: 533000 | C105: 14 | D105: 799500 | E105: 3#141000 | F105: 14#799500|3#141000 | I105: 14 | J105: 52567700 | K105: 3#7346940 | L105: 14#52567700|3#7346940 | O105: 5.270673 | P105: 5.752569 | Q105: 5.270673 | R105: 5.752569
B106: 538000 | C106: 14 | D106: 807000 | E106: 3#143000 | F106: 14#807000|3#143000 | I106: 14 | J106: 53374700 | K106: 3#7489940 | L106: 14#53374700|3#7489940 | O106: 5.352841 | P106: 5.812286 | Q106: 5.352841 | R106: 5.812286
B107: 543000 | C107: 14 | D107: 814500 | E107: 3#145000 | F107: 14#814500|3#145000 | I107: 14 | J107: 54189200 | K107: 3#7634940 | L107: 14#54189200|3#7634940 | O107: 5.435009 | P107: 5.872003 | Q107: 5.435009 | R107: 5.872003
B108: 548000 | C108: 14 | D108: 822000 | E108: 3#147000 | F108: 14#822000|3#147000 | I108: 14 | J108: 55011200 | K108: 3#7781940 | L108: 14#55011200|3#7781940 | O108: 5.517177 | P108: 5.931720 | Q108: 5.517177 | R108: 5.93172
B109: 553000 | C109: 14 | D109: 829500 | E109: 3#149000 | F109: 14#829500|3#149000 | I109: 14 | J109: 55840700 | K109: 3#7930940 | L109: 14#55840700|3#7930940 | O109: 5.599345 | P109: 5.991438 | Q109: 5.599345 | R109: 5.991438
B110: 558000 | C110: 14 | D110: 837000 | E110: 3#151000 | F110: 14#837000|3#151000 | I110: 14 | J110: 56677700 | K110: 3#8081940 | L110: 14#56677700|3#8081940 | O110: 5.681513 | P110: 6.051155 | Q110: 5.681513 | R110: 6.051155
B111: 563000 | C111: 14 | D111: 844500 | E111: 3#153000 | F111: 14#844500|3#153000 | I111: 14 | J111: 57522200 | K111: 3#8234940 | L111: 14#57522200|3#8234940 | O111: 5.763681 | P111: 6.110872 | Q111: 5.763681 | R111: 6.110872
B112: 568000 | C112: 14 | D112: 852000 | E112: 3#155000 | F112: 14#852000|3#155000 | I112: 14 | J112: 58374200 | K112: 3#8389940 | L112: 14#58374200|3#8389940 | O112: 5.845850 | P112: 6.170589 | Q112: 5.84585 | R112: 6.170589
B113: 573000 | C113: 14 | D113: 859500 | E113: 3#157000 | F113: 14#859500|3#157000 | I113: 14 | J113: 59233700 | K113: 3#8546940 | L113: 14#59233700|3#8546940 | O113: 5.928018 | P113: 6.230306 | Q113: 5.928018 | R113: 6.230306
B114: 578000 | C114: 14 | D114: 867000 | E114: 3#159000 | F114: 14#867000|3#159000 | I114: 14 | J114: 60100700 | K114: 3#8705940 | L114: 14#60100700|3#8705940 | O114: 6.010186 | P114: 6.290024 | Q114: 6.010186 | R114: 6.290024
B115: 583000 | C115: 14 | D115: 874500 | E115: 3#161000 | F115: 14#874500|3#161000 | I115: 14 | J115: 60975200 | K115: 3#8866940 | L115: 14#60975200|3#8866940 | O115: 6.092354 | P115: 6.349741 | Q115: 6.092354 | R115: 6.349741
B116: 588000 | C116: 14 | D116: 882000 | E116: 3#163000 | F116: 14#882000|3#163000 | I116: 14 | J116: 61857200 | K116: 3#9029940 | L116: 14#61857200|3#9029940 | O116: 6.174522 | P116: 6.409458 | Q116: 6.174522 | R116: 6.409458
B117: 593000 | C117: 14 | D117: 889500 | E117: 3#165000 | F117: 14#889500|3#165000 | I117: 14 | J117: 62746700 | K117: 3#9194940 | L117: 14#62746700|3#9194940 | O117: 6.256690 | P117: 6.469175 | Q117: 6.25669 | R117: 6.469175
B118: 598000 | C118: 14 | D118: 897000 | E118: 3#167000 | F118: 14#897000|3#167000 | I118: 14 | J118: 63643700 | K118: 3#9361940 | L118: 14#63643700|3#9361940 | O118: 6.338858 | P118: 6.528893 | Q118: 6.338858 | R118: 6.528893
B119: 603000 | C119: 14 | D119: 904500 | E119: 3#169000 | F119: 14#904500|3#169000 | I119: 14 | J119: 64548200 | K119: 3#9530940 | L119: 14#64548200|3#9530940 | O119: 6.421026 | P119: 6.588610 | Q119: 6.421026 | R119: 6.58861
B120: 608000 | C120: 14 | D120: 912000 | E120: 3#171000 | F120: 14#912000|3#171000 | I120: 14 | J120: 65460200 | K120: 3#9701940 | L120: 14#65460200|3#9701940 | O120: 6.503195 | P120: 6.648327 | Q120: 6.503195 | R120: 6.648327
B121: 613000 | C121: 14 | D121: 919500 | E121: 3#173000 | F121: 14#919500|3#173000 | I121: 14 | J121: 66379700 | K121: 3#9874940 | L121: 14#66379700|3#9874940 | O121: 6.585363 | P121: 6.708044 | Q121: 6.585363 | R121: 6.708044
B122: 618000 | C122: 14 | D122: 927000 | E122: 3#175000 | F122: 14#927000|3#175000 | I122: 14 | J122: 67306700 | K122: 3#10049940 | L122: 14#67306700|3#10049940 | O122: 6.667531 | P122: 6.767761 | Q122: 6.667531 | R122: 6.767761
B123: 623000 | C123: 14 | D123: 934500 | E123: 3#177000 | F123: 14#934500|3#177000 | I123: 14 | J123: 68241200 | K123: 3#10226940 | L123: 14#68241200|3#10226940 | O123: 6.749699 | P123: 6.827479 | Q123: 6.749699 | R123: 6.827479
B124: 628000 | C124: 14 | D124: 942000 | E124: 3#179000 | F124: 14#942000|3#179000 | I124: 14 | J124: 69183200 | K124: 3#10405940 | L124: 14#69183200|3#10405940 | O124: 6.831867 | P124: 6.887196 | Q124: 6.831867 | R124: 6.887196
B125: 633000 | C125: 14 | D125: 949500 | E125: 3#181000 | F125: 14#949500|3#181000 | I125: 14 | J125: 70132700 | K125: 3#10586940 | L125: 14#70132700|3#10586940 | O125: 6.914035 | P125: 6.946913 | Q125: 6.914035 | R125: 6.946913
B126: 638000 | C126: 14 | D126: 957000 | E126: 3#183000 | F126: 14#957000|3#183000 | I126: 14 | J126: 71089700 | K126: 3#10769940 | L126: 14#71089700|3#10769940 | O126: 6.996203 | P126: 7.006630 | Q126: 6.996203 | R126: 7.00663
B127: 643000 | C127: 14 | D127: 964500 | E127: 3#185000 | F127: 14#964500|3#185000 | I127: 14 | J127: 72054200 | K127: 3#10954940 | L127: 14#72054200|3#10954940 | O127: 7.078372 | P127: 7.066347 | Q127: 7.078372 | R127: 7.066347
B128: 648000 | C128: 14 | D128: 972000 | E128: 3#187000 | F128: 14#972000|3#187000 | I128: 14 | J128: 73026200 | K128: 3#11141940 | L128: 14#73026200|3#11141940 | O128: 7.160540 | P128: 7.126065 | Q128: 7.16054 | R128: 7.126065
B129: 653000 | C129: 14 | D129: 979500 | E129: 3#189000 | F129: 14#979500|3#189000 | I129: 14 | J129: 74005700 | K129: 3#11330940 | L129: 14#74005700|3#11330940 | O129: 7.242708 | P129: 7.185782 | Q129: 7.242708 | R129: 7.185782
B130: 658000 | C130: 14 | D130: 987000 | E130: 3#191000 | F130: 14#987000|3#191000 | I130: 14 | J130: 74992700 | K130: 3#11521940 | L130: 14#74992700|3#11521940 | O130: 7.324876 | P130: 7.245499 | Q130: 7.324876 | R130: 7.245499
B131: 663000 | C131: 14 | D131: =B131*1.5 -> 994500 | E131: 3#193000 | F131: =C131&"#"&D131&"|"&E131 -> 14#994500|3#193000 | I131: 14 | J131: =J130+D131 -> 75987200 | K131: 3#11714940 | L131: =I131&"#"&J131&"|"&K131 -> 14#75987200|3#11714940 | O131: 7.407044 | P131: 7.305216 | Q131: =ROUND(O131,6) -> 7.407044 | R131: =ROUND(P131,6) -> 7.305216
B132: 668000 | C132: 14 | D132: 1002000 | E132: 3#195000 | F132: 14#1002000|3#195000 | I132: 14 | J132: 76989200 | K132: 3#11909940 | L132: 14#76989200|3#11909940 | O132: 7.489212 | P132: 7.364933 | Q132: 7.489212 | R132: 7.364933
B133: 673000 | C133: 14 | D133: 1009500 | E133: 3#197000 | F133: 14#1009500|3#197000 | I133: 14 | J133: 77998700 | K133: 3#12106940 | L133: 14#77998700|3#12106940 | O133: 7.571380 | P133: 7.424651 | Q133: 7.57138 | R133: 7.424651
B134: 678000 | C134: 14 | D134: 1017000 | E134: 3#199000 | F134: 14#1017000|3#199000 | I134: 14 | J134: 79015700 | K134: 3#12305940 | L134: 14#79015700|3#12305940 | O134: 7.653549 | P134: 7.484368 | Q134: 7.653549 | R134: 7.484368
B135: 683000 | C135: 14 | D135: 1024500 | E135: 3#201000 | F135: 14#1024500|3#201000 | I135: 14 | J135: 80040200 | K135: 3#12506940 | L135: 14#80040200|3#12506940 | O135: 7.735717 | P135: 7.544085 | Q135: 7.735717 | R135: 7.544085
B136: 688000 | C136: 14 | D136: 1032000 | E136: 3#203000 | F136: 14#1032000|3#203000 | I136: 14 | J136: 81072200 | K136: 3#12709940 | L136: 14#81072200|3#12709940 | O136: 7.817885 | P136: 7.603802 | Q136: 7.817885 | R136: 7.603802
B137: 691000 | C137: 14 | D137: 1036500 | E137: 3#205000 | F137: 14#1036500|3#205000 | I137: 14 | J137: 82108700 | K137: 3#12914940 | L137: 14#82108700|3#12914940 | O137: 7.900053 | P137: 7.663519 | Q137: 7.900053 | R137: 7.663519
B138: 694000 | C138: 14 | D138: 1041000 | E138: 3#207000 | F138: 14#1041000|3#207000 | I138: 14 | J138: 83149700 | K138: 3#13121940 | L138: 14#83149700|3#13121940 | O138: 7.982221 | P138: 7.723237 | Q138: 7.982221 | R138: 7.723237
B139: 697000 | C139: 14 | D139: 1045500 | E139: 3#209000 | F139: 14#1045500|3#209000 | I139: 14 | J139: 84195200 | K139: 3#13330940 | L139: 14#84195200|3#13330940 | O139: 8.064389 | P139: 7.782954 | Q139: 8.064389 | R139: 7.782954
B140: 700000 | C140: 14 | D140: 1050000 | E140: 3#210000 | F140: 14#1050000|3#210000 | I140: 14 | J140: 85245200 | K140: 3#13540940 | L140: 14#85245200|3#13540940 | O140: 8.146557 | P140: 7.842671 | Q140: 8.146557 | R140: 7.842671
B141: 700000 | C141: 14 | D141: 1050000 | E141: 3#210000 | F141: 14#1050000|3#210000 | I141: 14 | J141: 86295200 | K141: 3#13750940 | L141: 14#86295200|3#13750940 | O141: 8.228725 | P141: 7.902388 | Q141: 8.228725 | R141: 7.902388
B142: 700000 | C142: 14 | D142: 1050000 | E142: 3#210000 | F142: 14#1050000|3#210000 | I142: 14 | J142: 87345200 | K142: 3#13960940 | L142: 14#87345200|3#13960940 | O142: 8.315583 | P142: 7.964919 | Q142: 8.315583 | R142: 7.964919
B143: 700000 | C143: 14 | D143: 1050000 | E143: 3#210000 | F143: 14#1050000|3#210000 | I143: 14 | J143: 88395200 | K143: 3#14170940 | L143: 14#88395200|3#14170940 | O143: 8.402440 | P143: 8.027449 | Q143: 8.40244 | R143: 8.027449
B144: 700000 | C144: 14 | D144: 1050000 | E144: 3#210000 | F144: 14#1050000|3#210000 | I144: 14 | J144: 89445200 | K144: 3#14380940 | L144: 14#89445200|3#14380940 | O144: 8.489298 | P144: 8.089980 | Q144: 8.489298 | R144: 8.08998
B145: 700000 | C145: 14 | D145: 1050000 | E145: 3#210000 | F145: 14#1050000|3#210000 | I145: 14 | J145: 90495200 | K145: 3#14590940 | L145: 14#90495200|3#14590940 | O145: 8.576155 | P145: 8.152510 | Q145: 8.576155 | R145: 8.15251
B146: 700000 | C146: 14 | D146: 1050000 | E146: 3#210000 | F146: 14#1050000|3#210000 | I146: 14 | J146: 91545200 | K146: 3#14800940 | L146: 14#91545200|3#14800940 | O146: 8.663013 | P146: 8.215041 | Q146: 8.663013 | R146: 8.215041
B147: 700000 | C147: 14 | D147: 1050000 | E147: 3#210000 | F147: 14#1050000|3#210000 | I147: 14 | J147: 92595200 | K147: 3#15010940 | L147: 14#92595200|3#15010940 | O147: 8.749870 | P147: 8.277571 | Q147: 8.74987 | R147: 8.277571
B148: 700000 | C148: 14 | D148: 1050000 | E148: 3#210000 | F148: 14#1050000|3#210000 | I148: 14 | J148: 93645200 | K148: 3#15220940 | L148: 14#93645200|3#15220940 | O148: 8.836728 | P148: 8.340102 | Q148: 8.836728 | R148: 8.340102
B149: 700000 | C149: 14 | D149: 1050000 | E149: 3#210000 | F149: 14#1050000|3#210000 | I149: 14 | J149: 94695200 | K149: 3#15430940 | L149: 14#94695200|3#15430940 | O149: 8.923585 | P149: 8.402632 | Q149: 8.923585 | R149: 8.402632
B150: 700000 | C150: 14 | D150: 1050000 | E150: 3#210000 | F150: 14#1050000|3#210000 | I150: 14 | J150: 95745200 | K150: 3#15640940 | L150: 14#95745200|3#15640940 | O150: 9.010443 | P150: 8.465163 | Q150: 9.010443 | R150: 8.465163
B151: 700000 | C151: 14 | D151: 1050000 | E151: 3#210000 | F151: 14#1050000|3#210000 | I151: 14 | J151: 96795200 | K151: 3#15850940 | L151: 14#96795200|3#15850940 | O151: 9.097301 | P151: 8.527693 | Q151: 9.097301 | R151: 8.527693
B152: 700000 | C152: 14 | D152: 1050000 | E152: 3#210000 | F152: 14#1050000|3#210000 | I152: 14 | J152: 97845200 | K152: 3#16060940 | L152: 14#97845200|3#16060940 | O152: 9.184158 | P152: 8.590224 | Q152: 9.184158 | R152: 8.590224
B153: 700000 | C153: 14 | D153: 1050000 | E153: 3#210000 | F153: 14#1050000|3#210000 | I153: 14 | J153: 98895200 | K153: 3#16270940 | L153: 14#98895200|3#16270940 | O153: 9.271016 | P153: 8.652755 | Q153: 9.271016 | R153: 8.652755
B154: 700000 | C154: 14 | D154: 1050000 | E154: 3#210000 | F154: 14#1050000|3#210000 | I154: 14 | J154: 99945200 | K154: 3#16480940 | L154: 14#99945200|3#16480940 | O154: 9.357873 | P154: 8.715285 | Q154: 9.357873 | R154: 8.715285
B155: 700000 | C155: 14 | D155: 1050000 | E155: 3#210000 | F155: 14#1050000|3#210000 | I155: 14 | J155: 100995200 | K155: 3#16690940 | L155: 14#100995200|3#16690940 | O155: 9.444731 | P155: 8.777816 | Q155: 9.444731 | R155: 8.777816
B156: 700000 | C156: 14 | D156: 1050000 | E156: 3#210000 | F156: 14#1050000|3#210000 | I156: 14 | J156: 102045200 | K156: 3#16900940 | L156: 14#102045200|3#16900940 | O156: 9.531588 | P156: 8.840346 | Q156: 9.531588 | R156: 8.840346
B157: 700000 | C157: 14 | D157: 1050000 | E157: 3#210000 | F157: 14#1050000|3#210000 | I157: 14 | J157: 103095200 | K157: 3#17110940 | L157: 14#103095200|3#17110940 | O157: 9.618446 | P157: 8.902877 | Q157: 9.618446 | R157: 8.902877
B158: 700000 | C158: 14 | D158: 1050000 | E158: 3#210000 | F158: 14#1050000|3#210000 | I158: 14 | J158: 104145200 | K158: 3#17320940 | L158: 14#104145200|3#17320940 | O158: 9.705303 | P158: 8.965407 | Q158: 9.705303 | R158: 8.965407
B159: 700000 | C159: 14 | D159: 1050000 | E159: 3#210000 | F159: 14#1050000|3#210000 | I159: 14 | J159: 105195200 | K159: 3#17530940 | L159: 14#105195200|3#17530940 | O159: 9.792161 | P159: 9.027938 | Q159: 9.792161 | R159: 9.027938
B160: 700000 | C160: 14 | D160: 1050000 | E160: 3#210000 | F160: 14#1050000|3#210000 | I160: 14 | J160: 106245200 | K160: 3#17740940 | L160: 14#106245200|3#17740940 | O160: 9.879018 | P160: 9.090468 | Q160: 9.879018 | R160: 9.090468
B161: 700000 | C161: 14 | D161: 1050000 | E161: 3#210000 | F161: 14#1050000|3#210000 | I161: 14 | J161: 107295200 | K161: 3#17950940 | L161: 14#107295200|3#17950940 | O161: 9.965876 | P161: 9.152999 | Q161: 9.965876 | R161: 9.152999
B162: 700000 | C162: 14 | D162: 1050000 | E162: 3#210000 | F162: 14#1050000|3#210000 | I162: 14 | J162: 108345200 | K162: 3#18160940 | L162: 14#108345200|3#18160940 | O162: 10.060995 | P162: 9.217780 | Q162: 10.060995 | R162: 9.21778
B163: 700000 | C163: 14 | D163: 1050000 | E163: 3#210000 | F163: 14#1050000|3#210000 | I163: 14 | J163: 109395200 | K163: 3#18370940 | L163: 14#109395200|3#18370940 | O163: 10.156114 | P163: 9.282561 | Q163: 10.156114 | R163: 9.282561
B164: 700000 | C164: 14 | D164: 1050000 | E164: 3#210000 | F164: 14#1050000|3#210000 | I164: 14 | J164: 110445200 | K164: 3#18580940 | L164: 14#110445200|3#18580940 | O164: 10.251233 | P164: 9.347342 | Q164: 10.251233 | R164: 9.347342
B165: 700000 | C165: 14 | D165: 1050000 | E165: 3#210000 | F165: 14#1050000|3#210000 | I165: 14 | J165: 111495200 | K165: 3#18790940 | L165: 14#111495200|3#18790940 | O165: 10.346352 | P165: 9.412123 | Q165: 10.346352 | R165: 9.412123
B166: 700000 | C166: 14 | D166: 1050000 | E166: 3#210000 | F166: 14#1050000|3#210000 | I166: 14 | J166: 112545200 | K166: 3#19000940 | L166: 14#112545200|3#19000940 | O166: 10.441471 | P166: 9.476905 | Q166: 10.441471 | R166: 9.476905
B167: 700000 | C167: 14 | D167: 1050000 | E167: 3#210000 | F167: 14#1050000|3#210000 | I167: 14 | J167: 113595200 | K167: 3#19210940 | L167: 14#113595200|3#19210940 | O167: 10.536590 | P167: 9.541686 | Q167: 10.53659 | R167: 9.541686
B168: 700000 | C168: 14 | D168: 1050000 | E168: 3#210000 | F168: 14#1050000|3#210000 | I168: 14 | J168: 114645200 | K168: 3#19420940 | L168: 14#114645200|3#19420940 | O168: 10.631710 | P168: 9.606467 | Q168: 10.63171 | R168: 9.606467
B169: 700000 | C169: 14 | D169: 1050000 | E169: 3#210000 | F169: 14#1050000|3#210000 | I169: 14 | J169: 115695200 | K169: 3#19630940 | L169: 14#115695200|3#19630940 | O169: 10.726829 | P169: 9.671248 | Q169: 10.726829 | R169: 9.671248
B170: 700000 | C170: 14 | D170: 1050000 | E170: 3#210000 | F170: 14#1050000|3#210000 | I170: 14 | J170: 116745200 | K170: 3#19840940 | L170: 14#116745200|3#19840940 | O170: 10.821948 | P170: 9.736029 | Q170: 10.821948 | R170: 9.736029
B171: 700000 | C171: 14 | D171: 1050000 | E171: 3#210000 | F171: 14#1050000|3#210000 | I171: 14 | J171: 117795200 | K171: 3#20050940 | L171: 14#117795200|3#20050940 | O171: 10.917067 | P171: 9.800810 | Q171: 10.917067 | R171: 9.80081
B172: 700000 | C172: 14 | D172: 1050000 | E172: 3#210000 | F172: 14#1050000|3#210000 | I172: 14 | J172: 118845200 | K172: 3#20260940 | L172: 14#118845200|3#20260940 | O172: 11.012186 | P172: 9.865592 | Q172: 11.012186 | R172: 9.865592
B173: 700000 | C173: 14 | D173: 1050000 | E173: 3#210000 | F173: 14#1050000|3#210000 | I173: 14 | J173: 119895200 | K173: 3#20470940 | L173: 14#119895200|3#20470940 | O173: 11.107305 | P173: 9.930373 | Q173: 11.107305 | R173: 9.930373
B174: 700000 | C174: 14 | D174: 1050000 | E174: 3#210000 | F174: 14#1050000|3#210000 | I174: 14 | J174: 120945200 | K174: 3#20680940 | L174: 14#120945200|3#20680940 | O174: 11.202425 | P174: 9.995154 | Q174: 11.202425 | R174: 9.995154
B175: 700000 | C175: 14 | D175: 1050000 | E175: 3#210000 | F175: 14#1050000|3#210000 | I175: 14 | J175: 121995200 | K175: 3#20890940 | L175: 14#121995200|3#20890940 | O175: 11.297544 | P175: 10.059935 | Q175: 11.297544 | R175: 10.059935
B176: 700000 | C176: 14 | D176: 1050000 | E176: 3#210000 | F176: 14#1050000|3#210000 | I176: 14 | J176: 123045200 | K176: 3#21100940 | L176: 14#123045200|3#21100940 | O176: 11.392663 | P176: 10.124716 | Q176: 11.392663 | R176: 10.124716
B177: 700000 | C177: 14 | D177: 1050000 | E177: 3#210000 | F177: 14#1050000|3#210000 | I177: 14 | J177: 124095200 | K177: 3#21310940 | L177: 14#124095200|3#21310940 | O177: 11.487782 | P177: 10.189497 | Q177: 11.487782 | R177: 10.189497
B178: 700000 | C178: 14 | D178: 1050000 | E178: 3#210000 | F178: 14#1050000|3#210000 | I178: 14 | J178: 125145200 | K178: 3#21520940 | L178: 14#125145200|3#21520940 | O178: 11.582901 | P178: 10.254279 | Q178: 11.582901 | R178: 10.254279
B179: 700000 | C179: 14 | D179: 1050000 | E179: 3#210000 | F179: 14#1050000|3#210000 | I179: 14 | J179: 126195200 | K179: 3#21730940 | L179: 14#126195200|3#21730940 | O179: 11.678020 | P179: 10.319060 | Q179: 11.67802 | R179: 10.31906
B180: 700000 | C180: 14 | D180: 1050000 | E180: 3#210000 | F180: 14#1050000|3#210000 | I180: 14 | J180: 127245200 | K180: 3#21940940 | L180: 14#127245200|3#21940940 | O180: 11.773140 | P180: 10.383841 | Q180: 11.77314 | R180: 10.383841
B181: 700000 | C181: 14 | D181: 1050000 | E181: 3#210000 | F181: 14#1050000|3#210000 | I181: 14 | J181: 128295200 | K181: 3#22150940 | L181: 14#128295200|3#22150940 | O181: 11.868259 | P181: 10.448622 | Q181: 11.868259 | R181: 10.448622
B182: 700000 | C182: 14 | D182: 1050000 | E182: 3#210000 | F182: 14#1050000|3#210000 | I182: 14 | J182: 129345200 | K182: 3#22360940 | L182: 14#129345200|3#22360940 | O182: 11.977854 | P182: 10.516779 | Q182: 11.977854 | R182: 10.516779
B183: 700000 | C183: 14 | D183: 1050000 | E183: 3#210000 | F183: 14#1050000|3#210000 | I183: 14 | J183: 130395200 | K183: 3#22570940 | L183: 14#130395200|3#22570940 | O183: 12.087449 | P183: 10.584936 | Q183: 12.087449 | R183: 10.584936
B184: 700000 | C184: 14 | D184: 1050000 | E184: 3#210000 | F184: 14#1050000|3#210000 | I184: 14 | J184: 131445200 | K184: 3#22780940 | L184: 14#131445200|3#22780940 | O184: 12.197044 | P184: 10.653093 | Q184: 12.197044 | R184: 10.653093
B185: 700000 | C185: 14 | D185: 1050000 | E185: 3#210000 | F185: 14#1050000|3#210000 | I185: 14 | J185: 132495200 | K185: 3#22990940 | L185: 14#132495200|3#22990940 | O185: 12.306639 | P185: 10.721251 | Q185: 12.306639 | R185: 10.721251
B186: 700000 | C186: 14 | D186: 1050000 | E186: 3#210000 | F186: 14#1050000|3#210000 | I186: 14 | J186: 133545200 | K186: 3#23200940 | L186: 14#133545200|3#23200940 | O186: 12.416234 | P186: 10.789408 | Q186: 12.416234 | R186: 10.789408
B187: 700000 | C187: 14 | D187: 1050000 | E187: 3#210000 | F187: 14#1050000|3#210000 | I187: 14 | J187: 134595200 | K187: 3#23410940 | L187: 14#134595200|3#23410940 | O187: 12.525829 | P187: 10.857565 | Q187: 12.525829 | R187: 10.857565
B188: 700000 | C188: 14 | D188: 1050000 | E188: 3#210000 | F188: 14#1050000|3#210000 | I188: 14 | J188: 135645200 | K188: 3#23620940 | L188: 14#135645200|3#23620940 | O188: 12.635425 | P188: 10.925722 | Q188: 12.635425 | R188: 10.925722
B189: 700000 | C189: 14 | D189: 1050000 | E189: 3#210000 | F189: 14#1050000|3#210000 | I189: 14 | J189: 136695200 | K189: 3#23830940 | L189: 14#136695200|3#23830940 | O189: 12.745020 | P189: 10.993879 | Q189: 12.74502 | R189: 10.993879
B190: 700000 | C190: 14 | D190: 1050000 | E190: 3#210000 | F190: 14#1050000|3#210000 | I190: 14 | J190: 137745200 | K190: 3#24040940 | L190: 14#137745200|3#24040940 | O190: 12.854615 | P190: 11.062036 | Q190: 12.854615 | R190: 11.062036
B191: 700000 | C191: 14 | D191: 1050000 | E191: 3#210000 | F191: 14#1050000|3#210000 | I191: 14 | J191: 138795200 | K191: 3#24250940 | L191: 14#138795200|3#24250940 | O191: 12.964210 | P191: 11.130193 | Q191: 12.96421 | R191: 11.130193
B192: 700000 | C192: 14 | D192: 1050000 | E192: 3#210000 | F192: 14#1050000|3#210000 | I192: 14 | J192: 139845200 | K192: 3#24460940 | L192: 14#139845200|3#24460940 | O192: 13.073805 | P192: 11.198351 | Q192: 13.073805 | R192: 11.198351
B193: 700000 | C193: 14 | D193: 1050000 | E193: 3#210000 | F193: 14#1050000|3#210000 | I193: 14 | J193: 140895200 | K193: 3#24670940 | L193: 14#140895200|3#24670940 | O193: 13.183400 | P193: 11.266508 | Q193: 13.1834 | R193: 11.266508
B194: 700000 | C194: 14 | D194: 1050000 | E194: 3#210000 | F194: 14#1050000|3#210000 | I194: 14 | J194: 141945200 | K194: 3#24880940 | L194: 14#141945200|3#24880940 | O194: 13.292995 | P194: 11.334665 | Q194: 13.292995 | R194: 11.334665
B195: 700000 | C195: 14 | D195: =B195*1.5 -> 1050000 | E195: 3#210000 | F195: =C195&"#"&D195&"|"&E195 -> 14#1050000|3#210000 | I195: 14 | J195: =J194+D195 -> 142995200 | K195: 3#25090940 | L195: =I195&"#"&J195&"|"&K195 -> 14#142995200|3#25090940 | O195: 13.402590 | P195: 11.402822 | Q195: =ROUND(O195,6) -> 13.40259 | R195: =ROUND(P195,6) -> 11.402822
B196: 700000 | C196: 14 | D196: 1050000 | E196: 3#210000 | F196: 14#1050000|3#210000 | I196: 14 | J196: 144045200 | K196: 3#25300940 | L196: 14#144045200|3#25300940 | O196: 13.512185 | P196: 11.470979 | Q196: 13.512185 | R196: 11.470979
B197: 700000 | C197: 14 | D197: 1050000 | E197: 3#210000 | F197: 14#1050000|3#210000 | I197: 14 | J197: 145095200 | K197: 3#25510940 | L197: 14#145095200|3#25510940 | O197: 13.621781 | P197: 11.539136 | Q197: 13.621781 | R197: 11.539136
B198: 700000 | C198: 14 | D198: 1050000 | E198: 3#210000 | F198: 14#1050000|3#210000 | I198: 14 | J198: 146145200 | K198: 3#25720940 | L198: 14#146145200|3#25720940 | O198: 13.731376 | P198: 11.607293 | Q198: 13.731376 | R198: 11.607293
B199: 700000 | C199: 14 | D199: 1050000 | E199: 3#210000 | F199: 14#1050000|3#210000 | I199: 14 | J199: 147195200 | K199: 3#25930940 | L199: 14#147195200|3#25930940 | O199: 13.840971 | P199: 11.675451 | Q199: 13.840971 | R199: 11.675451
B200: 700000 | C200: 14 | D200: 1050000 | E200: 3#210000 | F200: 14#1050000|3#210000 | I200: 14 | J200: 148245200 | K200: 3#26140940 | L200: 14#148245200|3#26140940 | O200: 13.950566 | P200: 11.743608 | Q200: 13.950566 | R200: 11.743608
... 201 more rows
